Workbook

Sheet Planogramm_Menue
F1: X | G1: X | H1: X | I1: X | J1: X | K1: X | L1: X | M1: X | N1: X | O1: X | P1: X | Q1: X
J4: BESTÜCKUNGSPLAN
F5: Kunde: | G5: Manor AG
F7: Standort: | G7: G2 / Girls S&T Aufbau
F9: Zeitraum: | G9: SS23
A11: IMG | O11: kein Bild | P11: kein Bild | Q11: kein Bild
E12: Artikel | F12: 000003723 | G12: 000003723 | H12: 1146018 | I12: 1146018 | J12: S24809 | K12: S24809 | L12: S24809 | M12: SK42036 | N12: SK42036
E13: Farbe | F13: 4300 | G13: 4300 | H13: 9200 | I13: 9200 | J13: 9303 | K13: 9303 | L13: 9303 | M13: 1001 | N13: 1001 | Z13: 18 Styles total
E14: Größe | F14: 27/30 31/34 | G14: 35/38 39/42 | H14: 27/30 31/34 | I14: 35/38 39/42 | J14: 27/30 31/34 | K14: 31/34 35/38 | L14: 35/38 39/42 | M14: 27/30 31/34 | N14: 35/38 39/42 | Z14: 15 Styles NOS | AA14: 11 davon übernommen
A16: IMG | O16: kein Bild | P16: kein Bild | Q16: kein Bild | Z16: camano: 40 | AA16: s. Oliver 2 | AB16: Skechers 3
E17: Artikel | F17: 000003723 | G17: 000003723 | H17: 1146017 | I17: 1146017 | J17: S24809 | K17: S24809 | L17: S24809 | M17: SK42047 | N17: SK42047
E18: Farbe | F18: 0008 | G18: 0008 | H18: 4015 | I18: 4015 | J18: 4303 | K18: 4303 | L18: 4303 | M18: 0001 | N18: 0001
E19: Größe | F19: 27/30 31/34 | G19: 35/38 39/42 | H19: 27/30 31/34 | I19: 31/34 35/38 | J19: 27/30 31/34 | K19: 31/34 35/38 | L19: 35/38 39/42 | M19: 27/30 31/34 | N19: 35/38 39/42
A21: IMG | O21: kein Bild | P21: kein Bild | Q21: kein Bild
E22: Artikel | F22: 000003701 | G22: 000003701 | H22: 1116013 | I22: 1116013 | J22: S20707 | K22: S20707 | L22: S20708 | M22: SK41082 | N22: SK41082
E23: Farbe | F23: 4300 | G23: 4300 | H23: 4454 | I23: 4454 | J23: 0800 | K23: 0800 | L23: 3311 | M23: 1001 | N23: 1001
E24: Größe | F24: 27/30 31/34 | G24: 35/38 39/42 | H24: 27/30 31/34 | I24: 35/38 39/42 | J24: 27/30 31/34 | K24: 35/38 39/42 | L24: 31/34 35/38 39/42 | M24: 27/30 31/34 | N24: 35/38 39/42
A26: IMG | O26: kein Bild | P26: kein Bild | Q26: kein Bild
E27: Artikel | F27: 000003101 | G27: 000003101 | H27: 000003101 | I27: 000003101 | J27: 1196000 | K27: 1196000 | L27: 1196000 | M27: 000003125 | N27: 000003125
E28: Farbe | F28: 0002 | G28: 0010 | H28: 0004 | I28: 0005 | J28: 4212 | K28: 5988 | L28: 9999 | M28: 0001 | N28: 0002
E29: Größe | F29: 98/104 110/116 122/128 | G29: 98/104 110/116 122/128 | H29: 98/104 110/116 122/128 | I29: 98/104 110/116 122/128 | J29: 98/116 122/140 | K29: 98/116 122/140 | L29: 98/116 122/140 | M29: 98/116 122/140 | N29: 98/116 122/140
A31: IMG | O31: kein Bild | P31: kein Bild | Q31: kein Bild
E32: Artikel | F32: 000003101 | G32: 000003101 | H32: 000003101 | I32: 000003101 | J32: 1196000 | K32: 1196000 | L32: 1196000 | M32: 000003125 | N32: 000003125
E33: Farbe | F33: 0002 | G33: 0010 | H33: 0004 | I33: 0005 | J33: 4212 | K33: 5988 | L33: 9999 | M33: 0001 | N33: 0002
E34: Größe | F34: 122/128 134/146 152/164 | G34: 122/128 134/146 152/164 | H34: 122/128 134/146 152/164 | I34: 122/128 134/146 152/164 | J34: 122/140 146/164 | K34: 122/140 146/164 | L34: 122/140 146/164 | M34: 122/140 146/164 | N34: 122/140 146/164
A36: IMG | F36: kein Bild | G36: kein Bild | H36: kein Bild | I36: kein Bild | J36: kein Bild | K36: kein Bild | L36: kein Bild | M36: kein Bild | N36: kein Bild | O36: kein Bild | P36: kein Bild | Q36: kein Bild
E37: Artikel
E38: Farbe
E39: Größe
A41: IMG | F41: kein Bild | G41: kein Bild | H41: kein Bild | I41: kein Bild | J41: kein Bild | K41: kein Bild | L41: kein Bild | M41: kein Bild | N41: kein Bild | O41: kein Bild | P41: kein Bild | Q41: kein Bild
E42: Artikel
E43: Farbe
E44: Größe
A46: IMG | F46: kein Bild | G46: kein Bild | H46: kein Bild | I46: kein Bild | J46: kein Bild | K46: kein Bild | L46: kein Bild | M46: kein Bild | N46: kein Bild | O46: kein Bild | P46: kein Bild | Q46: kein Bild
E47: Artikel
E48: Farbe
E49: Größe

Sheet Liste
F1: 1 | G1: 2 | H1: 3 | I1: 4 | J1: 5 | K1: 6 | L1: 7 | M1: 8 | N1: 9
A3: Währung | B3: EUR | O3: DP | P3: =IFERROR(P8/O8,"") -> 0
A4: Größengang 1 | B4: 040 | O4: Kalk.
A5: Größengang 2 | B5: 010 | V5: Benötigte Größenspalten
A6: Größengang 3 | B6: 020 | V6: Größengang 1 | W6: =IF($B$4="","",VLOOKUP(B4,Größengänge!A:L,12,0)) -> 7
D7: G3 | E7: =IFERROR(IF(VLOOKUP($B6,Größengänge!$A:$K,2+E$1,0)=0,"",VLOOKUP($B6,Größengänge!$A:$K,2+E$1,0)),"") -> 98/116 | F7: =IFERROR(IF(VLOOKUP($B6,Größengänge!$A:$K,2+F$1,0)=0,"",VLOOKUP($B6,Größengänge!$A:$K,2+F$1,0)),"") -> 122/140 | G7: =IFERROR(IF(VLOOKUP($B6,Größengänge!$A:$K,2+G$1,0)=0,"",VLOOKUP($B6,Größengänge!$A:$K,2+G$1,0)),"") -> 146/164 | H7: =IFERROR(IF(VLOOKUP($B6,Größengänge!$A:$K,2+H$1,0)=0,"",VLOOKUP($B6,Größengänge!$A:$K,2+H$1,0)),"") ->  | I7: =IFERROR(IF(VLOOKUP($B6,Größengänge!$A:$K,2+I$1,0)=0,"",VLOOKUP($B6,Größengänge!$A:$K,2+I$1,0)),"") ->  | J7: =IFERROR(IF(VLOOKUP($B6,Größengänge!$A:$K,2+J$1,0)=0,"",VLOOKUP($B6,Größengänge!$A:$K,2+J$1,0)),"") ->  | K7: =IFERROR(IF(VLOOKUP($B6,Größengänge!$A:$K,2+K$1,0)=0,"",VLOOKUP($B6,Größengänge!$A:$K,2+K$1,0)),"") ->  | L7: =IFERROR(IF(VLOOKUP($B6,Größengänge!$A:$K,2+L$1,0)=0,"",VLOOKUP($B6,Größengänge!$A:$K,2+L$1,0)),"") ->  | M7: =IFERROR(IF(VLOOKUP($B6,Größengänge!$A:$K,2+M$1,0)=0,"",VLOOKUP($B6,Größengänge!$A:$K,2+M$1,0)),"") ->  | N7: =IFERROR(IF(VLOOKUP($B6,Größengänge!$A:$K,2+N$1,0)=0,"",VLOOKUP($B6,Größengänge!$A:$K,2+N$1,0)),"") ->  | V7: Größengang 2 | W7: =IF($B$5="","",VLOOKUP(B5,Größengänge!A:L,12,0)) -> 10 | Y7: EUR
D8: G2 | E8: =IFERROR(IF(VLOOKUP($B5,Größengänge!$A:$K,2+E$1,0)=0,"",VLOOKUP($B5,Größengänge!$A:$K,2+E$1,0)),"") -> 50/56 | F8: =IFERROR(IF(VLOOKUP($B5,Größengänge!$A:$K,2+F$1,0)=0,"",VLOOKUP($B5,Größengänge!$A:$K,2+F$1,0)),"") -> 62/68 | G8: =IFERROR(IF(VLOOKUP($B5,Größengänge!$A:$K,2+G$1,0)=0,"",VLOOKUP($B5,Größengänge!$A:$K,2+G$1,0)),"") -> 74/80 | H8: =IFERROR(IF(VLOOKUP($B5,Größengänge!$A:$K,2+H$1,0)=0,"",VLOOKUP($B5,Größengänge!$A:$K,2+H$1,0)),"") -> 86/92 | I8: =IFERROR(IF(VLOOKUP($B5,Größengänge!$A:$K,2+I$1,0)=0,"",VLOOKUP($B5,Größengänge!$A:$K,2+I$1,0)),"") -> 98/104 | J8: =IFERROR(IF(VLOOKUP($B5,Größengänge!$A:$K,2+J$1,0)=0,"",VLOOKUP($B5,Größengänge!$A:$K,2+J$1,0)),"") -> 110/116 | K8: =IFERROR(IF(VLOOKUP($B5,Größengänge!$A:$K,2+K$1,0)=0,"",VLOOKUP($B5,Größengänge!$A:$K,2+K$1,0)),"") -> 122/128 | L8: =IFERROR(IF(VLOOKUP($B5,Größengänge!$A:$K,2+L$1,0)=0,"",VLOOKUP($B5,Größengänge!$A:$K,2+L$1,0)),"") -> 134/146 | M8: =IFERROR(IF(VLOOKUP($B5,Größengänge!$A:$K,2+M$1,0)=0,"",VLOOKUP($B5,Größengänge!$A:$K,2+M$1,0)),"") -> 152/164 | O8: =SUBTOTAL(9,O10:O1000) -> 441 | P8: =SUMPRODUCT(O10:O1000,P10:P1000) -> 0 | Q8: =SUMPRODUCT(O10:O1000,Q10:Q1000) -> 3599.19 | V8: Größengang 3 | W8: =IF($B$6="","",VLOOKUP(B6,Größengänge!A:L,12,0)) -> 3 | Y8: CHF
A9: Pos | B9: Artikel | C9: Farbcode | D9: Farbe | E9: =IFERROR(IF(VLOOKUP($B4,Größengänge!$A:$K,2+E$1,0)=0,"",VLOOKUP($B4,Größengänge!$A:$K,2+E$1,0)),"") -> 15/18 | F9: =IFERROR(IF(VLOOKUP($B4,Größengänge!$A:$K,2+F$1,0)=0,"",VLOOKUP($B4,Größengänge!$A:$K,2+F$1,0)),"") -> 19/22 | G9: =IFERROR(IF(VLOOKUP($B4,Größengänge!$A:$K,2+G$1,0)=0,"",VLOOKUP($B4,Größengänge!$A:$K,2+G$1,0)),"") -> 23/26 | H9: =IFERROR(IF(VLOOKUP($B4,[3]Größengänge!$A:$K,2+H$1,0)=0,"",VLOOKUP($B4,[3]Größengänge!$A:$K,2+H$1,0)),"") -> 27/30 | I9: =IFERROR(IF(VLOOKUP($B4,[3]Größengänge!$A:$K,2+I$1,0)=0,"",VLOOKUP($B4,[3]Größengänge!$A:$K,2+I$1,0)),"") -> 31/34 | J9: =IFERROR(IF(VLOOKUP($B4,[3]Größengänge!$A:$K,2+J$1,0)=0,"",VLOOKUP($B4,[3]Größengänge!$A:$K,2+J$1,0)),"") -> 35/38 | K9: =IFERROR(IF(VLOOKUP($B4,Größengänge!$A:$K,2+K$1,0)=0,"",VLOOKUP($B4,Größengänge!$A:$K,2+K$1,0)),"") -> 39/42 | L9: =IFERROR(IF(VLOOKUP($B4,Größengänge!$A:$K,2+L$1,0)=0,"",VLOOKUP($B4,Größengänge!$A:$K,2+L$1,0)),"") ->  | M9: =IFERROR(IF(VLOOKUP($B4,Größengänge!$A:$K,2+M$1,0)=0,"",VLOOKUP($B4,Größengänge!$A:$K,2+M$1,0)),"") ->  | N9: =IFERROR(IF(VLOOKUP($B4,Größengänge!$A:$K,2+N$1,0)=0,"",VLOOKUP($B4,Größengänge!$A:$K,2+N$1,0)),"") ->  | O9: gesamt | P9: HEK | Q9: UVP | R9: Beschreibung
A10: 0 | B10: 000003723 | C10: 4300 | D10: =IFERROR(VLOOKUP(C10,Farben_All!$A$1:$B$484,2,0),"") -> chalk pink melange | H10: 3 | I10: 6 | O10: =SUM(E10:N10) -> 9 | P10: =IFERROR(ROUND(Q10/$P$4,2),"") ->  | Q10: =IFERROR(IF($B$3="EUR",VLOOKUP(B10,DATA!$C$2:$H$11252,6,0),VLOOKUP(B10,DATA!$C$2:$N$101252,12,0)),"") -> 6.95 | R10: =IFERROR(VLOOKUP(B10,DATA!$C$2:$M$1001252,11,0),"") -> Children ca-soft organic cotton Quarter 3p
A11: 0 | B11: 000003723 | C11: 4300 | D11: =IFERROR(VLOOKUP(C11,Farben_All!$A$1:$B$484,2,0),"") -> chalk pink melange | J11: 6 | K11: 3 | O11: 9 | Q11: =IFERROR(IF($B$3="EUR",VLOOKUP(B11,DATA!$C$2:$H$11252,6,0),VLOOKUP(B11,DATA!$C$2:$N$101252,12,0)),"") -> 6.95 | R11: =IFERROR(VLOOKUP(B11,DATA!$C$2:$M$1001252,11,0),"") -> Children ca-soft organic cotton Quarter 3p
A12: 0 | B12: 1146018 | C12: 9200 | D12: =IFERROR(VLOOKUP(C12,Farben_All!$A$1:$B$484,2,0),"") -> fog melange | H12: 6 | I12: 6 | O12: 12 | Q12: =IFERROR(IF($B$3="EUR",VLOOKUP(B12,DATA!$C$2:$H$11252,6,0),VLOOKUP(B12,DATA!$C$2:$N$101252,12,0)),"") -> 6.95 | R12: =IFERROR(VLOOKUP(B12,DATA!$C$2:$M$1001252,11,0),"") -> Children ca-soft Viscose Sneakers 2p
A13: 0 | B13: 1146018 | C13: 9200 | D13: =IFERROR(VLOOKUP(C13,Farben_All!$A$1:$B$484,2,0),"") -> fog melange | J13: 6 | K13: 6 | O13: 12 | P13: =IFERROR(ROUND(Q13/$P$4,2),"") ->  | Q13: =IFERROR(IF($B$3="EUR",VLOOKUP(B13,DATA!$C$2:$H$11252,6,0),VLOOKUP(B13,DATA!$C$2:$N$101252,12,0)),"") -> 6.95 | R13: =IFERROR(VLOOKUP(B13,DATA!$C$2:$M$1001252,11,0),"") -> Children ca-soft Viscose Sneakers 2p
A14: 0 | B14: S24809 | C14: 9303 | D14: =IFERROR(VLOOKUP(C14,Farben_All!$A$1:$B$484,2,0),"") -> light grey mix | H14: 3 | I14: 6 | O14: 9 | Q14: =IFERROR(IF($B$3="EUR",VLOOKUP(B14,DATA!$C$2:$H$11252,6,0),VLOOKUP(B14,DATA!$C$2:$N$101252,12,0)),"") -> 9.99 | R14: =IFERROR(VLOOKUP(B14,DATA!$C$2:$M$1001252,11,0),"") -> Junior essentials sustainable Sneaker 5p
A15: 0 | B15: S24809 | C15: 9303 | D15: =IFERROR(VLOOKUP(C15,Farben_All!$A$1:$B$484,2,0),"") -> light grey mix | I15: 3 | J15: 6 | O15: 9 | Q15: =IFERROR(IF($B$3="EUR",VLOOKUP(B15,DATA!$C$2:$H$11252,6,0),VLOOKUP(B15,DATA!$C$2:$N$101252,12,0)),"") -> 9.99 | R15: =IFERROR(VLOOKUP(B15,DATA!$C$2:$M$1001252,11,0),"") -> Junior essentials sustainable Sneaker 5p
A16: 0 | B16: S24809 | C16: 9303 | D16: =IFERROR(VLOOKUP(C16,Farben_All!$A$1:$B$484,2,0),"") -> light grey mix | J16: 3 | K16: 6 | O16: 9 | Q16: =IFERROR(IF($B$3="EUR",VLOOKUP(B16,DATA!$C$2:$H$11252,6,0),VLOOKUP(B16,DATA!$C$2:$N$101252,12,0)),"") -> 9.99 | R16: =IFERROR(VLOOKUP(B16,DATA!$C$2:$M$1001252,11,0),"") -> Junior essentials sustainable Sneaker 5p
A17: 0 | B17: SK42036 | C17: 1001 | D17: =IFERROR(VLOOKUP(C17,Farben_All!$A$1:$B$484,2,0),"") -> white mix | H17: 3 | I17: 6 | O17: 9 | Q17: =IFERROR(IF($B$3="EUR",VLOOKUP(B17,DATA!$C$2:$H$11252,6,0),VLOOKUP(B17,DATA!$C$2:$N$101252,12,0)),"") -> 9.95 | R17: =IFERROR(VLOOKUP(B17,DATA!$C$2:$M$1001252,11,0),"") -> Girls mesh ventilation organic glow Quarter 3p
A18: 0 | B18: SK42036 | C18: 1001 | D18: =IFERROR(VLOOKUP(C18,Farben_All!$A$1:$B$484,2,0),"") -> white mix | J18: 6 | K18: 3 | O18: 9 | Q18: =IFERROR(IF($B$3="EUR",VLOOKUP(B18,DATA!$C$2:$H$11252,6,0),VLOOKUP(B18,DATA!$C$2:$N$101252,12,0)),"") -> 9.95 | R18: =IFERROR(VLOOKUP(B18,DATA!$C$2:$M$1001252,11,0),"") -> Girls mesh ventilation organic glow Quarter 3p
A19: 0 | B19: 000003723 | C19: 0008 | D19: =IFERROR(VLOOKUP(C19,Farben_All!$A$1:$B$484,2,0),"") -> anthracite | H19: 3 | I19: 6 | O19: 9 | Q19: =IFERROR(IF($B$3="EUR",VLOOKUP(B19,DATA!$C$2:$H$11252,6,0),VLOOKUP(B19,DATA!$C$2:$N$101252,12,0)),"") -> 6.95 | R19: =IFERROR(VLOOKUP(B19,DATA!$C$2:$M$1001252,11,0),"") -> Children ca-soft organic cotton Quarter 3p
A20: 0 | B20: 000003723 | C20: 0008 | D20: =IFERROR(VLOOKUP(C20,Farben_All!$A$1:$B$484,2,0),"") -> anthracite | J20: 6 | K20: 3 | O20: 9 | Q20: =IFERROR(IF($B$3="EUR",VLOOKUP(B20,DATA!$C$2:$H$11252,6,0),VLOOKUP(B20,DATA!$C$2:$N$101252,12,0)),"") -> 6.95 | R20: =IFERROR(VLOOKUP(B20,DATA!$C$2:$M$1001252,11,0),"") -> Children ca-soft organic cotton Quarter 3p
A21: 0 | B21: 1146017 | C21: 4015 | D21: =IFERROR(VLOOKUP(C21,Farben_All!$A$1:$B$484,2,0),"") -> silver peony | H21: 6 | I21: 6 | O21: 12 | Q21: =IFERROR(IF($B$3="EUR",VLOOKUP(B21,DATA!$C$2:$H$11252,6,0),VLOOKUP(B21,DATA!$C$2:$N$101252,12,0)),"") -> 6.95 | R21: =IFERROR(VLOOKUP(B21,DATA!$C$2:$M$1001252,11,0),"") -> Children ca-soft organic cotton Sneakers 2p
A22: 0 | B22: 1146017 | C22: 4015 | D22: =IFERROR(VLOOKUP(C22,Farben_All!$A$1:$B$484,2,0),"") -> silver peony | I22: 6 | J22: 6 | O22: 12 | Q22: =IFERROR(IF($B$3="EUR",VLOOKUP(B22,DATA!$C$2:$H$11252,6,0),VLOOKUP(B22,DATA!$C$2:$N$101252,12,0)),"") -> 6.95 | R22: =IFERROR(VLOOKUP(B22,DATA!$C$2:$M$1001252,11,0),"") -> Children ca-soft organic cotton Sneakers 2p
A23: 0 | B23: S24809 | C23: 4303 | D23: =IFERROR(VLOOKUP(C23,Farben_All!$A$1:$B$484,2,0),"") -> chalk pink mix | H23: 3 | I23: 6 | O23: 9 | Q23: =IFERROR(IF($B$3="EUR",VLOOKUP(B23,DATA!$C$2:$H$11252,6,0),VLOOKUP(B23,DATA!$C$2:$N$101252,12,0)),"") -> 9.99 | R23: =IFERROR(VLOOKUP(B23,DATA!$C$2:$M$1001252,11,0),"") -> Junior essentials sustainable Sneaker 5p
A24: 0 | B24: S24809 | C24: 4303 | D24: =IFERROR(VLOOKUP(C24,Farben_All!$A$1:$B$484,2,0),"") -> chalk pink mix | I24: 6 | J24: 3 | O24: 9 | Q24: =IFERROR(IF($B$3="EUR",VLOOKUP(B24,DATA!$C$2:$H$11252,6,0),VLOOKUP(B24,DATA!$C$2:$N$101252,12,0)),"") -> 9.99 | R24: =IFERROR(VLOOKUP(B24,DATA!$C$2:$M$1001252,11,0),"") -> Junior essentials sustainable Sneaker 5p
A25: 0 | B25: S24809 | C25: 4303 | D25: =IFERROR(VLOOKUP(C25,Farben_All!$A$1:$B$484,2,0),"") -> chalk pink mix | J25: 6 | K25: 3 | O25: 9 | Q25: =IFERROR(IF($B$3="EUR",VLOOKUP(B25,DATA!$C$2:$H$11252,6,0),VLOOKUP(B25,DATA!$C$2:$N$101252,12,0)),"") -> 9.99 | R25: =IFERROR(VLOOKUP(B25,DATA!$C$2:$M$1001252,11,0),"") -> Junior essentials sustainable Sneaker 5p
A26: 0 | B26: SK42047 | C26: 0001 | D26: =IFERROR(VLOOKUP(C26,Farben_All!$A$1:$B$484,2,0),"") -> white | H26: 6 | I26: 6 | O26: 12 | Q26: =IFERROR(IF($B$3="EUR",VLOOKUP(B26,DATA!$C$2:$H$11252,6,0),VLOOKUP(B26,DATA!$C$2:$N$101252,12,0)),"") -> 6.95 | R26: =IFERROR(VLOOKUP(B26,DATA!$C$2:$M$1001252,11,0),"") -> Girls micro cushioned Quarter 2p
A27: 0 | B27: SK42047 | C27: 0001 | D27: =IFERROR(VLOOKUP(C27,Farben_All!$A$1:$B$484,2,0),"") -> white | J27: 6 | K27: 6 | O27: 12 | Q27: =IFERROR(IF($B$3="EUR",VLOOKUP(B27,DATA!$C$2:$H$11252,6,0),VLOOKUP(B27,DATA!$C$2:$N$101252,12,0)),"") -> 6.95 | R27: =IFERROR(VLOOKUP(B27,DATA!$C$2:$M$1001252,11,0),"") -> Girls micro cushioned Quarter 2p
A28: 0 | B28: 000003701 | C28: 4300 | D28: =IFERROR(VLOOKUP(C28,Farben_All!$A$1:$B$484,2,0),"") -> chalk pink melange | H28: 3 | I28: 6 | O28: 9 | Q28: =IFERROR(IF($B$3="EUR",VLOOKUP(B28,DATA!$C$2:$H$11252,6,0),VLOOKUP(B28,DATA!$C$2:$N$101252,12,0)),"") -> 6.95 | R28: =IFERROR(VLOOKUP(B28,DATA!$C$2:$M$1001252,11,0),"") -> Children ca-soft organic cotton Socks 3p
A29: 0 | B29: 000003701 | C29: 4300 | D29: =IFERROR(VLOOKUP(C29,Farben_All!$A$1:$B$484,2,0),"") -> chalk pink melange | J29: 6 | K29: 3 | O29: 9 | Q29: =IFERROR(IF($B$3="EUR",VLOOKUP(B29,DATA!$C$2:$H$11252,6,0),VLOOKUP(B29,DATA!$C$2:$N$101252,12,0)),"") -> 6.95 | R29: =IFERROR(VLOOKUP(B29,DATA!$C$2:$M$1001252,11,0),"") -> Children ca-soft organic cotton Socks 3p
A30: 0 | B30: 1116013 | C30: 4454 | D30: =IFERROR(VLOOKUP(C30,Farben_All!$A$1:$B$484,2,0),"") -> phlox pink | H30: 3 | I30: 3 | O30: 6 | Q30: =IFERROR(IF($B$3="EUR",VLOOKUP(B30,DATA!$C$2:$H$11252,6,0),VLOOKUP(B30,DATA!$C$2:$N$101252,12,0)),"") -> 9.95 | R30: =IFERROR(VLOOKUP(B30,DATA!$C$2:$M$1001252,11,0),"") -> Children ca-soft BCI cotton Quarters 4p
A31: 0 | B31: 1116013 | C31: 4454 | D31: =IFERROR(VLOOKUP(C31,Farben_All!$A$1:$B$484,2,0),"") -> phlox pink | J31: 3 | K31: 3 | O31: 6 | Q31: =IFERROR(IF($B$3="EUR",VLOOKUP(B31,DATA!$C$2:$H$11252,6,0),VLOOKUP(B31,DATA!$C$2:$N$101252,12,0)),"") -> 9.95 | R31: =IFERROR(VLOOKUP(B31,DATA!$C$2:$M$1001252,11,0),"") -> Children ca-soft BCI cotton Quarters 4p
A32: 0 | B32: S20707 | C32: 0800 | D32: =IFERROR(VLOOKUP(C32,Farben_All!$A$1:$B$484,2,0),"") -> black white | H32: 3 | I32: 6 | O32: 9 | Q32: =IFERROR(IF($B$3="EUR",VLOOKUP(B32,DATA!$C$2:$H$11252,6,0),VLOOKUP(B32,DATA!$C$2:$N$101252,12,0)),"") -> 9.99 | R32: =IFERROR(VLOOKUP(B32,DATA!$C$2:$M$1001252,11,0),"") -> Junior originals organic smiley Socks 2p
A33: 0 | B33: S20707 | C33: 0800 | D33: =IFERROR(VLOOKUP(C33,Farben_All!$A$1:$B$484,2,0),"") -> black white | J33: 6 | K33: 3 | O33: 9 | Q33: =IFERROR(IF($B$3="EUR",VLOOKUP(B33,DATA!$C$2:$H$11252,6,0),VLOOKUP(B33,DATA!$C$2:$N$101252,12,0)),"") -> 9.99 | R33: =IFERROR(VLOOKUP(B33,DATA!$C$2:$M$1001252,11,0),"") -> Junior originals organic smiley Socks 2p
A34: 0 | B34: S20708 | C34: 3311 | D34: =IFERROR(VLOOKUP(C34,Farben_All!$A$1:$B$484,2,0),"") -> paradise pink | I34: 3 | J34: 3 | K34: 3 | O34: 9 | Q34: =IFERROR(IF($B$3="EUR",VLOOKUP(B34,DATA!$C$2:$H$11252,6,0),VLOOKUP(B34,DATA!$C$2:$N$101252,12,0)),"") -> 9.99 | R34: =IFERROR(VLOOKUP(B34,DATA!$C$2:$M$1001252,11,0),"") -> Junior silky touch sustainable heart Socks 3p
A35: 0 | B35: SK41082 | C35: 1001 | D35: =IFERROR(VLOOKUP(C35,Farben_All!$A$1:$B$484,2,0),"") -> white mix | H35: 3 | I35: 6 | O35: 9 | Q35: =IFERROR(IF($B$3="EUR",VLOOKUP(B35,DATA!$C$2:$H$11252,6,0),VLOOKUP(B35,DATA!$C$2:$N$101252,12,0)),"") -> 9.95 | R35: =IFERROR(VLOOKUP(B35,DATA!$C$2:$M$1001252,11,0),"") -> Girls casual patterned Socks 3p
A36: 0 | B36: SK41082 | C36: 1001 | D36: =IFERROR(VLOOKUP(C36,Farben_All!$A$1:$B$484,2,0),"") -> white mix | J36: 6 | K36: 3 | O36: 9 | Q36: =IFERROR(IF($B$3="EUR",VLOOKUP(B36,DATA!$C$2:$H$11252,6,0),VLOOKUP(B36,DATA!$C$2:$N$101252,12,0)),"") -> 9.95 | R36: =IFERROR(VLOOKUP(B36,DATA!$C$2:$M$1001252,11,0),"") -> Girls casual patterned Socks 3p
A37: 1 | B37: 000003101 | C37: 0002 | D37: =IFERROR(VLOOKUP(C37,Farben_All!$A$1:$B$484,2,0),"") -> offwhite | I37: 3 | J37: 6 | K37: 3 | O37: 12 | Q37: =IFERROR(IF($B$3="EUR",VLOOKUP(B37,DATA!$C$2:$H$11252,6,0),VLOOKUP(B37,DATA!$C$2:$N$101252,12,0)),"") -> 6.95 | R37: =IFERROR(VLOOKUP(B37,DATA!$C$2:$M$1001252,11,0),"") -> Children ca-soft organic cotton Tights 1p
A38: 1 | B38: 000003101 | C38: 0010 | D38: =IFERROR(VLOOKUP(C38,Farben_All!$A$1:$B$484,2,0),"") -> light grey | I38: 3 | J38: 6 | K38: 3 | O38: 12 | Q38: =IFERROR(IF($B$3="EUR",VLOOKUP(B38,DATA!$C$2:$H$11252,6,0),VLOOKUP(B38,DATA!$C$2:$N$101252,12,0)),"") -> 6.95 | R38: =IFERROR(VLOOKUP(B38,DATA!$C$2:$M$1001252,11,0),"") -> Children ca-soft organic cotton Tights 1p
A39: 1 | B39: 000003101 | C39: 0004 | D39: =IFERROR(VLOOKUP(C39,Farben_All!$A$1:$B$484,2,0),"") -> navy | I39: 3 | J39: 6 | K39: 3 | O39: 12 | Q39: =IFERROR(IF($B$3="EUR",VLOOKUP(B39,DATA!$C$2:$H$11252,6,0),VLOOKUP(B39,DATA!$C$2:$N$101252,12,0)),"") -> 6.95 | R39: =IFERROR(VLOOKUP(B39,DATA!$C$2:$M$1001252,11,0),"") -> Children ca-soft organic cotton Tights 1p
A40: 1 | B40: 000003101 | C40: 0005 | D40: =IFERROR(VLOOKUP(C40,Farben_All!$A$1:$B$484,2,0),"") -> black | I40: 3 | J40: 6 | K40: 3 | O40: 12 | Q40: =IFERROR(IF($B$3="EUR",VLOOKUP(B40,DATA!$C$2:$H$11252,6,0),VLOOKUP(B40,DATA!$C$2:$N$101252,12,0)),"") -> 6.95 | R40: =IFERROR(VLOOKUP(B40,DATA!$C$2:$M$1001252,11,0),"") -> Children ca-soft organic cotton Tights 1p
A41: 2 | B41: 1196000 | C41: 4212 | D41: =IFERROR(VLOOKUP(C41,Farben_All!$A$1:$B$484,2,0),"") -> mauve | E41: 6 | F41: 3 | O41: 9 | Q41: =IFERROR(IF($B$3="EUR",VLOOKUP(B41,DATA!$C$2:$H$11252,6,0),VLOOKUP(B41,DATA!$C$2:$N$101252,12,0)),"") -> 8.95 | R41: =IFERROR(VLOOKUP(B41,DATA!$C$2:$M$1001252,11,0),"") -> Children fine sustainable Leggings 40 DEN 2p
A42: 2 | B42: 1196000 | C42: 5988 | D42: =IFERROR(VLOOKUP(C42,Farben_All!$A$1:$B$484,2,0),"") -> total eclipse | E42: 6 | F42: 3 | O42: =SUM(E42:N42) -> 9 | Q42: =IFERROR(IF($B$3="EUR",VLOOKUP(B42,DATA!$C$2:$H$11252,6,0),VLOOKUP(B42,DATA!$C$2:$N$101252,12,0)),"") -> 8.95 | R42: =IFERROR(VLOOKUP(B42,DATA!$C$2:$M$1001252,11,0),"") -> Children fine sustainable Leggings 40 DEN 2p
A43: 2 | B43: 1196000 | C43: 9999 | D43: =IFERROR(VLOOKUP(C43,Farben_All!$A$1:$B$484,2,0),"") -> black | E43: 6 | F43: 3 | O43: 9 | Q43: =IFERROR(IF($B$3="EUR",VLOOKUP(B43,DATA!$C$2:$H$11252,6,0),VLOOKUP(B43,DATA!$C$2:$N$101252,12,0)),"") -> 8.95 | R43: =IFERROR(VLOOKUP(B43,DATA!$C$2:$M$1001252,11,0),"") -> Children fine sustainable Leggings 40 DEN 2p
A44: 2 | B44: 000003125 | C44: 0001 | D44: =IFERROR(VLOOKUP(C44,Farben_All!$A$1:$B$484,2,0),"") -> white | E44: 6 | F44: 3 | O44: 9 | Q44: =IFERROR(IF($B$3="EUR",VLOOKUP(B44,DATA!$C$2:$H$11252,6,0),VLOOKUP(B44,DATA!$C$2:$N$101252,12,0)),"") -> 7.95 | R44: =IFERROR(VLOOKUP(B44,DATA!$C$2:$M$1001252,11,0),"") -> Children fine Tights 40 DEN 2p
A45: 2 | B45: 000003125 | C45: 0002 | D45: =IFERROR(VLOOKUP(C45,Farben_All!$A$1:$B$484,2,0),"") -> offwhite | E45: 6 | F45: 3 | O45: 9 | Q45: =IFERROR(IF($B$3="EUR",VLOOKUP(B45,DATA!$C$2:$H$11252,6,0),VLOOKUP(B45,DATA!$C$2:$N$101252,12,0)),"") -> 7.95 | R45: =IFERROR(VLOOKUP(B45,DATA!$C$2:$M$1001252,11,0),"") -> Children fine Tights 40 DEN 2p
A46: 1 | B46: 000003101 | C46: 0002 | D46: =IFERROR(VLOOKUP(C46,Farben_All!$A$1:$B$484,2,0),"") -> offwhite | K46: 3 | L46: 6 | M46: 3 | O46: 12 | Q46: =IFERROR(IF($B$3="EUR",VLOOKUP(B46,DATA!$C$2:$H$11252,6,0),VLOOKUP(B46,DATA!$C$2:$N$101252,12,0)),"") -> 6.95 | R46: =IFERROR(VLOOKUP(B46,DATA!$C$2:$M$1001252,11,0),"") -> Children ca-soft organic cotton Tights 1p
A47: 1 | B47: 000003101 | C47: 0010 | D47: =IFERROR(VLOOKUP(C47,Farben_All!$A$1:$B$484,2,0),"") -> light grey | K47: 3 | L47: 6 | M47: 3 | O47: 12 | Q47: =IFERROR(IF($B$3="EUR",VLOOKUP(B47,DATA!$C$2:$H$11252,6,0),VLOOKUP(B47,DATA!$C$2:$N$101252,12,0)),"") -> 6.95 | R47: =IFERROR(VLOOKUP(B47,DATA!$C$2:$M$1001252,11,0),"") -> Children ca-soft organic cotton Tights 1p
A48: 1 | B48: 000003101 | C48: 0004 | D48: =IFERROR(VLOOKUP(C48,Farben_All!$A$1:$B$484,2,0),"") -> navy | K48: 3 | L48: 6 | M48: 3 | O48: 12 | Q48: =IFERROR(IF($B$3="EUR",VLOOKUP(B48,DATA!$C$2:$H$11252,6,0),VLOOKUP(B48,DATA!$C$2:$N$101252,12,0)),"") -> 6.95 | R48: =IFERROR(VLOOKUP(B48,DATA!$C$2:$M$1001252,11,0),"") -> Children ca-soft organic cotton Tights 1p
A49: 1 | B49: 000003101 | C49: 0005 | D49: =IFERROR(VLOOKUP(C49,Farben_All!$A$1:$B$484,2,0),"") -> black | K49: 3 | L49: 6 | M49: 3 | O49: 12 | Q49: =IFERROR(IF($B$3="EUR",VLOOKUP(B49,DATA!$C$2:$H$11252,6,0),VLOOKUP(B49,DATA!$C$2:$N$101252,12,0)),"") -> 6.95 | R49: =IFERROR(VLOOKUP(B49,DATA!$C$2:$M$1001252,11,0),"") -> Children ca-soft organic cotton Tights 1p
A50: 2 | B50: 1196000 | C50: 4212 | D50: =IFERROR(VLOOKUP(C50,Farben_All!$A$1:$B$484,2,0),"") -> mauve | F50: 3 | G50: 6 | O50: 9 | Q50: =IFERROR(IF($B$3="EUR",VLOOKUP(B50,DATA!$C$2:$H$11252,6,0),VLOOKUP(B50,DATA!$C$2:$N$101252,12,0)),"") -> 8.95 | R50: =IFERROR(VLOOKUP(B50,DATA!$C$2:$M$1001252,11,0),"") -> Children fine sustainable Leggings 40 DEN 2p
A51: 2 | B51: 1196000 | C51: 5988 | D51: =IFERROR(VLOOKUP(C51,Farben_All!$A$1:$B$484,2,0),"") -> total eclipse | F51: 3 | G51: 6 | O51: 9 | Q51: =IFERROR(IF($B$3="EUR",VLOOKUP(B51,DATA!$C$2:$H$11252,6,0),VLOOKUP(B51,DATA!$C$2:$N$101252,12,0)),"") -> 8.95 | R51: =IFERROR(VLOOKUP(B51,DATA!$C$2:$M$1001252,11,0),"") -> Children fine sustainable Leggings 40 DEN 2p
A52: 2 | B52: 1196000 | C52: 9999 | D52: =IFERROR(VLOOKUP(C52,Farben_All!$A$1:$B$484,2,0),"") -> black | F52: 3 | G52: 6 | O52: 9 | Q52: =IFERROR(IF($B$3="EUR",VLOOKUP(B52,DATA!$C$2:$H$11252,6,0),VLOOKUP(B52,DATA!$C$2:$N$101252,12,0)),"") -> 8.95 | R52: =IFERROR(VLOOKUP(B52,DATA!$C$2:$M$1001252,11,0),"") -> Children fine sustainable Leggings 40 DEN 2p
A53: 2 | B53: 000003125 | C53: 0001 | D53: =IFERROR(VLOOKUP(C53,Farben_All!$A$1:$B$484,2,0),"") -> white | F53: 3 | G53: 6 | O53: 9 | Q53: =IFERROR(IF($B$3="EUR",VLOOKUP(B53,DATA!$C$2:$H$11252,6,0),VLOOKUP(B53,DATA!$C$2:$N$101252,12,0)),"") -> 7.95 | R53: =IFERROR(VLOOKUP(B53,DATA!$C$2:$M$1001252,11,0),"") -> Children fine Tights 40 DEN 2p
A54: 2 | B54: 000003125 | C54: 0002 | D54: =IFERROR(VLOOKUP(C54,Farben_All!$A$1:$B$484,2,0),"") -> offwhite | F54: 3 | G54: 6 | O54: 9 | Q54: =IFERROR(IF($B$3="EUR",VLOOKUP(B54,DATA!$C$2:$H$11252,6,0),VLOOKUP(B54,DATA!$C$2:$N$101252,12,0)),"") -> 7.95 | R54: =IFERROR(VLOOKUP(B54,DATA!$C$2:$M$1001252,11,0),"") -> Children fine Tights 40 DEN 2p
A55: 0 | D55: =IFERROR(VLOOKUP(C55,Farben_All!$A$1:$B$484,2,0),"") ->  | O55: 0 | Q55: =IFERROR(IF($B$3="EUR",VLOOKUP(B55,DATA!$C$2:$H$11252,6,0),VLOOKUP(B55,DATA!$C$2:$N$101252,12,0)),"") ->  | R55: =IFERROR(VLOOKUP(B55,DATA!$C$2:$M$1001252,11,0),"") -> 
A56: 0 | D56: =IFERROR(VLOOKUP(C56,Farben_All!$A$1:$B$484,2,0),"") ->  | O56: 0 | Q56: =IFERROR(IF($B$3="EUR",VLOOKUP(B56,DATA!$C$2:$H$11252,6,0),VLOOKUP(B56,DATA!$C$2:$N$101252,12,0)),"") ->  | R56: =IFERROR(VLOOKUP(B56,DATA!$C$2:$M$1001252,11,0),"") -> 
A57: 0 | D57: =IFERROR(VLOOKUP(C57,Farben_All!$A$1:$B$484,2,0),"") ->  | O57: 0 | Q57: =IFERROR(IF($B$3="EUR",VLOOKUP(B57,DATA!$C$2:$H$11252,6,0),VLOOKUP(B57,DATA!$C$2:$N$101252,12,0)),"") ->  | R57: =IFERROR(VLOOKUP(B57,DATA!$C$2:$M$1001252,11,0),"") -> 
A58: 0 | D58: =IFERROR(VLOOKUP(C58,Farben_All!$A$1:$B$484,2,0),"") ->  | O58: 0 | Q58: =IFERROR(IF($B$3="EUR",VLOOKUP(B58,DATA!$C$2:$H$11252,6,0),VLOOKUP(B58,DATA!$C$2:$N$101252,12,0)),"") ->  | R58: =IFERROR(VLOOKUP(B58,DATA!$C$2:$M$1001252,11,0),"") -> 
A59: 0 | D59: =IFERROR(VLOOKUP(C59,Farben_All!$A$1:$B$484,2,0),"") ->  | O59: 0 | Q59: =IFERROR(IF($B$3="EUR",VLOOKUP(B59,DATA!$C$2:$H$11252,6,0),VLOOKUP(B59,DATA!$C$2:$N$101252,12,0)),"") ->  | R59: =IFERROR(VLOOKUP(B59,DATA!$C$2:$M$1001252,11,0),"") -> 
A60: 0 | D60: =IFERROR(VLOOKUP(C60,Farben_All!$A$1:$B$484,2,0),"") ->  | O60: 0 | Q60: =IFERROR(IF($B$3="EUR",VLOOKUP(B60,DATA!$C$2:$H$11252,6,0),VLOOKUP(B60,DATA!$C$2:$N$101252,12,0)),"") ->  | R60: =IFERROR(VLOOKUP(B60,DATA!$C$2:$M$1001252,11,0),"") -> 
A61: 0 | D61: =IFERROR(VLOOKUP(C61,Farben_All!$A$1:$B$484,2,0),"") ->  | O61: 0 | Q61: =IFERROR(IF($B$3="EUR",VLOOKUP(B61,DATA!$C$2:$H$11252,6,0),VLOOKUP(B61,DATA!$C$2:$N$101252,12,0)),"") ->  | R61: =IFERROR(VLOOKUP(B61,DATA!$C$2:$M$1001252,11,0),"") -> 
A62: 0 | D62: =IFERROR(VLOOKUP(C62,Farben_All!$A$1:$B$484,2,0),"") ->  | O62: 0 | Q62: =IFERROR(IF($B$3="EUR",VLOOKUP(B62,DATA!$C$2:$H$11252,6,0),VLOOKUP(B62,DATA!$C$2:$N$101252,12,0)),"") ->  | R62: =IFERROR(VLOOKUP(B62,DATA!$C$2:$M$1001252,11,0),"") -> 
A63: 0 | D63: =IFERROR(VLOOKUP(C63,Farben_All!$A$1:$B$484,2,0),"") ->  | O63: 0 | Q63: =IFERROR(IF($B$3="EUR",VLOOKUP(B63,DATA!$C$2:$H$11252,6,0),VLOOKUP(B63,DATA!$C$2:$N$101252,12,0)),"") ->  | R63: =IFERROR(VLOOKUP(B63,DATA!$C$2:$M$1001252,11,0),"") -> 
A64: 0 | D64: =IFERROR(VLOOKUP(C64,Farben_All!$A$1:$B$484,2,0),"") ->  | O64: 0 | Q64: =IFERROR(IF($B$3="EUR",VLOOKUP(B64,DATA!$C$2:$H$11252,6,0),VLOOKUP(B64,DATA!$C$2:$N$101252,12,0)),"") ->  | R64: =IFERROR(VLOOKUP(B64,DATA!$C$2:$M$1001252,11,0),"") -> 
A65: 0 | D65: =IFERROR(VLOOKUP(C65,Farben_All!$A$1:$B$484,2,0),"") ->  | O65: 0 | Q65: =IFERROR(IF($B$3="EUR",VLOOKUP(B65,DATA!$C$2:$H$11252,6,0),VLOOKUP(B65,DATA!$C$2:$N$101252,12,0)),"") ->  | R65: =IFERROR(VLOOKUP(B65,DATA!$C$2:$M$1001252,11,0),"") -> 
A66: 0 | D66: =IFERROR(VLOOKUP(C66,Farben_All!$A$1:$B$484,2,0),"") ->  | O66: 0 | Q66: =IFERROR(IF($B$3="EUR",VLOOKUP(B66,DATA!$C$2:$H$11252,6,0),VLOOKUP(B66,DATA!$C$2:$N$101252,12,0)),"") ->  | R66: =IFERROR(VLOOKUP(B66,DATA!$C$2:$M$1001252,11,0),"") -> 
A67: 0 | D67: =IFERROR(VLOOKUP(C67,Farben_All!$A$1:$B$484,2,0),"") ->  | O67: 0 | Q67: =IFERROR(IF($B$3="EUR",VLOOKUP(B67,DATA!$C$2:$H$11252,6,0),VLOOKUP(B67,DATA!$C$2:$N$101252,12,0)),"") ->  | R67: =IFERROR(VLOOKUP(B67,DATA!$C$2:$M$1001252,11,0),"") -> 
A68: 0 | D68: =IFERROR(VLOOKUP(C68,Farben_All!$A$1:$B$484,2,0),"") ->  | O68: 0 | Q68: =IFERROR(IF($B$3="EUR",VLOOKUP(B68,DATA!$C$2:$H$11252,6,0),VLOOKUP(B68,DATA!$C$2:$N$101252,12,0)),"") ->  | R68: =IFERROR(VLOOKUP(B68,DATA!$C$2:$M$1001252,11,0),"") -> 
A69: 0 | D69: =IFERROR(VLOOKUP(C69,Farben_All!$A$1:$B$484,2,0),"") ->  | O69: 0 | Q69: =IFERROR(IF($B$3="EUR",VLOOKUP(B69,DATA!$C$2:$H$11252,6,0),VLOOKUP(B69,DATA!$C$2:$N$101252,12,0)),"") ->  | R69: =IFERROR(VLOOKUP(B69,DATA!$C$2:$M$1001252,11,0),"") -> 
A70: 0 | D70: =IFERROR(VLOOKUP(C70,Farben_All!$A$1:$B$484,2,0),"") ->  | O70: 0 | Q70: =IFERROR(IF($B$3="EUR",VLOOKUP(B70,DATA!$C$2:$H$11252,6,0),VLOOKUP(B70,DATA!$C$2:$N$101252,12,0)),"") ->  | R70: =IFERROR(VLOOKUP(B70,DATA!$C$2:$M$1001252,11,0),"") -> 
A71: 0 | D71: =IFERROR(VLOOKUP(C71,Farben_All!$A$1:$B$484,2,0),"") ->  | O71: 0 | Q71: =IFERROR(IF($B$3="EUR",VLOOKUP(B71,DATA!$C$2:$H$11252,6,0),VLOOKUP(B71,DATA!$C$2:$N$101252,12,0)),"") ->  | R71: =IFERROR(VLOOKUP(B71,DATA!$C$2:$M$1001252,11,0),"") -> 
A72: 0 | D72: =IFERROR(VLOOKUP(C72,Farben_All!$A$1:$B$484,2,0),"") ->  | O72: 0 | Q72: =IFERROR(IF($B$3="EUR",VLOOKUP(B72,DATA!$C$2:$H$11252,6,0),VLOOKUP(B72,DATA!$C$2:$N$101252,12,0)),"") ->  | R72: =IFERROR(VLOOKUP(B72,DATA!$C$2:$M$1001252,11,0),"") -> 
A73: 0 | D73: =IFERROR(VLOOKUP(C73,Farben_All!$A$1:$B$484,2,0),"") ->  | O73: 0 | Q73: =IFERROR(IF($B$3="EUR",VLOOKUP(B73,DATA!$C$2:$H$11252,6,0),VLOOKUP(B73,DATA!$C$2:$N$101252,12,0)),"") ->  | R73: =IFERROR(VLOOKUP(B73,DATA!$C$2:$M$1001252,11,0),"") -> 
A74: 0 | D74: =IFERROR(VLOOKUP(C74,Farben_All!$A$1:$B$484,2,0),"") ->  | O74: =SUM(E74:N74) -> 0 | Q74: =IFERROR(IF($B$3="EUR",VLOOKUP(B74,DATA!$C$2:$H$11252,6,0),VLOOKUP(B74,DATA!$C$2:$N$101252,12,0)),"") ->  | R74: =IFERROR(VLOOKUP(B74,DATA!$C$2:$M$1001252,11,0),"") -> 
A75: 0 | D75: =IFERROR(VLOOKUP(C75,Farben_All!$A$1:$B$484,2,0),"") ->  | O75: 0 | Q75: =IFERROR(IF($B$3="EUR",VLOOKUP(B75,DATA!$C$2:$H$11252,6,0),VLOOKUP(B75,DATA!$C$2:$N$101252,12,0)),"") ->  | R75: =IFERROR(VLOOKUP(B75,DATA!$C$2:$M$1001252,11,0),"") -> 
A76: 0 | D76: =IFERROR(VLOOKUP(C76,Farben_All!$A$1:$B$484,2,0),"") ->  | O76: 0 | Q76: =IFERROR(IF($B$3="EUR",VLOOKUP(B76,DATA!$C$2:$H$11252,6,0),VLOOKUP(B76,DATA!$C$2:$N$101252,12,0)),"") ->  | R76: =IFERROR(VLOOKUP(B76,DATA!$C$2:$M$1001252,11,0),"") -> 
A77: 0 | D77: =IFERROR(VLOOKUP(C77,Farben_All!$A$1:$B$484,2,0),"") ->  | O77: 0 | P77: =IFERROR(ROUND(Q77/$P$4,2),"") ->  | Q77: =IFERROR(IF($B$3="EUR",VLOOKUP(B77,DATA!$C$2:$H$11252,6,0),VLOOKUP(B77,DATA!$C$2:$N$101252,12,0)),"") ->  | R77: =IFERROR(VLOOKUP(B77,DATA!$C$2:$M$1001252,11,0),"") -> 
A78: 0 | D78: =IFERROR(VLOOKUP(C78,Farben_All!$A$1:$B$484,2,0),"") ->  | O78: 0 | Q78: =IFERROR(IF($B$3="EUR",VLOOKUP(B78,DATA!$C$2:$H$11252,6,0),VLOOKUP(B78,DATA!$C$2:$N$101252,12,0)),"") ->  | R78: =IFERROR(VLOOKUP(B78,DATA!$C$2:$M$1001252,11,0),"") -> 
A79: 0 | D79: =IFERROR(VLOOKUP(C79,Farben_All!$A$1:$B$484,2,0),"") ->  | O79: 0 | Q79: =IFERROR(IF($B$3="EUR",VLOOKUP(B79,DATA!$C$2:$H$11252,6,0),VLOOKUP(B79,DATA!$C$2:$N$101252,12,0)),"") ->  | R79: =IFERROR(VLOOKUP(B79,DATA!$C$2:$M$1001252,11,0),"") -> 
A80: 0 | D80: =IFERROR(VLOOKUP(C80,Farben_All!$A$1:$B$484,2,0),"") ->  | O80: 0 | Q80: =IFERROR(IF($B$3="EUR",VLOOKUP(B80,DATA!$C$2:$H$11252,6,0),VLOOKUP(B80,DATA!$C$2:$N$101252,12,0)),"") ->  | R80: =IFERROR(VLOOKUP(B80,DATA!$C$2:$M$1001252,11,0),"") -> 
A81: 0 | D81: =IFERROR(VLOOKUP(C81,Farben_All!$A$1:$B$484,2,0),"") ->  | O81: 0 | Q81: =IFERROR(IF($B$3="EUR",VLOOKUP(B81,DATA!$C$2:$H$11252,6,0),VLOOKUP(B81,DATA!$C$2:$N$101252,12,0)),"") ->  | R81: =IFERROR(VLOOKUP(B81,DATA!$C$2:$M$1001252,11,0),"") -> 
A82: 0 | D82: =IFERROR(VLOOKUP(C82,Farben_All!$A$1:$B$484,2,0),"") ->  | O82: 0 | Q82: =IFERROR(IF($B$3="EUR",VLOOKUP(B82,DATA!$C$2:$H$11252,6,0),VLOOKUP(B82,DATA!$C$2:$N$101252,12,0)),"") ->  | R82: =IFERROR(VLOOKUP(B82,DATA!$C$2:$M$1001252,11,0),"") -> 
A83: 0 | D83: =IFERROR(VLOOKUP(C83,Farben_All!$A$1:$B$484,2,0),"") ->  | O83: 0 | Q83: =IFERROR(IF($B$3="EUR",VLOOKUP(B83,DATA!$C$2:$H$11252,6,0),VLOOKUP(B83,DATA!$C$2:$N$101252,12,0)),"") ->  | R83: =IFERROR(VLOOKUP(B83,DATA!$C$2:$M$1001252,11,0),"") -> 
A84: 0 | D84: =IFERROR(VLOOKUP(C84,Farben_All!$A$1:$B$484,2,0),"") ->  | O84: 0 | Q84: =IFERROR(IF($B$3="EUR",VLOOKUP(B84,DATA!$C$2:$H$11252,6,0),VLOOKUP(B84,DATA!$C$2:$N$101252,12,0)),"") ->  | R84: =IFERROR(VLOOKUP(B84,DATA!$C$2:$M$1001252,11,0),"") -> 
A85: 0 | D85: =IFERROR(VLOOKUP(C85,Farben_All!$A$1:$B$484,2,0),"") ->  | O85: 0 | Q85: =IFERROR(IF($B$3="EUR",VLOOKUP(B85,DATA!$C$2:$H$11252,6,0),VLOOKUP(B85,DATA!$C$2:$N$101252,12,0)),"") ->  | R85: =IFERROR(VLOOKUP(B85,DATA!$C$2:$M$1001252,11,0),"") -> 
A86: 0 | D86: =IFERROR(VLOOKUP(C86,Farben_All!$A$1:$B$484,2,0),"") ->  | O86: 0 | Q86: =IFERROR(IF($B$3="EUR",VLOOKUP(B86,DATA!$C$2:$H$11252,6,0),VLOOKUP(B86,DATA!$C$2:$N$101252,12,0)),"") ->  | R86: =IFERROR(VLOOKUP(B86,DATA!$C$2:$M$1001252,11,0),"") -> 
A87: 0 | D87: =IFERROR(VLOOKUP(C87,Farben_All!$A$1:$B$484,2,0),"") ->  | O87: 0 | Q87: =IFERROR(IF($B$3="EUR",VLOOKUP(B87,DATA!$C$2:$H$11252,6,0),VLOOKUP(B87,DATA!$C$2:$N$101252,12,0)),"") ->  | R87: =IFERROR(VLOOKUP(B87,DATA!$C$2:$M$1001252,11,0),"") -> 
A88: 0 | D88: =IFERROR(VLOOKUP(C88,Farben_All!$A$1:$B$484,2,0),"") ->  | O88: 0 | Q88: =IFERROR(IF($B$3="EUR",VLOOKUP(B88,DATA!$C$2:$H$11252,6,0),VLOOKUP(B88,DATA!$C$2:$N$101252,12,0)),"") ->  | R88: =IFERROR(VLOOKUP(B88,DATA!$C$2:$M$1001252,11,0),"") -> 
A89: 0 | D89: =IFERROR(VLOOKUP(C89,Farben_All!$A$1:$B$484,2,0),"") ->  | O89: 0 | Q89: =IFERROR(IF($B$3="EUR",VLOOKUP(B89,DATA!$C$2:$H$11252,6,0),VLOOKUP(B89,DATA!$C$2:$N$101252,12,0)),"") ->  | R89: =IFERROR(VLOOKUP(B89,DATA!$C$2:$M$1001252,11,0),"") -> 
A90: 0 | D90: =IFERROR(VLOOKUP(C90,Farben_All!$A$1:$B$484,2,0),"") ->  | O90: 0 | Q90: =IFERROR(IF($B$3="EUR",VLOOKUP(B90,DATA!$C$2:$H$11252,6,0),VLOOKUP(B90,DATA!$C$2:$N$101252,12,0)),"") ->  | R90: =IFERROR(VLOOKUP(B90,DATA!$C$2:$M$1001252,11,0),"") -> 
A91: 0 | D91: =IFERROR(VLOOKUP(C91,Farben_All!$A$1:$B$484,2,0),"") ->  | O91: 0 | Q91: =IFERROR(IF($B$3="EUR",VLOOKUP(B91,DATA!$C$2:$H$11252,6,0),VLOOKUP(B91,DATA!$C$2:$N$101252,12,0)),"") ->  | R91: =IFERROR(VLOOKUP(B91,DATA!$C$2:$M$1001252,11,0),"") -> 
A92: 0 | D92: =IFERROR(VLOOKUP(C92,Farben_All!$A$1:$B$484,2,0),"") ->  | O92: 0 | Q92: =IFERROR(IF($B$3="EUR",VLOOKUP(B92,DATA!$C$2:$H$11252,6,0),VLOOKUP(B92,DATA!$C$2:$N$101252,12,0)),"") ->  | R92: =IFERROR(VLOOKUP(B92,DATA!$C$2:$M$1001252,11,0),"") -> 
A93: 0 | D93: =IFERROR(VLOOKUP(C93,Farben_All!$A$1:$B$484,2,0),"") ->  | O93: 0 | Q93: =IFERROR(IF($B$3="EUR",VLOOKUP(B93,DATA!$C$2:$H$11252,6,0),VLOOKUP(B93,DATA!$C$2:$N$101252,12,0)),"") ->  | R93: =IFERROR(VLOOKUP(B93,DATA!$C$2:$M$1001252,11,0),"") -> 
A94: 0 | D94: =IFERROR(VLOOKUP(C94,Farben_All!$A$1:$B$484,2,0),"") ->  | O94: 0 | Q94: =IFERROR(IF($B$3="EUR",VLOOKUP(B94,DATA!$C$2:$H$11252,6,0),VLOOKUP(B94,DATA!$C$2:$N$101252,12,0)),"") ->  | R94: =IFERROR(VLOOKUP(B94,DATA!$C$2:$M$1001252,11,0),"") -> 
A95: 0 | D95: =IFERROR(VLOOKUP(C95,Farben_All!$A$1:$B$484,2,0),"") ->  | O95: 0 | Q95: =IFERROR(IF($B$3="EUR",VLOOKUP(B95,DATA!$C$2:$H$11252,6,0),VLOOKUP(B95,DATA!$C$2:$N$101252,12,0)),"") ->  | R95: =IFERROR(VLOOKUP(B95,DATA!$C$2:$M$1001252,11,0),"") -> 
A96: 0 | D96: =IFERROR(VLOOKUP(C96,Farben_All!$A$1:$B$484,2,0),"") ->  | O96: 0 | Q96: =IFERROR(IF($B$3="EUR",VLOOKUP(B96,DATA!$C$2:$H$11252,6,0),VLOOKUP(B96,DATA!$C$2:$N$101252,12,0)),"") ->  | R96: =IFERROR(VLOOKUP(B96,DATA!$C$2:$M$1001252,11,0),"") -> 
A97: 0 | D97: =IFERROR(VLOOKUP(C97,Farben_All!$A$1:$B$484,2,0),"") ->  | O97: 0 | Q97: =IFERROR(IF($B$3="EUR",VLOOKUP(B97,DATA!$C$2:$H$11252,6,0),VLOOKUP(B97,DATA!$C$2:$N$101252,12,0)),"") ->  | R97: =IFERROR(VLOOKUP(B97,DATA!$C$2:$M$1001252,11,0),"") -> 
A98: 0 | D98: =IFERROR(VLOOKUP(C98,Farben_All!$A$1:$B$484,2,0),"") ->  | O98: 0 | Q98: =IFERROR(IF($B$3="EUR",VLOOKUP(B98,DATA!$C$2:$H$11252,6,0),VLOOKUP(B98,DATA!$C$2:$N$101252,12,0)),"") ->  | R98: =IFERROR(VLOOKUP(B98,DATA!$C$2:$M$1001252,11,0),"") -> 
A99: 0 | D99: =IFERROR(VLOOKUP(C99,Farben_All!$A$1:$B$484,2,0),"") ->  | O99: 0 | Q99: =IFERROR(IF($B$3="EUR",VLOOKUP(B99,DATA!$C$2:$H$11252,6,0),VLOOKUP(B99,DATA!$C$2:$N$101252,12,0)),"") ->  | R99: =IFERROR(VLOOKUP(B99,DATA!$C$2:$M$1001252,11,0),"") -> 
A100: 0 | D100: =IFERROR(VLOOKUP(C100,Farben_All!$A$1:$B$484,2,0),"") ->  | O100: 0 | Q100: =IFERROR(IF($B$3="EUR",VLOOKUP(B100,DATA!$C$2:$H$11252,6,0),VLOOKUP(B100,DATA!$C$2:$N$101252,12,0)),"") ->  | R100: =IFERROR(VLOOKUP(B100,DATA!$C$2:$M$1001252,11,0),"") -> 
A101: 0 | D101: =IFERROR(VLOOKUP(C101,Farben_All!$A$1:$B$484,2,0),"") ->  | O101: 0 | Q101: =IFERROR(IF($B$3="EUR",VLOOKUP(B101,DATA!$C$2:$H$11252,6,0),VLOOKUP(B101,DATA!$C$2:$N$101252,12,0)),"") ->  | R101: =IFERROR(VLOOKUP(B101,DATA!$C$2:$M$1001252,11,0),"") -> 
A102: 0 | D102: =IFERROR(VLOOKUP(C102,Farben_All!$A$1:$B$484,2,0),"") ->  | O102: 0 | Q102: =IFERROR(IF($B$3="EUR",VLOOKUP(B102,DATA!$C$2:$H$11252,6,0),VLOOKUP(B102,DATA!$C$2:$N$101252,12,0)),"") ->  | R102: =IFERROR(VLOOKUP(B102,DATA!$C$2:$M$1001252,11,0),"") -> 
A103: 0 | D103: =IFERROR(VLOOKUP(C103,Farben_All!$A$1:$B$484,2,0),"") ->  | O103: 0 | Q103: =IFERROR(IF($B$3="EUR",VLOOKUP(B103,DATA!$C$2:$H$11252,6,0),VLOOKUP(B103,DATA!$C$2:$N$101252,12,0)),"") ->  | R103: =IFERROR(VLOOKUP(B103,DATA!$C$2:$M$1001252,11,0),"") -> 
A104: 0 | D104: =IFERROR(VLOOKUP(C104,Farben_All!$A$1:$B$484,2,0),"") ->  | O104: 0 | Q104: =IFERROR(IF($B$3="EUR",VLOOKUP(B104,DATA!$C$2:$H$11252,6,0),VLOOKUP(B104,DATA!$C$2:$N$101252,12,0)),"") ->  | R104: =IFERROR(VLOOKUP(B104,DATA!$C$2:$M$1001252,11,0),"") -> 
A105: 0 | D105: =IFERROR(VLOOKUP(C105,Farben_All!$A$1:$B$484,2,0),"") ->  | O105: 0 | Q105: =IFERROR(IF($B$3="EUR",VLOOKUP(B105,DATA!$C$2:$H$11252,6,0),VLOOKUP(B105,DATA!$C$2:$N$101252,12,0)),"") ->  | R105: =IFERROR(VLOOKUP(B105,DATA!$C$2:$M$1001252,11,0),"") -> 
A106: 0 | D106: =IFERROR(VLOOKUP(C106,Farben_All!$A$1:$B$484,2,0),"") ->  | O106: =SUM(E106:N106) -> 0 | Q106: =IFERROR(IF($B$3="EUR",VLOOKUP(B106,DATA!$C$2:$H$11252,6,0),VLOOKUP(B106,DATA!$C$2:$N$101252,12,0)),"") ->  | R106: =IFERROR(VLOOKUP(B106,DATA!$C$2:$M$1001252,11,0),"") -> 
A107: 0 | D107: =IFERROR(VLOOKUP(C107,Farben_All!$A$1:$B$484,2,0),"") ->  | O107: 0 | Q107: =IFERROR(IF($B$3="EUR",VLOOKUP(B107,DATA!$C$2:$H$11252,6,0),VLOOKUP(B107,DATA!$C$2:$N$101252,12,0)),"") ->  | R107: =IFERROR(VLOOKUP(B107,DATA!$C$2:$M$1001252,11,0),"") -> 
A108: 0 | D108: =IFERROR(VLOOKUP(C108,Farben_All!$A$1:$B$484,2,0),"") ->  | O108: 0 | Q108: =IFERROR(IF($B$3="EUR",VLOOKUP(B108,DATA!$C$2:$H$11252,6,0),VLOOKUP(B108,DATA!$C$2:$N$101252,12,0)),"") ->  | R108: =IFERROR(VLOOKUP(B108,DATA!$C$2:$M$1001252,11,0),"") -> 
A109: 0 | D109: =IFERROR(VLOOKUP(C109,Farben_All!$A$1:$B$484,2,0),"") ->  | O109: 0 | Q109: =IFERROR(IF($B$3="EUR",VLOOKUP(B109,DATA!$C$2:$H$11252,6,0),VLOOKUP(B109,DATA!$C$2:$N$101252,12,0)),"") ->  | R109: =IFERROR(VLOOKUP(B109,DATA!$C$2:$M$1001252,11,0),"") -> 
A110: 0 | D110: =IFERROR(VLOOKUP(C110,Farben_All!$A$1:$B$484,2,0),"") ->  | O110: 0 | Q110: =IFERROR(IF($B$3="EUR",VLOOKUP(B110,DATA!$C$2:$H$11252,6,0),VLOOKUP(B110,DATA!$C$2:$N$101252,12,0)),"") ->  | R110: =IFERROR(VLOOKUP(B110,DATA!$C$2:$M$1001252,11,0),"") -> 
A111: 0 | D111: =IFERROR(VLOOKUP(C111,Farben_All!$A$1:$B$484,2,0),"") ->  | O111: 0 | Q111: =IFERROR(IF($B$3="EUR",VLOOKUP(B111,DATA!$C$2:$H$11252,6,0),VLOOKUP(B111,DATA!$C$2:$N$101252,12,0)),"") ->  | R111: =IFERROR(VLOOKUP(B111,DATA!$C$2:$M$1001252,11,0),"") -> 
A112: 0 | D112: =IFERROR(VLOOKUP(C112,Farben_All!$A$1:$B$484,2,0),"") ->  | O112: 0 | Q112: =IFERROR(IF($B$3="EUR",VLOOKUP(B112,DATA!$C$2:$H$11252,6,0),VLOOKUP(B112,DATA!$C$2:$N$101252,12,0)),"") ->  | R112: =IFERROR(VLOOKUP(B112,DATA!$C$2:$M$1001252,11,0),"") -> 
A113: 0 | D113: =IFERROR(VLOOKUP(C113,Farben_All!$A$1:$B$484,2,0),"") ->  | O113: 0 | Q113: =IFERROR(IF($B$3="EUR",VLOOKUP(B113,DATA!$C$2:$H$11252,6,0),VLOOKUP(B113,DATA!$C$2:$N$101252,12,0)),"") ->  | R113: =IFERROR(VLOOKUP(B113,DATA!$C$2:$M$1001252,11,0),"") -> 
A114: 0 | D114: =IFERROR(VLOOKUP(C114,Farben_All!$A$1:$B$484,2,0),"") ->  | O114: 0 | Q114: =IFERROR(IF($B$3="EUR",VLOOKUP(B114,DATA!$C$2:$H$11252,6,0),VLOOKUP(B114,DATA!$C$2:$N$101252,12,0)),"") ->  | R114: =IFERROR(VLOOKUP(B114,DATA!$C$2:$M$1001252,11,0),"") -> 
A115: 0 | D115: =IFERROR(VLOOKUP(C115,Farben_All!$A$1:$B$484,2,0),"") ->  | O115: 0 | Q115: =IFERROR(IF($B$3="EUR",VLOOKUP(B115,DATA!$C$2:$H$11252,6,0),VLOOKUP(B115,DATA!$C$2:$N$101252,12,0)),"") ->  | R115: =IFERROR(VLOOKUP(B115,DATA!$C$2:$M$1001252,11,0),"") -> 
A116: 0 | D116: =IFERROR(VLOOKUP(C116,Farben_All!$A$1:$B$484,2,0),"") ->  | O116: 0 | Q116: =IFERROR(IF($B$3="EUR",VLOOKUP(B116,DATA!$C$2:$H$11252,6,0),VLOOKUP(B116,DATA!$C$2:$N$101252,12,0)),"") ->  | R116: =IFERROR(VLOOKUP(B116,DATA!$C$2:$M$1001252,11,0),"") -> 
A117: 0 | D117: =IFERROR(VLOOKUP(C117,Farben_All!$A$1:$B$484,2,0),"") ->  | O117: 0 | Q117: =IFERROR(IF($B$3="EUR",VLOOKUP(B117,DATA!$C$2:$H$11252,6,0),VLOOKUP(B117,DATA!$C$2:$N$101252,12,0)),"") ->  | R117: =IFERROR(VLOOKUP(B117,DATA!$C$2:$M$1001252,11,0),"") -> 
A118: 0 | D118: =IFERROR(VLOOKUP(C118,Farben_All!$A$1:$B$484,2,0),"") ->  | O118: 0 | Q118: =IFERROR(IF($B$3="EUR",VLOOKUP(B118,DATA!$C$2:$H$11252,6,0),VLOOKUP(B118,DATA!$C$2:$N$101252,12,0)),"") ->  | R118: =IFERROR(VLOOKUP(B118,DATA!$C$2:$M$1001252,11,0),"") -> 
A119: 0 | D119: =IFERROR(VLOOKUP(C119,Farben_All!$A$1:$B$484,2,0),"") ->  | O119: 0 | Q119: =IFERROR(IF($B$3="EUR",VLOOKUP(B119,DATA!$C$2:$H$11252,6,0),VLOOKUP(B119,DATA!$C$2:$N$101252,12,0)),"") ->  | R119: =IFERROR(VLOOKUP(B119,DATA!$C$2:$M$1001252,11,0),"") -> 
A120: 0 | D120: =IFERROR(VLOOKUP(C120,Farben_All!$A$1:$B$484,2,0),"") ->  | O120: 0 | Q120: =IFERROR(IF($B$3="EUR",VLOOKUP(B120,DATA!$C$2:$H$11252,6,0),VLOOKUP(B120,DATA!$C$2:$N$101252,12,0)),"") ->  | R120: =IFERROR(VLOOKUP(B120,DATA!$C$2:$M$1001252,11,0),"") -> 
A121: 0 | D121: =IFERROR(VLOOKUP(C121,Farben_All!$A$1:$B$484,2,0),"") ->  | O121: 0 | Q121: =IFERROR(IF($B$3="EUR",VLOOKUP(B121,DATA!$C$2:$H$11252,6,0),VLOOKUP(B121,DATA!$C$2:$N$101252,12,0)),"") ->  | R121: =IFERROR(VLOOKUP(B121,DATA!$C$2:$M$1001252,11,0),"") -> 
A122: 0 | D122: =IFERROR(VLOOKUP(C122,Farben_All!$A$1:$B$484,2,0),"") ->  | O122: 0 | Q122: =IFERROR(IF($B$3="EUR",VLOOKUP(B122,DATA!$C$2:$H$11252,6,0),VLOOKUP(B122,DATA!$C$2:$N$101252,12,0)),"") ->  | R122: =IFERROR(VLOOKUP(B122,DATA!$C$2:$M$1001252,11,0),"") -> 
A123: 0 | D123: =IFERROR(VLOOKUP(C123,Farben_All!$A$1:$B$484,2,0),"") ->  | O123: 0 | Q123: =IFERROR(IF($B$3="EUR",VLOOKUP(B123,DATA!$C$2:$H$11252,6,0),VLOOKUP(B123,DATA!$C$2:$N$101252,12,0)),"") ->  | R123: =IFERROR(VLOOKUP(B123,DATA!$C$2:$M$1001252,11,0),"") -> 
A124: 0 | D124: =IFERROR(VLOOKUP(C124,Farben_All!$A$1:$B$484,2,0),"") ->  | O124: 0 | Q124: =IFERROR(IF($B$3="EUR",VLOOKUP(B124,DATA!$C$2:$H$11252,6,0),VLOOKUP(B124,DATA!$C$2:$N$101252,12,0)),"") ->  | R124: =IFERROR(VLOOKUP(B124,DATA!$C$2:$M$1001252,11,0),"") -> 
A125: 0 | D125: =IFERROR(VLOOKUP(C125,Farben_All!$A$1:$B$484,2,0),"") ->  | O125: 0 | Q125: =IFERROR(IF($B$3="EUR",VLOOKUP(B125,DATA!$C$2:$H$11252,6,0),VLOOKUP(B125,DATA!$C$2:$N$101252,12,0)),"") ->  | R125: =IFERROR(VLOOKUP(B125,DATA!$C$2:$M$1001252,11,0),"") -> 
A126: 0 | D126: =IFERROR(VLOOKUP(C126,Farben_All!$A$1:$B$484,2,0),"") ->  | O126: 0 | Q126: =IFERROR(IF($B$3="EUR",VLOOKUP(B126,DATA!$C$2:$H$11252,6,0),VLOOKUP(B126,DATA!$C$2:$N$101252,12,0)),"") ->  | R126: =IFERROR(VLOOKUP(B126,DATA!$C$2:$M$1001252,11,0),"") -> 
A127: 0 | D127: =IFERROR(VLOOKUP(C127,Farben_All!$A$1:$B$484,2,0),"") ->  | O127: 0 | Q127: =IFERROR(IF($B$3="EUR",VLOOKUP(B127,DATA!$C$2:$H$11252,6,0),VLOOKUP(B127,DATA!$C$2:$N$101252,12,0)),"") ->  | R127: =IFERROR(VLOOKUP(B127,DATA!$C$2:$M$1001252,11,0),"") -> 
A128: 0 | D128: =IFERROR(VLOOKUP(C128,Farben_All!$A$1:$B$484,2,0),"") ->  | O128: 0 | Q128: =IFERROR(IF($B$3="EUR",VLOOKUP(B128,DATA!$C$2:$H$11252,6,0),VLOOKUP(B128,DATA!$C$2:$N$101252,12,0)),"") ->  | R128: =IFERROR(VLOOKUP(B128,DATA!$C$2:$M$1001252,11,0),"") -> 
A129: 0 | D129: =IFERROR(VLOOKUP(C129,Farben_All!$A$1:$B$484,2,0),"") ->  | O129: 0 | Q129: =IFERROR(IF($B$3="EUR",VLOOKUP(B129,DATA!$C$2:$H$11252,6,0),VLOOKUP(B129,DATA!$C$2:$N$101252,12,0)),"") ->  | R129: =IFERROR(VLOOKUP(B129,DATA!$C$2:$M$1001252,11,0),"") -> 
A130: 0 | D130: =IFERROR(VLOOKUP(C130,Farben_All!$A$1:$B$484,2,0),"") ->  | O130: 0 | Q130: =IFERROR(IF($B$3="EUR",VLOOKUP(B130,DATA!$C$2:$H$11252,6,0),VLOOKUP(B130,DATA!$C$2:$N$101252,12,0)),"") ->  | R130: =IFERROR(VLOOKUP(B130,DATA!$C$2:$M$1001252,11,0),"") -> 
A131: 0 | D131: =IFERROR(VLOOKUP(C131,Farben_All!$A$1:$B$484,2,0),"") ->  | O131: 0 | Q131: =IFERROR(IF($B$3="EUR",VLOOKUP(B131,DATA!$C$2:$H$11252,6,0),VLOOKUP(B131,DATA!$C$2:$N$101252,12,0)),"") ->  | R131: =IFERROR(VLOOKUP(B131,DATA!$C$2:$M$1001252,11,0),"") -> 
A132: 0 | D132: =IFERROR(VLOOKUP(C132,Farben_All!$A$1:$B$484,2,0),"") ->  | O132: 0 | Q132: =IFERROR(IF($B$3="EUR",VLOOKUP(B132,DATA!$C$2:$H$11252,6,0),VLOOKUP(B132,DATA!$C$2:$N$101252,12,0)),"") ->  | R132: =IFERROR(VLOOKUP(B132,DATA!$C$2:$M$1001252,11,0),"") -> 
A133: 0 | D133: =IFERROR(VLOOKUP(C133,Farben_All!$A$1:$B$484,2,0),"") ->  | O133: 0 | Q133: =IFERROR(IF($B$3="EUR",VLOOKUP(B133,DATA!$C$2:$H$11252,6,0),VLOOKUP(B133,DATA!$C$2:$N$101252,12,0)),"") ->  | R133: =IFERROR(VLOOKUP(B133,DATA!$C$2:$M$1001252,11,0),"") -> 
A134: 0 | D134: =IFERROR(VLOOKUP(C134,Farben_All!$A$1:$B$484,2,0),"") ->  | O134: 0 | Q134: =IFERROR(IF($B$3="EUR",VLOOKUP(B134,DATA!$C$2:$H$11252,6,0),VLOOKUP(B134,DATA!$C$2:$N$101252,12,0)),"") ->  | R134: =IFERROR(VLOOKUP(B134,DATA!$C$2:$M$1001252,11,0),"") -> 
A135: 0 | D135: =IFERROR(VLOOKUP(C135,Farben_All!$A$1:$B$484,2,0),"") ->  | O135: 0 | Q135: =IFERROR(IF($B$3="EUR",VLOOKUP(B135,DATA!$C$2:$H$11252,6,0),VLOOKUP(B135,DATA!$C$2:$N$101252,12,0)),"") ->  | R135: =IFERROR(VLOOKUP(B135,DATA!$C$2:$M$1001252,11,0),"") -> 
A136: 0 | D136: =IFERROR(VLOOKUP(C136,Farben_All!$A$1:$B$484,2,0),"") ->  | O136: 0 | Q136: =IFERROR(IF($B$3="EUR",VLOOKUP(B136,DATA!$C$2:$H$11252,6,0),VLOOKUP(B136,DATA!$C$2:$N$101252,12,0)),"") ->  | R136: =IFERROR(VLOOKUP(B136,DATA!$C$2:$M$1001252,11,0),"") -> 
A137: 0 | D137: =IFERROR(VLOOKUP(C137,Farben_All!$A$1:$B$484,2,0),"") ->  | O137: 0 | Q137: =IFERROR(IF($B$3="EUR",VLOOKUP(B137,DATA!$C$2:$H$11252,6,0),VLOOKUP(B137,DATA!$C$2:$N$101252,12,0)),"") ->  | R137: =IFERROR(VLOOKUP(B137,DATA!$C$2:$M$1001252,11,0),"") -> 
A138: 0 | D138: =IFERROR(VLOOKUP(C138,Farben_All!$A$1:$B$484,2,0),"") ->  | O138: =SUM(E138:N138) -> 0 | P138: =IFERROR(ROUND(Q138/$P$4,2),"") ->  | Q138: =IFERROR(IF($B$3="EUR",VLOOKUP(B138,DATA!$C$2:$H$11252,6,0),VLOOKUP(B138,DATA!$C$2:$N$101252,12,0)),"") ->  | R138: =IFERROR(VLOOKUP(B138,DATA!$C$2:$M$1001252,11,0),"") -> 
A139: 0 | D139: =IFERROR(VLOOKUP(C139,Farben_All!$A$1:$B$484,2,0),"") ->  | O139: =SUM(E139:N139) -> 0 | Q139: =IFERROR(IF($B$3="EUR",VLOOKUP(B139,DATA!$C$2:$H$11252,6,0),VLOOKUP(B139,DATA!$C$2:$N$101252,12,0)),"") ->  | R139: =IFERROR(VLOOKUP(B139,DATA!$C$2:$M$1001252,11,0),"") -> 
A140: 0 | D140: =IFERROR(VLOOKUP(C140,Farben_All!$A$1:$B$484,2,0),"") ->  | O140: 0 | Q140: =IFERROR(IF($B$3="EUR",VLOOKUP(B140,DATA!$C$2:$H$11252,6,0),VLOOKUP(B140,DATA!$C$2:$N$101252,12,0)),"") ->  | R140: =IFERROR(VLOOKUP(B140,DATA!$C$2:$M$1001252,11,0),"") -> 
A141: 0 | D141: =IFERROR(VLOOKUP(C141,Farben_All!$A$1:$B$484,2,0),"") ->  | O141: 0 | Q141: =IFERROR(IF($B$3="EUR",VLOOKUP(B141,DATA!$C$2:$H$11252,6,0),VLOOKUP(B141,DATA!$C$2:$N$101252,12,0)),"") ->  | R141: =IFERROR(VLOOKUP(B141,DATA!$C$2:$M$1001252,11,0),"") -> 
A142: 0 | D142: =IFERROR(VLOOKUP(C142,Farben_All!$A$1:$B$484,2,0),"") ->  | O142: 0 | Q142: =IFERROR(IF($B$3="EUR",VLOOKUP(B142,DATA!$C$2:$H$11252,6,0),VLOOKUP(B142,DATA!$C$2:$N$101252,12,0)),"") ->  | R142: =IFERROR(VLOOKUP(B142,DATA!$C$2:$M$1001252,11,0),"") -> 
A143: 0 | D143: =IFERROR(VLOOKUP(C143,Farben_All!$A$1:$B$484,2,0),"") ->  | O143: 0 | Q143: =IFERROR(IF($B$3="EUR",VLOOKUP(B143,DATA!$C$2:$H$11252,6,0),VLOOKUP(B143,DATA!$C$2:$N$101252,12,0)),"") ->  | R143: =IFERROR(VLOOKUP(B143,DATA!$C$2:$M$1001252,11,0),"") -> 
A144: 0 | D144: =IFERROR(VLOOKUP(C144,Farben_All!$A$1:$B$484,2,0),"") ->  | O144: 0 | Q144: =IFERROR(IF($B$3="EUR",VLOOKUP(B144,DATA!$C$2:$H$11252,6,0),VLOOKUP(B144,DATA!$C$2:$N$101252,12,0)),"") ->  | R144: =IFERROR(VLOOKUP(B144,DATA!$C$2:$M$1001252,11,0),"") -> 
A145: 0 | D145: =IFERROR(VLOOKUP(C145,Farben_All!$A$1:$B$484,2,0),"") ->  | O145: 0 | Q145: =IFERROR(IF($B$3="EUR",VLOOKUP(B145,DATA!$C$2:$H$11252,6,0),VLOOKUP(B145,DATA!$C$2:$N$101252,12,0)),"") ->  | R145: =IFERROR(VLOOKUP(B145,DATA!$C$2:$M$1001252,11,0),"") -> 
A146: 0 | D146: =IFERROR(VLOOKUP(C146,Farben_All!$A$1:$B$484,2,0),"") ->  | O146: 0 | Q146: =IFERROR(IF($B$3="EUR",VLOOKUP(B146,DATA!$C$2:$H$11252,6,0),VLOOKUP(B146,DATA!$C$2:$N$101252,12,0)),"") ->  | R146: =IFERROR(VLOOKUP(B146,DATA!$C$2:$M$1001252,11,0),"") -> 
A147: 0 | D147: =IFERROR(VLOOKUP(C147,Farben_All!$A$1:$B$484,2,0),"") ->  | O147: 0 | Q147: =IFERROR(IF($B$3="EUR",VLOOKUP(B147,DATA!$C$2:$H$11252,6,0),VLOOKUP(B147,DATA!$C$2:$N$101252,12,0)),"") ->  | R147: =IFERROR(VLOOKUP(B147,DATA!$C$2:$M$1001252,11,0),"") -> 
A148: 0 | D148: =IFERROR(VLOOKUP(C148,Farben_All!$A$1:$B$484,2,0),"") ->  | O148: 0 | Q148: =IFERROR(IF($B$3="EUR",VLOOKUP(B148,DATA!$C$2:$H$11252,6,0),VLOOKUP(B148,DATA!$C$2:$N$101252,12,0)),"") ->  | R148: =IFERROR(VLOOKUP(B148,DATA!$C$2:$M$1001252,11,0),"") -> 
A149: 0 | D149: =IFERROR(VLOOKUP(C149,Farben_All!$A$1:$B$484,2,0),"") ->  | O149: 0 | Q149: =IFERROR(IF($B$3="EUR",VLOOKUP(B149,DATA!$C$2:$H$11252,6,0),VLOOKUP(B149,DATA!$C$2:$N$101252,12,0)),"") ->  | R149: =IFERROR(VLOOKUP(B149,DATA!$C$2:$M$1001252,11,0),"") -> 
A150: 0 | D150: =IFERROR(VLOOKUP(C150,Farben_All!$A$1:$B$484,2,0),"") ->  | O150: 0 | Q150: =IFERROR(IF($B$3="EUR",VLOOKUP(B150,DATA!$C$2:$H$11252,6,0),VLOOKUP(B150,DATA!$C$2:$N$101252,12,0)),"") ->  | R150: =IFERROR(VLOOKUP(B150,DATA!$C$2:$M$1001252,11,0),"") -> 
A151: 0 | D151: =IFERROR(VLOOKUP(C151,Farben_All!$A$1:$B$484,2,0),"") ->  | O151: 0 | Q151: =IFERROR(IF($B$3="EUR",VLOOKUP(B151,DATA!$C$2:$H$11252,6,0),VLOOKUP(B151,DATA!$C$2:$N$101252,12,0)),"") ->  | R151: =IFERROR(VLOOKUP(B151,DATA!$C$2:$M$1001252,11,0),"") -> 
A152: 0 | D152: =IFERROR(VLOOKUP(C152,Farben_All!$A$1:$B$484,2,0),"") ->  | O152: 0 | Q152: =IFERROR(IF($B$3="EUR",VLOOKUP(B152,DATA!$C$2:$H$11252,6,0),VLOOKUP(B152,DATA!$C$2:$N$101252,12,0)),"") ->  | R152: =IFERROR(VLOOKUP(B152,DATA!$C$2:$M$1001252,11,0),"") -> 
A153: 0 | D153: =IFERROR(VLOOKUP(C153,Farben_All!$A$1:$B$484,2,0),"") ->  | O153: 0 | Q153: =IFERROR(IF($B$3="EUR",VLOOKUP(B153,DATA!$C$2:$H$11252,6,0),VLOOKUP(B153,DATA!$C$2:$N$101252,12,0)),"") ->  | R153: =IFERROR(VLOOKUP(B153,DATA!$C$2:$M$1001252,11,0),"") -> 

Sheet Export
A2: 000003723 | B2: Children ca-soft organic cotton Quarter 3p | C2: 4300 | D2: chalk pink melange | E2: 27/30 | F2: Artikel | G2: 4052171316523 | H2: 3
A3: 000003723 | B3: Children ca-soft organic cotton Quarter 3p | C3: 4300 | D3: chalk pink melange | E3: 31/34 | F3: Artikel | G3: 4052171316530 | H3: 6
A4: 000003723 | B4: Children ca-soft organic cotton Quarter 3p | C4: 4300 | D4: chalk pink melange | E4: 35/38 | F4: Artikel | G4: 4052171316547 | H4: 6
A5: 000003723 | B5: Children ca-soft organic cotton Quarter 3p | C5: 4300 | D5: chalk pink melange | E5: 39/42 | F5: Artikel | G5: 4052171316554 | H5: 3
A6: 1146018 | B6: Children ca-soft Viscose Sneakers 2p | C6: 9200 | D6: fog melange | E6: 27/30 | F6: Artikel | G6: 4052171517043 | H6: 6
A7: 1146018 | B7: Children ca-soft Viscose Sneakers 2p | C7: 9200 | D7: fog melange | E7: 31/34 | F7: Artikel | G7: 4052171517050 | H7: 6
A8: 1146018 | B8: Children ca-soft Viscose Sneakers 2p | C8: 9200 | D8: fog melange | E8: 35/38 | F8: Artikel | G8: 4052171517067 | H8: 6
A9: 1146018 | B9: Children ca-soft Viscose Sneakers 2p | C9: 9200 | D9: fog melange | E9: 39/42 | F9: Artikel | G9: 4052171517074 | H9: 6
A10: S24809 | B10: Junior essentials sustainable Sneaker 5p | C10: 9303 | D10: light grey mix | E10: 27/30 | F10: Artikel | G10: 4052171536549 | H10: 3
A11: S24809 | B11: Junior essentials sustainable Sneaker 5p | C11: 9303 | D11: light grey mix | E11: 31/34 | F11: Artikel | G11: 4052171536556 | H11: 6
A12: S24809 | B12: Junior essentials sustainable Sneaker 5p | C12: 9303 | D12: light grey mix | E12: 31/34 | F12: Artikel | G12: 4052171536556 | H12: 3
A13: S24809 | B13: Junior essentials sustainable Sneaker 5p | C13: 9303 | D13: light grey mix | E13: 35/38 | F13: Artikel | G13: 4052171536563 | H13: 6
A14: S24809 | B14: Junior essentials sustainable Sneaker 5p | C14: 9303 | D14: light grey mix | E14: 35/38 | F14: Artikel | G14: 4052171536563 | H14: 3
A15: S24809 | B15: Junior essentials sustainable Sneaker 5p | C15: 9303 | D15: light grey mix | E15: 39/42 | F15: Artikel | G15: 4052171536570 | H15: 6
A16: SK42036 | B16: Girls mesh ventilation organic glow Quarter 3p | C16: 1001 | D16: white mix | E16: 27/30 | F16: Artikel | G16: 4052171473981 | H16: 3
A17: SK42036 | B17: Girls mesh ventilation organic glow Quarter 3p | C17: 1001 | D17: white mix | E17: 31/34 | F17: Artikel | G17: 4052171473998 | H17: 6
A18: SK42036 | B18: Girls mesh ventilation organic glow Quarter 3p | C18: 1001 | D18: white mix | E18: 35/38 | F18: Artikel | G18: 4052171474001 | H18: 6
A19: SK42036 | B19: Girls mesh ventilation organic glow Quarter 3p | C19: 1001 | D19: white mix | E19: 39/42 | F19: Artikel | G19: 4052171474018 | H19: 3
A20: 000003723 | B20: Children ca-soft organic cotton Quarter 3p | C20: 0008 | D20: anthracite | E20: 27/30 | F20: Artikel | G20: 4052171518828 | H20: 3
A21: 000003723 | B21: Children ca-soft organic cotton Quarter 3p | C21: 0008 | D21: anthracite | E21: 31/34 | F21: Artikel | G21: 4052171518835 | H21: 6
A22: 000003723 | B22: Children ca-soft organic cotton Quarter 3p | C22: 0008 | D22: anthracite | E22: 35/38 | F22: Artikel | G22: 4052171518842 | H22: 6
A23: 000003723 | B23: Children ca-soft organic cotton Quarter 3p | C23: 0008 | D23: anthracite | E23: 39/42 | F23: Artikel | G23: 4052171518859 | H23: 3
A24: 1146017 | B24: Children ca-soft organic cotton Sneakers 2p | C24: 4015 | D24: silver peony | E24: 27/30 | F24: Artikel | G24: 4052171516008 | H24: 6
A25: 1146017 | B25: Children ca-soft organic cotton Sneakers 2p | C25: 4015 | D25: silver peony | E25: 31/34 | F25: Artikel | G25: 4052171516015 | H25: 6
A26: 1146017 | B26: Children ca-soft organic cotton Sneakers 2p | C26: 4015 | D26: silver peony | E26: 31/34 | F26: Artikel | G26: 4052171516015 | H26: 6
A27: 1146017 | B27: Children ca-soft organic cotton Sneakers 2p | C27: 4015 | D27: silver peony | E27: 35/38 | F27: Artikel | G27: 4052171516022 | H27: 6
A28: S24809 | B28: Junior essentials sustainable Sneaker 5p | C28: 4303 | D28: chalk pink mix | E28: 27/30 | F28: Artikel | G28: 4052171537010 | H28: 3
A29: S24809 | B29: Junior essentials sustainable Sneaker 5p | C29: 4303 | D29: chalk pink mix | E29: 31/34 | F29: Artikel | G29: 4052171537027 | H29: 6
A30: S24809 | B30: Junior essentials sustainable Sneaker 5p | C30: 4303 | D30: chalk pink mix | E30: 31/34 | F30: Artikel | G30: 4052171537027 | H30: 6
A31: S24809 | B31: Junior essentials sustainable Sneaker 5p | C31: 4303 | D31: chalk pink mix | E31: 35/38 | F31: Artikel | G31: 4052171537034 | H31: 3
A32: S24809 | B32: Junior essentials sustainable Sneaker 5p | C32: 4303 | D32: chalk pink mix | E32: 35/38 | F32: Artikel | G32: 4052171537034 | H32: 6
A33: S24809 | B33: Junior essentials sustainable Sneaker 5p | C33: 4303 | D33: chalk pink mix | E33: 39/42 | F33: Artikel | G33: 4052171537041 | H33: 3
A34: SK42047 | B34: Girls micro cushioned Quarter 2p | C34: 0001 | D34: white | E34: 27/30 | F34: Artikel | G34: 4052171532244 | H34: 6
A35: SK42047 | B35: Girls micro cushioned Quarter 2p | C35: 0001 | D35: white | E35: 31/34 | F35: Artikel | G35: 4052171532251 | H35: 6
A36: SK42047 | B36: Girls micro cushioned Quarter 2p | C36: 0001 | D36: white | E36: 35/38 | F36: Artikel | G36: 4052171532268 | H36: 6
A37: SK42047 | B37: Girls micro cushioned Quarter 2p | C37: 0001 | D37: white | E37: 39/42 | F37: Artikel | G37: 4052171532275 | H37: 6
A38: 000003701 | B38: Children ca-soft organic cotton Socks 3p | C38: 4300 | D38: chalk pink melange | E38: 27/30 | F38: Artikel | G38: 4052171225382 | H38: 3
A39: 000003701 | B39: Children ca-soft organic cotton Socks 3p | C39: 4300 | D39: chalk pink melange | E39: 31/34 | F39: Artikel | G39: 4052171225399 | H39: 6
A40: 000003701 | B40: Children ca-soft organic cotton Socks 3p | C40: 4300 | D40: chalk pink melange | E40: 35/38 | F40: Artikel | G40: 4052171225405 | H40: 6
A41: 000003701 | B41: Children ca-soft organic cotton Socks 3p | C41: 4300 | D41: chalk pink melange | E41: 39/42 | F41: Artikel | G41: 4052171225412 | H41: 3
A42: 1116013 | B42: Children ca-soft BCI cotton Quarters 4p | C42: 4454 | D42: phlox pink | E42: 27/30 | F42: Artikel | G42: 4052171513267 | H42: 3
A43: 1116013 | B43: Children ca-soft BCI cotton Quarters 4p | C43: 4454 | D43: phlox pink | E43: 31/34 | F43: Artikel | G43: 4052171513274 | H43: 3
A44: 1116013 | B44: Children ca-soft BCI cotton Quarters 4p | C44: 4454 | D44: phlox pink | E44: 35/38 | F44: Artikel | G44: 4052171513281 | H44: 3
A45: 1116013 | B45: Children ca-soft BCI cotton Quarters 4p | C45: 4454 | D45: phlox pink | E45: 39/42 | F45: Artikel | G45: 4052171513298 | H45: 3
A46: S20707 | B46: Junior originals organic smiley Socks 2p | C46: 0800 | D46: black white | E46: 27/30 | F46: Artikel | G46: 4052171528469 | H46: 3
A47: S20707 | B47: Junior originals organic smiley Socks 2p | C47: 0800 | D47: black white | E47: 31/34 | F47: Artikel | G47: 4052171528476 | H47: 6
A48: S20707 | B48: Junior originals organic smiley Socks 2p | C48: 0800 | D48: black white | E48: 35/38 | F48: Artikel | G48: 4052171528483 | H48: 6
A49: S20707 | B49: Junior originals organic smiley Socks 2p | C49: 0800 | D49: black white | E49: 39/42 | F49: Artikel | G49: 4052171528490 | H49: 3
A50: S20708 | B50: Junior silky touch sustainable heart Socks 3p | C50: 3311 | D50: paradise pink | E50: 31/34 | F50: Artikel | G50: 4052171529039 | H50: 3
A51: S20708 | B51: Junior silky touch sustainable heart Socks 3p | C51: 3311 | D51: paradise pink | E51: 35/38 | F51: Artikel | G51: 4052171529046 | H51: 3
A52: S20708 | B52: Junior silky touch sustainable heart Socks 3p | C52: 3311 | D52: paradise pink | E52: 39/42 | F52: Artikel | G52: 4052171529053 | H52: 3
A53: SK41082 | B53: Girls casual patterned Socks 3p | C53: 1001 | D53: white mix | E53: 27/30 | F53: Artikel | G53: 4052171545688 | H53: 3
A54: SK41082 | B54: Girls casual patterned Socks 3p | C54: 1001 | D54: white mix | E54: 31/34 | F54: Artikel | G54: 4052171545695 | H54: 6
A55: SK41082 | B55: Girls casual patterned Socks 3p | C55: 1001 | D55: white mix | E55: 35/38 | F55: Artikel | G55: 4052171545701 | H55: 6
A56: SK41082 | B56: Girls casual patterned Socks 3p | C56: 1001 | D56: white mix | E56: 39/42 | F56: Artikel | G56: 4052171545718 | H56: 3
A57: 000003101 | B57: Children ca-soft organic cotton Tights 1p | C57: 0002 | D57: offwhite | E57: 98/104 | F57: Artikel | G57: 4036329501221 | H57: 3
A58: 000003101 | B58: Children ca-soft organic cotton Tights 1p | C58: 0002 | D58: offwhite | E58: 110/116 | F58: Artikel | G58: 4036329501238 | H58: 6
A59: 000003101 | B59: Children ca-soft organic cotton Tights 1p | C59: 0002 | D59: offwhite | E59: 122/128 | F59: Artikel | G59: 4036329501245 | H59: 3
A60: 000003101 | B60: Children ca-soft organic cotton Tights 1p | C60: 0010 | D60: light grey | E60: 98/104 | F60: Artikel | G60: 4036329712184 | H60: 3
A61: 000003101 | B61: Children ca-soft organic cotton Tights 1p | C61: 0010 | D61: light grey | E61: 110/116 | F61: Artikel | G61: 4036329712191 | H61: 6
A62: 000003101 | B62: Children ca-soft organic cotton Tights 1p | C62: 0010 | D62: light grey | E62: 122/128 | F62: Artikel | G62: 4036329712207 | H62: 3
A63: 000003101 | B63: Children ca-soft organic cotton Tights 1p | C63: 0004 | D63: navy | E63: 98/104 | F63: Artikel | G63: 4036329501429 | H63: 3
A64: 000003101 | B64: Children ca-soft organic cotton Tights 1p | C64: 0004 | D64: navy | E64: 110/116 | F64: Artikel | G64: 4036329501436 | H64: 6
A65: 000003101 | B65: Children ca-soft organic cotton Tights 1p | C65: 0004 | D65: navy | E65: 122/128 | F65: Artikel | G65: 4036329501443 | H65: 3
A66: 000003101 | B66: Children ca-soft organic cotton Tights 1p | C66: 0005 | D66: black | E66: 98/104 | F66: Artikel | G66: 4052171225573 | H66: 3
A67: 000003101 | B67: Children ca-soft organic cotton Tights 1p | C67: 0005 | D67: black | E67: 110/116 | F67: Artikel | G67: 4052171225559 | H67: 6
A68: 000003101 | B68: Children ca-soft organic cotton Tights 1p | C68: 0005 | D68: black | E68: 122/128 | F68: Artikel | G68: 4036329510544 | H68: 3
A69: 1196000 | B69: Children fine sustainable Leggings 40 DEN 2p | C69: 4212 | D69: mauve | E69: 98/116 | F69: Artikel | G69: 4052171451187 | H69: 6
A70: 1196000 | B70: Children fine sustainable Leggings 40 DEN 2p | C70: 4212 | D70: mauve | E70: 122/140 | F70: Artikel | G70: 4052171451194 | H70: 3
A71: 1196000 | B71: Children fine sustainable Leggings 40 DEN 2p | C71: 5988 | D71: total eclipse | E71: 98/116 | F71: Artikel | G71: 4052171451217 | H71: 6
A72: 1196000 | B72: Children fine sustainable Leggings 40 DEN 2p | C72: 5988 | D72: total eclipse | E72: 122/140 | F72: Artikel | G72: 4052171451224 | H72: 3
A73: 1196000 | B73: Children fine sustainable Leggings 40 DEN 2p | C73: 9999 | D73: black | E73: 98/116 | F73: Artikel | G73: 4052171451248 | H73: 6
A74: 1196000 | B74: Children fine sustainable Leggings 40 DEN 2p | C74: 9999 | D74: black | E74: 122/140 | F74: Artikel | G74: 4052171451255 | H74: 3
A75: 000003125 | B75: Children fine Tights 40 DEN 2p | C75: 0001 | D75: white | E75: 98/116 | F75: Artikel | G75: 4052171102461 | H75: 6
A76: 000003125 | B76: Children fine Tights 40 DEN 2p | C76: 0001 | D76: white | E76: 122/140 | F76: Artikel | G76: 4052171102447 | H76: 3
A77: 000003125 | B77: Children fine Tights 40 DEN 2p | C77: 0002 | D77: offwhite | E77: 98/116 | F77: Artikel | G77: 4052171123640 | H77: 6
A78: 000003125 | B78: Children fine Tights 40 DEN 2p | C78: 0002 | D78: offwhite | E78: 122/140 | F78: Artikel | G78: 4052171123626 | H78: 3
A79: 000003101 | B79: Children ca-soft organic cotton Tights 1p | C79: 0002 | D79: offwhite | E79: 122/128 | F79: Artikel | G79: 4036329501245 | H79: 3
A80: 000003101 | B80: Children ca-soft organic cotton Tights 1p | C80: 0002 | D80: offwhite | E80: 134/146 | F80: Artikel | G80: 4036329501252 | H80: 6
A81: 000003101 | B81: Children ca-soft organic cotton Tights 1p | C81: 0002 | D81: offwhite | E81: 152/164 | F81: Artikel | G81: 4036329501269 | H81: 3
A82: 000003101 | B82: Children ca-soft organic cotton Tights 1p | C82: 0010 | D82: light grey | E82: 122/128 | F82: Artikel | G82: 4036329712207 | H82: 3
A83: 000003101 | B83: Children ca-soft organic cotton Tights 1p | C83: 0010 | D83: light grey | E83: 134/146 | F83: Artikel | G83: 4036329712214 | H83: 6
A84: 000003101 | B84: Children ca-soft organic cotton Tights 1p | C84: 0010 | D84: light grey | E84: 152/164 | F84: Artikel | G84: 4036329712245 | H84: 3
A85: 000003101 | B85: Children ca-soft organic cotton Tights 1p | C85: 0004 | D85: navy | E85: 122/128 | F85: Artikel | G85: 4036329501443 | H85: 3
A86: 000003101 | B86: Children ca-soft organic cotton Tights 1p | C86: 0004 | D86: navy | E86: 134/146 | F86: Artikel | G86: 4036329501450 | H86: 6
A87: 000003101 | B87: Children ca-soft organic cotton Tights 1p | C87: 0004 | D87: navy | E87: 152/164 | F87: Artikel | G87: 4036329501467 | H87: 3
A88: 000003101 | B88: Children ca-soft organic cotton Tights 1p | C88: 0005 | D88: black | E88: 122/128 | F88: Artikel | G88: 4036329510544 | H88: 3
A89: 000003101 | B89: Children ca-soft organic cotton Tights 1p | C89: 0005 | D89: black | E89: 134/146 | F89: Artikel | G89: 4036329510551 | H89: 6
A90: 000003101 | B90: Children ca-soft organic cotton Tights 1p | C90: 0005 | D90: black | E90: 152/164 | F90: Artikel | G90: 4036329510568 | H90: 3
A91: 1196000 | B91: Children fine sustainable Leggings 40 DEN 2p | C91: 4212 | D91: mauve | E91: 122/140 | F91: Artikel | G91: 4052171451194 | H91: 3
A92: 1196000 | B92: Children fine sustainable Leggings 40 DEN 2p | C92: 4212 | D92: mauve | E92: 146/164 | F92: Artikel | G92: 4052171451200 | H92: 6
A93: 1196000 | B93: Children fine sustainable Leggings 40 DEN 2p | C93: 5988 | D93: total eclipse | E93: 122/140 | F93: Artikel | G93: 4052171451224 | H93: 3
A94: 1196000 | B94: Children fine sustainable Leggings 40 DEN 2p | C94: 5988 | D94: total eclipse | E94: 146/164 | F94: Artikel | G94: 4052171451231 | H94: 6
A95: 1196000 | B95: Children fine sustainable Leggings 40 DEN 2p | C95: 9999 | D95: black | E95: 122/140 | F95: Artikel | G95: 4052171451255 | H95: 3
A96: 1196000 | B96: Children fine sustainable Leggings 40 DEN 2p | C96: 9999 | D96: black | E96: 146/164 | F96: Artikel | G96: 4052171451262 | H96: 6
A97: 000003125 | B97: Children fine Tights 40 DEN 2p | C97: 0001 | D97: white | E97: 122/140 | F97: Artikel | G97: 4052171102447 | H97: 3
A98: 000003125 | B98: Children fine Tights 40 DEN 2p | C98: 0001 | D98: white | E98: 146/164 | F98: Artikel | G98: 4052171102454 | H98: 6
A99: 000003125 | B99: Children fine Tights 40 DEN 2p | C99: 0002 | D99: offwhite | E99: 122/140 | F99: Artikel | G99: 4052171123626 | H99: 3
A100: 000003125 | B100: Children fine Tights 40 DEN 2p | C100: 0002 | D100: offwhite | E100: 146/164 | F100: Artikel | G100: 4052171123633 | H100: 6

Sheet KPI'S
A2: BESTÜCKUNGSPLAN - KPIs
A5: Kunde | E5: Saison
A7: Standort
A13: Bruttoumsatz / m² | C13: =G28/C17 -> 23754.654 | F13: Währung | G13: €
A16: Fläche | E16: KPIs
A17: Nettofläche (m²) | C17: 0.5 | E17: Menge | G17: =SUM(Liste!O8) -> 441
A18: Nahlager (%) | C18: 0.1 | E18: EK | G18: =Liste!P8 -> 0
E19: UVP | G19: =Liste!Q8 -> 3599.19
E20: Menge inkl. (Nah-) Lager | G20: =ROUND(G17*(1+C18),0) -> 485
E21: EK inkl. (Nah-) Lager | G21: =G18*(1+C18) -> 0
E22: UVP inkl. (Nah-) Lager | G22: =G19*(1+C18) -> 3959.109
E23: durchschnitttl. EK | G23: =IFERROR(G18/G17,"-") -> 0
E24: Lagerumschlag | G24: 3
E25: Menge p.a. | G25: =ROUND(G24*G20,0) -> 1455
E26: EK p.a. | G26: =G24*G21 -> 0
E27: Kalk. | G27: =Liste!P4 -> 0
E28: Bruttoumsatz p.a. | G28: =G22*G24 -> 11877.327
E29: Rohertrag | G29: =G28-G26 -> 11877.327

Sheet Größengänge
A4: Code | B4: Gr.1 | C4: Gr.2 | D4: Gr.3 | E4: Gr.4 | F4: Gr.5 | G4: Gr.6 | H4: Gr.7 | I4: Gr.8 | J4: Gr.9 | K4: Gr.10 | L4: Anzahl Größen | M4: Beschreibung
L5: 0
A6: 010 | B6: 50/56 | C6: 62/68 | D6: 74/80 | E6: 86/92 | F6: 98/104 | G6: 110/116 | H6: 122/128 | I6: 134/146 | J6: 152/164 | K6: 170/176 | L6: 10 | M6: Baby/Kinder Strumpfhosen (Hauptgrößen)
A7: 020 | B7: 98/116 | C7: 122/140 | D7: 146/164 | L7: 3 | M7: Baby/Kinder Strumpfhosen (Variante 1)
A8: 030 | B8: 110/122 | C8: 128/140 | D8: 146/158 | L8: 3 | M8: Baby/Kinder Strumpfhosen (Variante 2)
A9: 031 | B9: 134/140 | L9: 1 | M9: Baby/Kinder Strumpfhosen (Variante 3)
A10: 040 | B10: 15/18 | C10: 19/22 | D10: 23/26 | E10: 27/30 | F10: 31/34 | G10: 35/38 | H10: 39/42 | L10: 7 | M10: Baby/Kinder Strümpfe (Hauptgrößen)
A11: 050 | B11: 23/28 | C11: 29/35 | L11: 2 | M11: Baby/Kinder Strümpfe (Variante 1)
A12: 051 | B12: 18/19 | C12: 27/29 | D12: 29/31 | E12: 31/33 | L12: 4 | M12: Baby/Kinder Strümpfe (Variante 2)
A13: 060 | B13: 35/38 | C13: 39/42 | D13: 43/46 | E13: 47/49 | L13: 4 | M13: Damen/Herren Strümpfe (Hauptgrößen)
A14: 070 | B14: 35/36 | C14: 37/38 | D14: 39/40 | E14: 41/42 | F14: 43/44 | G14: 45/46 | L14: 6 | M14: Damen/Herren Strümpfe (Variante 1)
A15: 080 | B15: 36/41 | C15: 41/46 | L15: 2 | M15: Damen/Herren Strümpfe (Variante 2)
A16: 085 | B16: 35/37 | C16: 39/41 | D16: 41/43 | E16: 45/47 | L16: 4 | M16: Damen/Herren Strümpfe (Variante 3)
A17: 090 | B17: ONE SIZE | L17: 1 | M17: Stulpen / Geschenkverpackung
A18: 100 | B18: SORTIERT | L18: 1 | M18: SET
A19: 110 | B19: 36/38 | C19: 38/40 | D19: 40/42 | E19: 42/44 | F19: 44/46 | G19: 48/50 | L19: 8 | M19: (Fein)-Strumpfhosen
A20: 120 | B20: XS | C20: S | D20: M | E20: L | F20: XL | G20: 2XL | H20: 3XL | L20: 8 | M20: International (Hauptgrößen)
A21: 130 | B21: S/M | C21: M/L | D21: L/XL | L21: 3 | M21: International (Variante 1)
A22: 135 | B22: XS L1 | C22: S L1 | D22: M L1 | E22: L L1 | F22: L+ L1 | L22: 5 | M22: International-Länge 1 (Item M6)
A23: 136 | B23: XS L2 | C23: S L2 | D23: M L2 | E23: L L2 | F23: L+ L2 | L23: 5 | M23: International-Länge 2 (Item M6)
A24: 140 | B24: 34 | C24: 36 | D24: 38 | E24: 40 | F24: 42 | G24: 44 | H24: 46 | I24: 48 | J24: 50 | L24: 9 | M24: Leggings / Strumpfhosen
A25: 150 | B25: 35/36 | C25: 37/38 | D25: 39/40 | E25: 41/42 | F25: 43/44 | L25: 5 | M25: Hausschuhe
A26: 900 | B26: - | C26: 2100/0645 | D26: 2100/1080 | E26: 2100/1250 | F26: 0871/0600 | G26: 1515/0400 | H26: 1515/0602 | I26: 1775/0625 | L26: 8 | M26: Werbemittel

Sheet DATA (hidden)
A1: Key | B1: EAN | C1: Artikelnummer | D1: Farbcode | E1: Farbe Beschreibung | F1: Größengang | G1: Größe | H1: VK Preis EUR | I1: Bild | J1: Seasons | K1: Catalog Sequence | L1: PLC inactive | M1: Artikel Beschreibung | N1: VK Preis CHF
A2: =t_articles[[#This Row],[Artikelnummer]]&t_articles[[#This Row],[Farbcode]]&t_articles[[#This Row],[Größe]] -> 000000591000135/38 | B2: 4052171105721 | C2: 000000591 | D2: 0001 | E2: white | F2: 060 | G2: 35/38 | J2: 191,192,201,202,211,212,221,222,231 | L2: 0 | M2: Engelbert-Strauss Classic 2p
A3: =t_articles[[#This Row],[Artikelnummer]]&t_articles[[#This Row],[Farbcode]]&t_articles[[#This Row],[Größe]] -> 000000591000139/42 | B3: 4052171105738 | C3: 000000591 | D3: 0001 | E3: white | F3: 060 | G3: 39/42 | J3: 191,192,201,202,211,212,221,222,231 | L3: 0 | M3: Engelbert-Strauss Classic 2p
A4: =t_articles[[#This Row],[Artikelnummer]]&t_articles[[#This Row],[Farbcode]]&t_articles[[#This Row],[Größe]] -> 000000591000143/46 | B4: 4052171105745 | C4: 000000591 | D4: 0001 | E4: white | F4: 060 | G4: 43/46 | J4: 191,192,201,202,211,212,221,222,231 | L4: 0 | M4: Engelbert-Strauss Classic 2p
A5: =t_articles[[#This Row],[Artikelnummer]]&t_articles[[#This Row],[Farbcode]]&t_articles[[#This Row],[Größe]] -> 000000591000535/38 | B5: 4052171274830 | C5: 000000591 | D5: 0005 | E5: black | F5: 060 | G5: 35/38 | J5: 191,192,201,202,211,212,221,222,231 | L5: 0 | M5: Engelbert-Strauss Classic 2p
A6: =t_articles[[#This Row],[Artikelnummer]]&t_articles[[#This Row],[Farbcode]]&t_articles[[#This Row],[Größe]] -> 000000591000539/42 | B6: 4052171012432 | C6: 000000591 | D6: 0005 | E6: black | F6: 060 | G6: 39/42 | J6: 191,192,201,202,211,212,221,222,231 | L6: 0 | M6: Engelbert-Strauss Classic 2p
A7: =t_articles[[#This Row],[Artikelnummer]]&t_articles[[#This Row],[Farbcode]]&t_articles[[#This Row],[Größe]] -> 000000591000543/46 | B7: 4052171012449 | C7: 000000591 | D7: 0005 | E7: black | F7: 060 | G7: 43/46 | J7: 191,192,201,202,211,212,221,222,231 | L7: 0 | M7: Engelbert-Strauss Classic 2p
A8: =t_articles[[#This Row],[Artikelnummer]]&t_articles[[#This Row],[Farbcode]]&t_articles[[#This Row],[Größe]] -> 000000591000547/49 | B8: 4052171274847 | C8: 000000591 | D8: 0005 | E8: black | F8: 060 | G8: 47/49 | J8: 191,192,201,202,211,212,221,222,231 | L8: 0 | M8: Engelbert-Strauss Classic 2p
A9: =t_articles[[#This Row],[Artikelnummer]]&t_articles[[#This Row],[Farbcode]]&t_articles[[#This Row],[Größe]] -> 000000591000839/42 | B9: 4052171012456 | C9: 000000591 | D9: 0008 | E9: anthracite | F9: 060 | G9: 39/42 | J9: 191,192,201,202,211,212,221,222,231 | L9: 0 | M9: Engelbert-Strauss Classic 2p
A10: =t_articles[[#This Row],[Artikelnummer]]&t_articles[[#This Row],[Farbcode]]&t_articles[[#This Row],[Größe]] -> 000000591000843/46 | B10: 4052171012463 | C10: 000000591 | D10: 0008 | E10: anthracite | F10: 060 | G10: 43/46 | J10: 191,192,201,202,211,212,221,222,231 | L10: 0 | M10: Engelbert-Strauss Classic 2p
A11: =t_articles[[#This Row],[Artikelnummer]]&t_articles[[#This Row],[Farbcode]]&t_articles[[#This Row],[Größe]] -> 0000010000000- | B11: 4052171402905 | C11: 000001000 | D11: 0000 | E11: - | F11: 900 | G11: - | J11: 202,211,212,221,222,231,232 | L11: 0 | M11: Retoure-Verpackung Gestell 500
A12: =t_articles[[#This Row],[Artikelnummer]]&t_articles[[#This Row],[Farbcode]]&t_articles[[#This Row],[Größe]] -> 0000010010000- | B12: 4052171402912 | C12: 000001001 | D12: 0000 | E12: - | F12: 900 | G12: - | J12: 202,211,212,221,222,231,232 | L12: 0 | M12: Retoure-Verpackung Schütte 500
A13: =t_articles[[#This Row],[Artikelnummer]]&t_articles[[#This Row],[Farbcode]]&t_articles[[#This Row],[Größe]] -> 000002006000536/38 | B13: 4052171144607 | C13: 000002006 | D13: 0005 | E13: black | F13: 110 | G13: 36/38 | H13: 9.95 | I13: http://aedjfwfgap.cloudimg.io/v7/media.camano.de/images/000002006_0005_p_c1.jpg?w=80 | J13: 191,192,201,202,212,221,222,231,232 | K13: 50 | L13: 0 | M13: Women comfort soft cotton Tights 1p | N13: 11.9
A14: =t_articles[[#This Row],[Artikelnummer]]&t_articles[[#This Row],[Farbcode]]&t_articles[[#This Row],[Größe]] -> 000002006000538/40 | B14: 4052171144614 | C14: 000002006 | D14: 0005 | E14: black | F14: 110 | G14: 38/40 | H14: 9.95 | I14: http://aedjfwfgap.cloudimg.io/v7/media.camano.de/images/000002006_0005_p_c1.jpg?w=80 | J14: 191,192,201,202,212,221,222,231,232 | K14: 50 | L14: 0 | M14: Women comfort soft cotton Tights 1p | N14: 11.9
A15: =t_articles[[#This Row],[Artikelnummer]]&t_articles[[#This Row],[Farbcode]]&t_articles[[#This Row],[Größe]] -> 000002006000540/42 | B15: 4052171144621 | C15: 000002006 | D15: 0005 | E15: black | F15: 110 | G15: 40/42 | H15: 9.95 | I15: http://aedjfwfgap.cloudimg.io/v7/media.camano.de/images/000002006_0005_p_c1.jpg?w=80 | J15: 191,192,201,202,212,221,222,231,232 | K15: 50 | L15: 0 | M15: Women comfort soft cotton Tights 1p | N15: 11.9
A16: =t_articles[[#This Row],[Artikelnummer]]&t_articles[[#This Row],[Farbcode]]&t_articles[[#This Row],[Größe]] -> 000002006000542/44 | B16: 4052171144638 | C16: 000002006 | D16: 0005 | E16: black | F16: 110 | G16: 42/44 | H16: 9.95 | I16: http://aedjfwfgap.cloudimg.io/v7/media.camano.de/images/000002006_0005_p_c1.jpg?w=80 | J16: 191,192,201,202,212,221,222,231,232 | K16: 50 | L16: 0 | M16: Women comfort soft cotton Tights 1p | N16: 11.9
A17: =t_articles[[#This Row],[Artikelnummer]]&t_articles[[#This Row],[Farbcode]]&t_articles[[#This Row],[Größe]] -> 000002006000544/46 | B17: 4052171144645 | C17: 000002006 | D17: 0005 | E17: black | F17: 110 | G17: 44/46 | H17: 9.95 | I17: http://aedjfwfgap.cloudimg.io/v7/media.camano.de/images/000002006_0005_p_c1.jpg?w=80 | J17: 191,192,201,202,212,221,222,231,232 | K17: 50 | L17: 0 | M17: Women comfort soft cotton Tights 1p | N17: 11.9
A18: =t_articles[[#This Row],[Artikelnummer]]&t_articles[[#This Row],[Farbcode]]&t_articles[[#This Row],[Größe]] -> 000002006000548/50 | B18: 4052171144652 | C18: 000002006 | D18: 0005 | E18: black | F18: 110 | G18: 48/50 | H18: 9.95 | I18: http://aedjfwfgap.cloudimg.io/v7/media.camano.de/images/000002006_0005_p_c1.jpg?w=80 | J18: 191,192,201,202,212,221,222,231,232 | K18: 50 | L18: 0 | M18: Women comfort soft cotton Tights 1p | N18: 11.9
A19: =t_articles[[#This Row],[Artikelnummer]]&t_articles[[#This Row],[Farbcode]]&t_articles[[#This Row],[Größe]] -> 000002006000736/38 | B19: 4052171144669 | C19: 000002006 | D19: 0007 | E19: beige mel. | F19: 110 | G19: 36/38 | H19: 9.95 | I19: http://aedjfwfgap.cloudimg.io/v7/media.camano.de/images/000002006_0007_p_c1.jpg?w=80 | J19: 191,192,201,202,212,221,222,231 | K19: 50 | L19: 0 | M19: Women comfort soft cotton Tights 1p | N19: 11.9
A20: =t_articles[[#This Row],[Artikelnummer]]&t_articles[[#This Row],[Farbcode]]&t_articles[[#This Row],[Größe]] -> 000002006000738/40 | B20: 4052171144676 | C20: 000002006 | D20: 0007 | E20: beige mel. | F20: 110 | G20: 38/40 | H20: 9.95 | I20: http://aedjfwfgap.cloudimg.io/v7/media.camano.de/images/000002006_0007_p_c1.jpg?w=80 | J20: 191,192,201,202,212,221,222,231 | K20: 50 | L20: 0 | M20: Women comfort soft cotton Tights 1p | N20: 11.9
A21: =t_articles[[#This Row],[Artikelnummer]]&t_articles[[#This Row],[Farbcode]]&t_articles[[#This Row],[Größe]] -> 000002006000740/42 | B21: 4052171144683 | C21: 000002006 | D21: 0007 | E21: beige mel. | F21: 110 | G21: 40/42 | H21: 9.95 | I21: http://aedjfwfgap.cloudimg.io/v7/media.camano.de/images/000002006_0007_p_c1.jpg?w=80 | J21: 191,192,201,202,212,221,222,231 | K21: 50 | L21: 0 | M21: Women comfort soft cotton Tights 1p | N21: 11.9
A22: =t_articles[[#This Row],[Artikelnummer]]&t_articles[[#This Row],[Farbcode]]&t_articles[[#This Row],[Größe]] -> 000002006000742/44 | B22: 4052171144690 | C22: 000002006 | D22: 0007 | E22: beige mel. | F22: 110 | G22: 42/44 | H22: 9.95 | I22: http://aedjfwfgap.cloudimg.io/v7/media.camano.de/images/000002006_0007_p_c1.jpg?w=80 | J22: 191,192,201,202,212,221,222,231 | K22: 50 | L22: 0 | M22: Women comfort soft cotton Tights 1p | N22: 11.9
A23: =t_articles[[#This Row],[Artikelnummer]]&t_articles[[#This Row],[Farbcode]]&t_articles[[#This Row],[Größe]] -> 000002006000744/46 | B23: 4052171144706 | C23: 000002006 | D23: 0007 | E23: beige mel. | F23: 110 | G23: 44/46 | H23: 9.95 | I23: http://aedjfwfgap.cloudimg.io/v7/media.camano.de/images/000002006_0007_p_c1.jpg?w=80 | J23: 191,192,201,202,212,221,222,231 | K23: 50 | L23: 0 | M23: Women comfort soft cotton Tights 1p | N23: 11.9
A24: =t_articles[[#This Row],[Artikelnummer]]&t_articles[[#This Row],[Farbcode]]&t_articles[[#This Row],[Größe]] -> 000002006000748/50 | B24: 4052171144713 | C24: 000002006 | D24: 0007 | E24: beige mel. | F24: 110 | G24: 48/50 | H24: 9.95 | I24: http://aedjfwfgap.cloudimg.io/v7/media.camano.de/images/000002006_0007_p_c1.jpg?w=80 | J24: 191,192,201,202,212,221,222,231 | K24: 50 | L24: 0 | M24: Women comfort soft cotton Tights 1p | N24: 11.9
A25: =t_articles[[#This Row],[Artikelnummer]]&t_articles[[#This Row],[Farbcode]]&t_articles[[#This Row],[Größe]] -> 000002006000836/38 | B25: 4052171144720 | C25: 000002006 | D25: 0008 | E25: anthracite melange | F25: 110 | G25: 36/38 | H25: 9.95 | I25: http://aedjfwfgap.cloudimg.io/v7/media.camano.de/images/000002006_0008_p_c1.jpg?w=80 | J25: 192,202,212,221,222,231 | K25: 50 | L25: 1 | M25: Women comfort soft cotton Tights 1p | N25: 11.9
A26: =t_articles[[#This Row],[Artikelnummer]]&t_articles[[#This Row],[Farbcode]]&t_articles[[#This Row],[Größe]] -> 000002006000838/40 | B26: 4052171144737 | C26: 000002006 | D26: 0008 | E26: anthracite melange | F26: 110 | G26: 38/40 | H26: 9.95 | I26: http://aedjfwfgap.cloudimg.io/v7/media.camano.de/images/000002006_0008_p_c1.jpg?w=80 | J26: 192,202,212,221,222,231 | K26: 50 | L26: 0 | M26: Women comfort soft cotton Tights 1p | N26: 11.9
A27: =t_articles[[#This Row],[Artikelnummer]]&t_articles[[#This Row],[Farbcode]]&t_articles[[#This Row],[Größe]] -> 000002006000840/42 | B27: 4052171144744 | C27: 000002006 | D27: 0008 | E27: anthracite melange | F27: 110 | G27: 40/42 | H27: 9.95 | I27: http://aedjfwfgap.cloudimg.io/v7/media.camano.de/images/000002006_0008_p_c1.jpg?w=80 | J27: 192,202,212,221,222,231 | K27: 50 | L27: 0 | M27: Women comfort soft cotton Tights 1p | N27: 11.9
A28: =t_articles[[#This Row],[Artikelnummer]]&t_articles[[#This Row],[Farbcode]]&t_articles[[#This Row],[Größe]] -> 000002006000842/44 | B28: 4052171144751 | C28: 000002006 | D28: 0008 | E28: anthracite melange | F28: 110 | G28: 42/44 | H28: 9.95 | I28: http://aedjfwfgap.cloudimg.io/v7/media.camano.de/images/000002006_0008_p_c1.jpg?w=80 | J28: 192,202,212,221,222,231 | K28: 50 | L28: 0 | M28: Women comfort soft cotton Tights 1p | N28: 11.9
A29: =t_articles[[#This Row],[Artikelnummer]]&t_articles[[#This Row],[Farbcode]]&t_articles[[#This Row],[Größe]] -> 000002006000844/46 | B29: 4052171144768 | C29: 000002006 | D29: 0008 | E29: anthracite melange | F29: 110 | G29: 44/46 | H29: 9.95 | I29: http://aedjfwfgap.cloudimg.io/v7/media.camano.de/images/000002006_0008_p_c1.jpg?w=80 | J29: 192,202,212,221,222,231 | K29: 50 | L29: 0 | M29: Women comfort soft cotton Tights 1p | N29: 11.9
A30: =t_articles[[#This Row],[Artikelnummer]]&t_articles[[#This Row],[Farbcode]]&t_articles[[#This Row],[Größe]] -> 000002006000848/50 | B30: 4052171144775 | C30: 000002006 | D30: 0008 | E30: anthracite melange | F30: 110 | G30: 48/50 | H30: 9.95 | I30: http://aedjfwfgap.cloudimg.io/v7/media.camano.de/images/000002006_0008_p_c1.jpg?w=80 | J30: 192,202,212,221,222,231 | K30: 50 | L30: 0 | M30: Women comfort soft cotton Tights 1p | N30: 11.9
A31: =t_articles[[#This Row],[Artikelnummer]]&t_articles[[#This Row],[Farbcode]]&t_articles[[#This Row],[Größe]] -> 000002008000536/38 | B31: 4052171151643 | C31: 000002008 | D31: 0005 | E31: black | F31: 110 | G31: 36/38 | H31: 11.95 | I31: http://aedjfwfgap.cloudimg.io/v7/media.camano.de/images/000002008_0005_p_c1.jpg?w=80 | J31: 192,201,202,212,221,222,231 | K31: 51 | L31: 1 | M31: Women comfort thermo light Tights 1p | N31: 14.9
A32: =t_articles[[#This Row],[Artikelnummer]]&t_articles[[#This Row],[Farbcode]]&t_articles[[#This Row],[Größe]] -> 000002008000538/40 | B32: 4052171151650 | C32: 000002008 | D32: 0005 | E32: black | F32: 110 | G32: 38/40 | H32: 11.95 | I32: http://aedjfwfgap.cloudimg.io/v7/media.camano.de/images/000002008_0005_p_c1.jpg?w=80 | J32: 192,201,202,212,221,222,231 | K32: 51 | L32: 0 | M32: Women comfort thermo light Tights 1p | N32: 14.9
A33: =t_articles[[#This Row],[Artikelnummer]]&t_articles[[#This Row],[Farbcode]]&t_articles[[#This Row],[Größe]] -> 000002008000540/42 | B33: 4052171151667 | C33: 000002008 | D33: 0005 | E33: black | F33: 110 | G33: 40/42 | H33: 11.95 | I33: http://aedjfwfgap.cloudimg.io/v7/media.camano.de/images/000002008_0005_p_c1.jpg?w=80 | J33: 192,201,202,212,221,222,231 | K33: 51 | L33: 0 | M33: Women comfort thermo light Tights 1p | N33: 14.9
A34: =t_articles[[#This Row],[Artikelnummer]]&t_articles[[#This Row],[Farbcode]]&t_articles[[#This Row],[Größe]] -> 000002008000542/44 | B34: 4052171151674 | C34: 000002008 | D34: 0005 | E34: black | F34: 110 | G34: 42/44 | H34: 11.95 | I34: http://aedjfwfgap.cloudimg.io/v7/media.camano.de/images/000002008_0005_p_c1.jpg?w=80 | J34: 192,201,202,212,221,222,231 | K34: 51 | L34: 0 | M34: Women comfort thermo light Tights 1p | N34: 14.9
A35: =t_articles[[#This Row],[Artikelnummer]]&t_articles[[#This Row],[Farbcode]]&t_articles[[#This Row],[Größe]] -> 000002008000544/46 | B35: 4052171151681 | C35: 000002008 | D35: 0005 | E35: black | F35: 110 | G35: 44/46 | H35: 11.95 | I35: http://aedjfwfgap.cloudimg.io/v7/media.camano.de/images/000002008_0005_p_c1.jpg?w=80 | J35: 192,201,202,212,221,222,231 | K35: 51 | L35: 0 | M35: Women comfort thermo light Tights 1p | N35: 14.9
A36: =t_articles[[#This Row],[Artikelnummer]]&t_articles[[#This Row],[Farbcode]]&t_articles[[#This Row],[Größe]] -> 000002009000536/38 | B36: 4052171144553 | C36: 000002009 | D36: 0005 | E36: black | F36: 110 | G36: 36/38 | H36: 11.95 | I36: http://aedjfwfgap.cloudimg.io/v7/media.camano.de/images/000002009_0005_p_c1.jpg?w=80 | J36: 192,201,202,211,212,221,222,231 | K36: 52 | L36: 1 | M36: Women comfort thermo light Leggings 1p | N36: 14.9
A37: =t_articles[[#This Row],[Artikelnummer]]&t_articles[[#This Row],[Farbcode]]&t_articles[[#This Row],[Größe]] -> 000002009000538/40 | B37: 4052171144560 | C37: 000002009 | D37: 0005 | E37: black | F37: 110 | G37: 38/40 | H37: 11.95 | I37: http://aedjfwfgap.cloudimg.io/v7/media.camano.de/images/000002009_0005_p_c1.jpg?w=80 | J37: 192,201,202,211,212,221,222,231 | K37: 52 | L37: 0 | M37: Women comfort thermo light Leggings 1p | N37: 14.9
A38: =t_articles[[#This Row],[Artikelnummer]]&t_articles[[#This Row],[Farbcode]]&t_articles[[#This Row],[Größe]] -> 000002009000540/42 | B38: 4052171144577 | C38: 000002009 | D38: 0005 | E38: black | F38: 110 | G38: 40/42 | H38: 11.95 | I38: http://aedjfwfgap.cloudimg.io/v7/media.camano.de/images/000002009_0005_p_c1.jpg?w=80 | J38: 192,201,202,211,212,221,222,231 | K38: 52 | L38: 0 | M38: Women comfort thermo light Leggings 1p | N38: 14.9
A39: =t_articles[[#This Row],[Artikelnummer]]&t_articles[[#This Row],[Farbcode]]&t_articles[[#This Row],[Größe]] -> 000002009000542/44 | B39: 4052171144584 | C39: 000002009 | D39: 0005 | E39: black | F39: 110 | G39: 42/44 | H39: 11.95 | I39: http://aedjfwfgap.cloudimg.io/v7/media.camano.de/images/000002009_0005_p_c1.jpg?w=80 | J39: 192,201,202,211,212,221,222,231 | K39: 52 | L39: 0 | M39: Women comfort thermo light Leggings 1p | N39: 14.9
A40: =t_articles[[#This Row],[Artikelnummer]]&t_articles[[#This Row],[Farbcode]]&t_articles[[#This Row],[Größe]] -> 000002009000544/46 | B40: 4052171144591 | C40: 000002009 | D40: 0005 | E40: black | F40: 110 | G40: 44/46 | H40: 11.95 | I40: http://aedjfwfgap.cloudimg.io/v7/media.camano.de/images/000002009_0005_p_c1.jpg?w=80 | J40: 192,201,202,211,212,221,222,231 | K40: 52 | L40: 0 | M40: Women comfort thermo light Leggings 1p | N40: 14.9
A41: =t_articles[[#This Row],[Artikelnummer]]&t_articles[[#This Row],[Farbcode]]&t_articles[[#This Row],[Größe]] -> 000002009000548/50 | C41: 000002009 | D41: 0005 | E41: black | F41: 110 | G41: 48/50 | H41: 11.95 | I41: http://aedjfwfgap.cloudimg.io/v7/media.camano.de/images/000002009_0005_p_c1.jpg?w=80 | J41: 192,201,202,211,212,221,222,231 | K41: 52 | L41: 0 | M41: Women comfort thermo light Leggings 1p | N41: 14.9
A42: =t_articles[[#This Row],[Artikelnummer]]&t_articles[[#This Row],[Farbcode]]&t_articles[[#This Row],[Größe]] -> 000002281000135/38 | B42: 4052171124807 | C42: 000002281 | D42: 0001 | E42: white | F42: 060 | G42: 35/38 | H42: 9.95 | I42: http://aedjfwfgap.cloudimg.io/v7/media.camano.de/images/000002281_0001_p_c1.jpg?w=80 | J42: 191,192,201,202,211,212,221,222,231,232 | K42: 9 | L42: 0 | M42: Women cotton fine rolled cuff Socks 2p | N42: 11.9
A43: =t_articles[[#This Row],[Artikelnummer]]&t_articles[[#This Row],[Farbcode]]&t_articles[[#This Row],[Größe]] -> 000002281000139/42 | B43: 4052171124814 | C43: 000002281 | D43: 0001 | E43: white | F43: 060 | G43: 39/42 | H43: 9.95 | I43: http://aedjfwfgap.cloudimg.io/v7/media.camano.de/images/000002281_0001_p_c1.jpg?w=80 | J43: 191,192,201,202,211,212,221,222,231,232 | K43: 9 | L43: 0 | M43: Women cotton fine rolled cuff Socks 2p | N43: 11.9
A44: =t_articles[[#This Row],[Artikelnummer]]&t_articles[[#This Row],[Farbcode]]&t_articles[[#This Row],[Größe]] -> 000002281000335/38 | B44: 4052171200556 | C44: 000002281 | D44: 0003 | E44: grey mel. | F44: 060 | G44: 35/38 | H44: 9.95 | I44: http://aedjfwfgap.cloudimg.io/v7/media.camano.de/images/000002281_0003_p_c1.jpg?w=80 | J44: 191,201,202,211,212,221,222,231,232 | K44: 9 | L44: 0 | M44: Women cotton fine rolled cuff Socks 2p | N44: 11.9
A45: =t_articles[[#This Row],[Artikelnummer]]&t_articles[[#This Row],[Farbcode]]&t_articles[[#This Row],[Größe]] -> 000002281000339/42 | B45: 4052171200563 | C45: 000002281 | D45: 0003 | E45: grey mel. | F45: 060 | G45: 39/42 | H45: 9.95 | I45: http://aedjfwfgap.cloudimg.io/v7/media.camano.de/images/000002281_0003_p_c1.jpg?w=80 | J45: 191,201,202,211,212,221,222,231,232 | K45: 9 | L45: 0 | M45: Women cotton fine rolled cuff Socks 2p | N45: 11.9
A46: =t_articles[[#This Row],[Artikelnummer]]&t_articles[[#This Row],[Farbcode]]&t_articles[[#This Row],[Größe]] -> 000002281000535/38 | B46: 4052171124821 | C46: 000002281 | D46: 0005 | E46: black | F46: 060 | G46: 35/38 | H46: 9.95 | I46: http://aedjfwfgap.cloudimg.io/v7/media.camano.de/images/000002281_0005_p_c1.jpg?w=80 | J46: 191,192,201,202,211,212,221,222,231,232 | K46: 9 | L46: 0 | M46: Women cotton fine rolled cuff Socks 2p | N46: 11.9
A47: =t_articles[[#This Row],[Artikelnummer]]&t_articles[[#This Row],[Farbcode]]&t_articles[[#This Row],[Größe]] -> 000002281000539/42 | B47: 4052171124838 | C47: 000002281 | D47: 0005 | E47: black | F47: 060 | G47: 39/42 | H47: 9.95 | I47: http://aedjfwfgap.cloudimg.io/v7/media.camano.de/images/000002281_0005_p_c1.jpg?w=80 | J47: 191,192,201,202,211,212,221,222,231,232 | K47: 9 | L47: 0 | M47: Women cotton fine rolled cuff Socks 2p | N47: 11.9
A48: =t_articles[[#This Row],[Artikelnummer]]&t_articles[[#This Row],[Farbcode]]&t_articles[[#This Row],[Größe]] -> 000002281003035/38 | B48: 4052171124869 | C48: 000002281 | D48: 0030 | E48: blue | F48: 060 | G48: 35/38 | H48: 9.95 | I48: http://aedjfwfgap.cloudimg.io/v7/media.camano.de/images/000002281_0030_p_c1.jpg?w=80 | J48: 191,192,201,202,211,212,221,222,231,232 | K48: 9 | L48: 0 | M48: Women cotton fine rolled cuff Socks 2p | N48: 11.9
A49: =t_articles[[#This Row],[Artikelnummer]]&t_articles[[#This Row],[Farbcode]]&t_articles[[#This Row],[Größe]] -> 000002281003039/42 | B49: 4052171124876 | C49: 000002281 | D49: 0030 | E49: blue | F49: 060 | G49: 39/42 | H49: 9.95 | I49: http://aedjfwfgap.cloudimg.io/v7/media.camano.de/images/000002281_0030_p_c1.jpg?w=80 | J49: 191,192,201,202,211,212,221,222,231,232 | K49: 9 | L49: 0 | M49: Women cotton fine rolled cuff Socks 2p | N49: 11.9
A50: =t_articles[[#This Row],[Artikelnummer]]&t_articles[[#This Row],[Farbcode]]&t_articles[[#This Row],[Größe]] -> 000002281006535/38 | B50: 4052171200594 | C50: 000002281 | D50: 0065 | E50: desert mel. | F50: 060 | G50: 35/38 | H50: 9.95 | I50: http://aedjfwfgap.cloudimg.io/v7/media.camano.de/images/000002281_0065_p_c1.jpg?w=80 | J50: 191,192,201,202,211,212,221,222,231,232 | K50: 9 | L50: 0 | M50: Women cotton fine rolled cuff Socks 2p | N50: 11.9
A51: =t_articles[[#This Row],[Artikelnummer]]&t_articles[[#This Row],[Farbcode]]&t_articles[[#This Row],[Größe]] -> 000002281006539/42 | B51: 4052171200600 | C51: 000002281 | D51: 0065 | E51: desert mel. | F51: 060 | G51: 39/42 | H51: 9.95 | I51: http://aedjfwfgap.cloudimg.io/v7/media.camano.de/images/000002281_0065_p_c1.jpg?w=80 | J51: 191,192,201,202,211,212,221,222,231,232 | K51: 9 | L51: 0 | M51: Women cotton fine rolled cuff Socks 2p | N51: 11.9
A52: =t_articles[[#This Row],[Artikelnummer]]&t_articles[[#This Row],[Farbcode]]&t_articles[[#This Row],[Größe]] -> 000002405000135/38 | B52: 4052171162960 | C52: 000002405 | D52: 0001 | E52: white | F52: 060 | G52: 35/38 | H52: 9.95 | I52: http://aedjfwfgap.cloudimg.io/v7/media.camano.de/images/000002405_0001_p_c1.jpg?w=80 | J52: 191,192,201,202,211,212,221,222,231,232 | K52: 8 | L52: 0 | M52: Women comfort laser-cut ABS Footies 2p | N52: 11.9
A53: =t_articles[[#This Row],[Artikelnummer]]&t_articles[[#This Row],[Farbcode]]&t_articles[[#This Row],[Größe]] -> 000002405000139/42 | B53: 4052171162953 | C53: 000002405 | D53: 0001 | E53: white | F53: 060 | G53: 39/42 | H53: 9.95 | I53: http://aedjfwfgap.cloudimg.io/v7/media.camano.de/images/000002405_0001_p_c1.jpg?w=80 | J53: 191,192,201,202,211,212,221,222,231,232 | K53: 8 | L53: 0 | M53: Women comfort laser-cut ABS Footies 2p | N53: 11.9
A54: =t_articles[[#This Row],[Artikelnummer]]&t_articles[[#This Row],[Farbcode]]&t_articles[[#This Row],[Größe]] -> 000002405000535/38 | B54: 4052171159731 | C54: 000002405 | D54: 0005 | E54: black | F54: 060 | G54: 35/38 | H54: 9.95 | I54: http://aedjfwfgap.cloudimg.io/v7/media.camano.de/images/000002405_0005_p_c1.jpg?w=80 | J54: 191,192,201,202,211,212,221,222,231,232 | K54: 8 | L54: 0 | M54: Women comfort laser-cut ABS Footies 2p | N54: 11.9
A55: =t_articles[[#This Row],[Artikelnummer]]&t_articles[[#This Row],[Farbcode]]&t_articles[[#This Row],[Größe]] -> 000002405000539/42 | B55: 4052171159724 | C55: 000002405 | D55: 0005 | E55: black | F55: 060 | G55: 39/42 | H55: 9.95 | I55: http://aedjfwfgap.cloudimg.io/v7/media.camano.de/images/000002405_0005_p_c1.jpg?w=80 | J55: 191,192,201,202,211,212,221,222,231,232 | K55: 8 | L55: 0 | M55: Women comfort laser-cut ABS Footies 2p | N55: 11.9
A56: =t_articles[[#This Row],[Artikelnummer]]&t_articles[[#This Row],[Farbcode]]&t_articles[[#This Row],[Größe]] -> 000002405001135/38 | B56: 4052171159717 | C56: 000002405 | D56: 0011 | E56: natural | F56: 060 | G56: 35/38 | H56: 9.95 | I56: http://aedjfwfgap.cloudimg.io/v7/media.camano.de/images/000002405_0011_p_c1.jpg?w=80 | J56: 191,192,201,202,211,212,221,222,231,232 | K56: 8 | L56: 0 | M56: Women comfort laser-cut ABS Footies 2p | N56: 11.9
A57: =t_articles[[#This Row],[Artikelnummer]]&t_articles[[#This Row],[Farbcode]]&t_articles[[#This Row],[Größe]] -> 000002405001139/42 | B57: 4052171159700 | C57: 000002405 | D57: 0011 | E57: natural | F57: 060 | G57: 39/42 | H57: 9.95 | I57: http://aedjfwfgap.cloudimg.io/v7/media.camano.de/images/000002405_0011_p_c1.jpg?w=80 | J57: 191,192,201,202,211,212,221,222,231,232 | K57: 8 | L57: 0 | M57: Women comfort laser-cut ABS Footies 2p | N57: 11.9
A58: =t_articles[[#This Row],[Artikelnummer]]&t_articles[[#This Row],[Farbcode]]&t_articles[[#This Row],[Größe]] -> 0000031010002110/116 | B58: 4036329501238 | C58: 000003101 | D58: 0002 | E58: offwhite | F58: 010 | G58: 110/116 | H58: 6.95 | I58: http://aedjfwfgap.cloudimg.io/v7/media.camano.de/images/000003101_0002_p_c1.jpg?w=80 | J58: 191,192,201,202,211,212,221,222,231,232 | K58: 5 | L58: 0 | M58: Children ca-soft organic cotton Tights 1p | N58: 8.9
A59: =t_articles[[#This Row],[Artikelnummer]]&t_articles[[#This Row],[Farbcode]]&t_articles[[#This Row],[Größe]] -> 0000031010002122/128 | B59: 4036329501245 | C59: 000003101 | D59: 0002 | E59: offwhite | F59: 010 | G59: 122/128 | H59: 6.95 | I59: http://aedjfwfgap.cloudimg.io/v7/media.camano.de/images/000003101_0002_p_c1.jpg?w=80 | J59: 191,192,201,202,211,212,221,222,231,232 | K59: 5 | L59: 0 | M59: Children ca-soft organic cotton Tights 1p | N59: 8.9
A60: =t_articles[[#This Row],[Artikelnummer]]&t_articles[[#This Row],[Farbcode]]&t_articles[[#This Row],[Größe]] -> 0000031010002134/146 | B60: 4036329501252 | C60: 000003101 | D60: 0002 | E60: offwhite | F60: 010 | G60: 134/146 | H60: 6.95 | I60: http://aedjfwfgap.cloudimg.io/v7/media.camano.de/images/000003101_0002_p_c1.jpg?w=80 | J60: 191,192,201,202,211,212,221,222,231,232 | K60: 5 | L60: 0 | M60: Children ca-soft organic cotton Tights 1p | N60: 8.9
A61: =t_articles[[#This Row],[Artikelnummer]]&t_articles[[#This Row],[Farbcode]]&t_articles[[#This Row],[Größe]] -> 0000031010002152/164 | B61: 4036329501269 | C61: 000003101 | D61: 0002 | E61: offwhite | F61: 010 | G61: 152/164 | H61: 6.95 | I61: http://aedjfwfgap.cloudimg.io/v7/media.camano.de/images/000003101_0002_p_c1.jpg?w=80 | J61: 191,192,201,202,211,212,221,222,231,232 | K61: 5 | L61: 0 | M61: Children ca-soft organic cotton Tights 1p | N61: 8.9
A62: =t_articles[[#This Row],[Artikelnummer]]&t_articles[[#This Row],[Farbcode]]&t_articles[[#This Row],[Größe]] -> 0000031010002170/176 | B62: 4052171225542 | C62: 000003101 | D62: 0002 | E62: offwhite | F62: 010 | G62: 170/176 | H62: 6.95 | I62: http://aedjfwfgap.cloudimg.io/v7/media.camano.de/images/000003101_0002_p_c1.jpg?w=80 | J62: 191,192,201,202,211,212,221,222,231,232 | K62: 5 | L62: 1 | M62: Children ca-soft organic cotton Tights 1p | N62: 8.9
A63: =t_articles[[#This Row],[Artikelnummer]]&t_articles[[#This Row],[Farbcode]]&t_articles[[#This Row],[Größe]] -> 000003101000286/92 | B63: 4036329501214 | C63: 000003101 | D63: 0002 | E63: offwhite | F63: 010 | G63: 86/92 | H63: 6.95 | I63: http://aedjfwfgap.cloudimg.io/v7/media.camano.de/images/000003101_0002_p_c1.jpg?w=80 | J63: 191,192,201,202,211,212,221,222,231,232 | K63: 5 | L63: 0 | M63: Children ca-soft organic cotton Tights 1p | N63: 8.9
A64: =t_articles[[#This Row],[Artikelnummer]]&t_articles[[#This Row],[Farbcode]]&t_articles[[#This Row],[Größe]] -> 000003101000298/104 | B64: 4036329501221 | C64: 000003101 | D64: 0002 | E64: offwhite | F64: 010 | G64: 98/104 | H64: 6.95 | I64: http://aedjfwfgap.cloudimg.io/v7/media.camano.de/images/000003101_0002_p_c1.jpg?w=80 | J64: 191,192,201,202,211,212,221,222,231,232 | K64: 5 | L64: 0 | M64: Children ca-soft organic cotton Tights 1p | N64: 8.9
A65: =t_articles[[#This Row],[Artikelnummer]]&t_articles[[#This Row],[Farbcode]]&t_articles[[#This Row],[Größe]] -> 0000031010004110/116 | B65: 4036329501436 | C65: 000003101 | D65: 0004 | E65: navy | F65: 010 | G65: 110/116 | H65: 6.95 | I65: http://aedjfwfgap.cloudimg.io/v7/media.camano.de/images/000003101_0004_p_c1.jpg?w=80 | J65: 191,192,201,202,211,212,221,222,231,232 | K65: 5 | L65: 0 | M65: Children ca-soft organic cotton Tights 1p | N65: 8.9
A66: =t_articles[[#This Row],[Artikelnummer]]&t_articles[[#This Row],[Farbcode]]&t_articles[[#This Row],[Größe]] -> 0000031010004122/128 | B66: 4036329501443 | C66: 000003101 | D66: 0004 | E66: navy | F66: 010 | G66: 122/128 | H66: 6.95 | I66: http://aedjfwfgap.cloudimg.io/v7/media.camano.de/images/000003101_0004_p_c1.jpg?w=80 | J66: 191,192,201,202,211,212,221,222,231,232 | K66: 5 | L66: 0 | M66: Children ca-soft organic cotton Tights 1p | N66: 8.9
A67: =t_articles[[#This Row],[Artikelnummer]]&t_articles[[#This Row],[Farbcode]]&t_articles[[#This Row],[Größe]] -> 0000031010004134/146 | B67: 4036329501450 | C67: 000003101 | D67: 0004 | E67: navy | F67: 010 | G67: 134/146 | H67: 6.95 | I67: http://aedjfwfgap.cloudimg.io/v7/media.camano.de/images/000003101_0004_p_c1.jpg?w=80 | J67: 191,192,201,202,211,212,221,222,231,232 | K67: 5 | L67: 0 | M67: Children ca-soft organic cotton Tights 1p | N67: 8.9
A68: =t_articles[[#This Row],[Artikelnummer]]&t_articles[[#This Row],[Farbcode]]&t_articles[[#This Row],[Größe]] -> 0000031010004152/164 | B68: 4036329501467 | C68: 000003101 | D68: 0004 | E68: navy | F68: 010 | G68: 152/164 | H68: 6.95 | I68: http://aedjfwfgap.cloudimg.io/v7/media.camano.de/images/000003101_0004_p_c1.jpg?w=80 | J68: 191,192,201,202,211,212,221,222,231,232 | K68: 5 | L68: 0 | M68: Children ca-soft organic cotton Tights 1p | N68: 8.9
A69: =t_articles[[#This Row],[Artikelnummer]]&t_articles[[#This Row],[Farbcode]]&t_articles[[#This Row],[Größe]] -> 0000031010004170/176 | B69: 4036329501474 | C69: 000003101 | D69: 0004 | E69: navy | F69: 010 | G69: 170/176 | H69: 6.95 | I69: http://aedjfwfgap.cloudimg.io/v7/media.camano.de/images/000003101_0004_p_c1.jpg?w=80 | J69: 191,192,201,202,211,212,221,222,231,232 | K69: 5 | L69: 1 | M69: Children ca-soft organic cotton Tights 1p | N69: 8.9
A70: =t_articles[[#This Row],[Artikelnummer]]&t_articles[[#This Row],[Farbcode]]&t_articles[[#This Row],[Größe]] -> 000003101000486/92 | B70: 4036329501412 | C70: 000003101 | D70: 0004 | E70: navy | F70: 010 | G70: 86/92 | H70: 6.95 | I70: http://aedjfwfgap.cloudimg.io/v7/media.camano.de/images/000003101_0004_p_c1.jpg?w=80 | J70: 191,192,201,202,211,212,221,222,231,232 | K70: 5 | L70: 0 | M70: Children ca-soft organic cotton Tights 1p | N70: 8.9
A71: =t_articles[[#This Row],[Artikelnummer]]&t_articles[[#This Row],[Farbcode]]&t_articles[[#This Row],[Größe]] -> 000003101000498/104 | B71: 4036329501429 | C71: 000003101 | D71: 0004 | E71: navy | F71: 010 | G71: 98/104 | H71: 6.95 | I71: http://aedjfwfgap.cloudimg.io/v7/media.camano.de/images/000003101_0004_p_c1.jpg?w=80 | J71: 191,192,201,202,211,212,221,222,231,232 | K71: 5 | L71: 0 | M71: Children ca-soft organic cotton Tights 1p | N71: 8.9
A72: =t_articles[[#This Row],[Artikelnummer]]&t_articles[[#This Row],[Farbcode]]&t_articles[[#This Row],[Größe]] -> 0000031010005110/116 | B72: 4052171225559 | C72: 000003101 | D72: 0005 | E72: black | F72: 010 | G72: 110/116 | H72: 6.95 | I72: http://aedjfwfgap.cloudimg.io/v7/media.camano.de/images/000003101_0005_p_c1.jpg?w=80 | J72: 191,192,201,202,211,212,221,222,231,232 | K72: 5 | L72: 0 | M72: Children ca-soft organic cotton Tights 1p | N72: 8.9
A73: =t_articles[[#This Row],[Artikelnummer]]&t_articles[[#This Row],[Farbcode]]&t_articles[[#This Row],[Größe]] -> 0000031010005122/128 | B73: 4036329510544 | C73: 000003101 | D73: 0005 | E73: black | F73: 010 | G73: 122/128 | H73: 6.95 | I73: http://aedjfwfgap.cloudimg.io/v7/media.camano.de/images/000003101_0005_p_c1.jpg?w=80 | J73: 191,192,201,202,211,212,221,222,231,232 | K73: 5 | L73: 0 | M73: Children ca-soft organic cotton Tights 1p | N73: 8.9
A74: =t_articles[[#This Row],[Artikelnummer]]&t_articles[[#This Row],[Farbcode]]&t_articles[[#This Row],[Größe]] -> 0000031010005134/146 | B74: 4036329510551 | C74: 000003101 | D74: 0005 | E74: black | F74: 010 | G74: 134/146 | H74: 6.95 | I74: http://aedjfwfgap.cloudimg.io/v7/media.camano.de/images/000003101_0005_p_c1.jpg?w=80 | J74: 191,192,201,202,211,212,221,222,231,232 | K74: 5 | L74: 0 | M74: Children ca-soft organic cotton Tights 1p | N74: 8.9
A75: =t_articles[[#This Row],[Artikelnummer]]&t_articles[[#This Row],[Farbcode]]&t_articles[[#This Row],[Größe]] -> 0000031010005152/164 | B75: 4036329510568 | C75: 000003101 | D75: 0005 | E75: black | F75: 010 | G75: 152/164 | H75: 6.95 | I75: http://aedjfwfgap.cloudimg.io/v7/media.camano.de/images/000003101_0005_p_c1.jpg?w=80 | J75: 191,192,201,202,211,212,221,222,231,232 | K75: 5 | L75: 0 | M75: Children ca-soft organic cotton Tights 1p | N75: 8.9
A76: =t_articles[[#This Row],[Artikelnummer]]&t_articles[[#This Row],[Farbcode]]&t_articles[[#This Row],[Größe]] -> 0000031010005170/176 | B76: 4036329510575 | C76: 000003101 | D76: 0005 | E76: black | F76: 010 | G76: 170/176 | H76: 6.95 | I76: http://aedjfwfgap.cloudimg.io/v7/media.camano.de/images/000003101_0005_p_c1.jpg?w=80 | J76: 191,192,201,202,211,212,221,222,231,232 | K76: 5 | L76: 1 | M76: Children ca-soft organic cotton Tights 1p | N76: 8.9
A77: =t_articles[[#This Row],[Artikelnummer]]&t_articles[[#This Row],[Farbcode]]&t_articles[[#This Row],[Größe]] -> 000003101000586/92 | B77: 4052171225566 | C77: 000003101 | D77: 0005 | E77: black | F77: 010 | G77: 86/92 | H77: 6.95 | I77: http://aedjfwfgap.cloudimg.io/v7/media.camano.de/images/000003101_0005_p_c1.jpg?w=80 | J77: 191,192,201,202,211,212,221,222,231,232 | K77: 5 | L77: 1 | M77: Children ca-soft organic cotton Tights 1p | N77: 8.9
A78: =t_articles[[#This Row],[Artikelnummer]]&t_articles[[#This Row],[Farbcode]]&t_articles[[#This Row],[Größe]] -> 000003101000598/104 | B78: 4052171225573 | C78: 000003101 | D78: 0005 | E78: black | F78: 010 | G78: 98/104 | H78: 6.95 | I78: http://aedjfwfgap.cloudimg.io/v7/media.camano.de/images/000003101_0005_p_c1.jpg?w=80 | J78: 191,192,201,202,211,212,221,222,231,232 | K78: 5 | L78: 1 | M78: Children ca-soft organic cotton Tights 1p | N78: 8.9
A79: =t_articles[[#This Row],[Artikelnummer]]&t_articles[[#This Row],[Farbcode]]&t_articles[[#This Row],[Größe]] -> 0000031010010110/116 | B79: 4036329712191 | C79: 000003101 | D79: 0010 | E79: light grey | F79: 010 | G79: 110/116 | H79: 6.95 | I79: http://aedjfwfgap.cloudimg.io/v7/media.camano.de/images/000003101_0010_p_c1.jpg?w=80 | J79: 191,192,201,202,211,212,221,222,231,232 | K79: 5 | L79: 0 | M79: Children ca-soft organic cotton Tights 1p | N79: 8.9
A80: =t_articles[[#This Row],[Artikelnummer]]&t_articles[[#This Row],[Farbcode]]&t_articles[[#This Row],[Größe]] -> 0000031010010122/128 | B80: 4036329712207 | C80: 000003101 | D80: 0010 | E80: light grey | F80: 010 | G80: 122/128 | H80: 6.95 | I80: http://aedjfwfgap.cloudimg.io/v7/media.camano.de/images/000003101_0010_p_c1.jpg?w=80 | J80: 191,192,201,202,211,212,221,222,231,232 | K80: 5 | L80: 0 | M80: Children ca-soft organic cotton Tights 1p | N80: 8.9
A81: =t_articles[[#This Row],[Artikelnummer]]&t_articles[[#This Row],[Farbcode]]&t_articles[[#This Row],[Größe]] -> 0000031010010134/146 | B81: 4036329712214 | C81: 000003101 | D81: 0010 | E81: light grey | F81: 010 | G81: 134/146 | H81: 6.95 | I81: http://aedjfwfgap.cloudimg.io/v7/media.camano.de/images/000003101_0010_p_c1.jpg?w=80 | J81: 191,192,201,202,211,212,221,222,231,232 | K81: 5 | L81: 0 | M81: Children ca-soft organic cotton Tights 1p | N81: 8.9
A82: =t_articles[[#This Row],[Artikelnummer]]&t_articles[[#This Row],[Farbcode]]&t_articles[[#This Row],[Größe]] -> 0000031010010152/164 | B82: 4036329712245 | C82: 000003101 | D82: 0010 | E82: light grey | F82: 010 | G82: 152/164 | H82: 6.95 | I82: http://aedjfwfgap.cloudimg.io/v7/media.camano.de/images/000003101_0010_p_c1.jpg?w=80 | J82: 191,192,201,202,211,212,221,222,231,232 | K82: 5 | L82: 0 | M82: Children ca-soft organic cotton Tights 1p | N82: 8.9
A83: =t_articles[[#This Row],[Artikelnummer]]&t_articles[[#This Row],[Farbcode]]&t_articles[[#This Row],[Größe]] -> 0000031010010170/176 | B83: 4036329712252 | C83: 000003101 | D83: 0010 | E83: light grey | F83: 010 | G83: 170/176 | H83: 6.95 | I83: http://aedjfwfgap.cloudimg.io/v7/media.camano.de/images/000003101_0010_p_c1.jpg?w=80 | J83: 191,192,201,202,211,212,221,222,231,232 | K83: 5 | L83: 1 | M83: Children ca-soft organic cotton Tights 1p | N83: 8.9
A84: =t_articles[[#This Row],[Artikelnummer]]&t_articles[[#This Row],[Farbcode]]&t_articles[[#This Row],[Größe]] -> 000003101001086/92 | B84: 4036329712177 | C84: 000003101 | D84: 0010 | E84: light grey | F84: 010 | G84: 86/92 | H84: 6.95 | I84: http://aedjfwfgap.cloudimg.io/v7/media.camano.de/images/000003101_0010_p_c1.jpg?w=80 | J84: 191,192,201,202,211,212,221,222,231,232 | K84: 5 | L84: 0 | M84: Children ca-soft organic cotton Tights 1p | N84: 8.9
A85: =t_articles[[#This Row],[Artikelnummer]]&t_articles[[#This Row],[Farbcode]]&t_articles[[#This Row],[Größe]] -> 000003101001098/104 | B85: 4036329712184 | C85: 000003101 | D85: 0010 | E85: light grey | F85: 010 | G85: 98/104 | H85: 6.95 | I85: http://aedjfwfgap.cloudimg.io/v7/media.camano.de/images/000003101_0010_p_c1.jpg?w=80 | J85: 191,192,201,202,211,212,221,222,231,232 | K85: 5 | L85: 0 | M85: Children ca-soft organic cotton Tights 1p | N85: 8.9
A86: =t_articles[[#This Row],[Artikelnummer]]&t_articles[[#This Row],[Farbcode]]&t_articles[[#This Row],[Größe]] -> 0000031010033110/116 | B86: 4052171146311 | C86: 000003101 | D86: 0033 | E86: denim | F86: 010 | G86: 110/116 | H86: 6.95 | I86: http://aedjfwfgap.cloudimg.io/v7/media.camano.de/images/000003101_0033_p_c1.jpg?w=80 | J86: 191,192,201,202,211,212,221,222,231,232 | K86: 5 | L86: 0 | M86: Children ca-soft organic cotton Tights 1p | N86: 8.9
A87: =t_articles[[#This Row],[Artikelnummer]]&t_articles[[#This Row],[Farbcode]]&t_articles[[#This Row],[Größe]] -> 0000031010033122/128 | B87: 4052171146328 | C87: 000003101 | D87: 0033 | E87: denim | F87: 010 | G87: 122/128 | H87: 6.95 | I87: http://aedjfwfgap.cloudimg.io/v7/media.camano.de/images/000003101_0033_p_c1.jpg?w=80 | J87: 191,192,201,202,211,212,221,222,231,232 | K87: 5 | L87: 0 | M87: Children ca-soft organic cotton Tights 1p | N87: 8.9
A88: =t_articles[[#This Row],[Artikelnummer]]&t_articles[[#This Row],[Farbcode]]&t_articles[[#This Row],[Größe]] -> 0000031010033134/146 | B88: 4052171146335 | C88: 000003101 | D88: 0033 | E88: denim | F88: 010 | G88: 134/146 | H88: 6.95 | I88: http://aedjfwfgap.cloudimg.io/v7/media.camano.de/images/000003101_0033_p_c1.jpg?w=80 | J88: 191,192,201,202,211,212,221,222,231,232 | K88: 5 | L88: 0 | M88: Children ca-soft organic cotton Tights 1p | N88: 8.9
A89: =t_articles[[#This Row],[Artikelnummer]]&t_articles[[#This Row],[Farbcode]]&t_articles[[#This Row],[Größe]] -> 0000031010033152/164 | B89: 4052171146342 | C89: 000003101 | D89: 0033 | E89: denim | F89: 010 | G89: 152/164 | H89: 6.95 | I89: http://aedjfwfgap.cloudimg.io/v7/media.camano.de/images/000003101_0033_p_c1.jpg?w=80 | J89: 191,192,201,202,211,212,221,222,231,232 | K89: 5 | L89: 0 | M89: Children ca-soft organic cotton Tights 1p | N89: 8.9
A90: =t_articles[[#This Row],[Artikelnummer]]&t_articles[[#This Row],[Farbcode]]&t_articles[[#This Row],[Größe]] -> 0000031010033170/176 | B90: 4052171225603 | C90: 000003101 | D90: 0033 | E90: denim | F90: 010 | G90: 170/176 | H90: 6.95 | I90: http://aedjfwfgap.cloudimg.io/v7/media.camano.de/images/000003101_0033_p_c1.jpg?w=80 | J90: 191,192,201,202,211,212,221,222,231,232 | K90: 5 | L90: 1 | M90: Children ca-soft organic cotton Tights 1p | N90: 8.9
A91: =t_articles[[#This Row],[Artikelnummer]]&t_articles[[#This Row],[Farbcode]]&t_articles[[#This Row],[Größe]] -> 000003101003386/92 | B91: 4052171146359 | C91: 000003101 | D91: 0033 | E91: denim | F91: 010 | G91: 86/92 | H91: 6.95 | I91: http://aedjfwfgap.cloudimg.io/v7/media.camano.de/images/000003101_0033_p_c1.jpg?w=80 | J91: 191,192,201,202,211,212,221,222,231,232 | K91: 5 | L91: 0 | M91: Children ca-soft organic cotton Tights 1p | N91: 8.9
A92: =t_articles[[#This Row],[Artikelnummer]]&t_articles[[#This Row],[Farbcode]]&t_articles[[#This Row],[Größe]] -> 000003101003398/104 | B92: 4052171146366 | C92: 000003101 | D92: 0033 | E92: denim | F92: 010 | G92: 98/104 | H92: 6.95 | I92: http://aedjfwfgap.cloudimg.io/v7/media.camano.de/images/000003101_0033_p_c1.jpg?w=80 | J92: 191,192,201,202,211,212,221,222,231,232 | K92: 5 | L92: 0 | M92: Children ca-soft organic cotton Tights 1p | N92: 8.9
A93: =t_articles[[#This Row],[Artikelnummer]]&t_articles[[#This Row],[Farbcode]]&t_articles[[#This Row],[Größe]] -> 0000031014290110/116 | B93: 4052171225672 | C93: 000003101 | D93: 4290 | E93: silver rose | F93: 010 | G93: 110/116 | H93: 6.95 | I93: http://aedjfwfgap.cloudimg.io/v7/media.camano.de/images/000003101_4290_p_c1.jpg?w=80 | J93: 191,192,201,202,211,212,221,222,231,232 | K93: 5 | L93: 0 | M93: Children ca-soft organic cotton Tights 1p | N93: 8.9
A94: =t_articles[[#This Row],[Artikelnummer]]&t_articles[[#This Row],[Farbcode]]&t_articles[[#This Row],[Größe]] -> 0000031014290122/128 | B94: 4052171225689 | C94: 000003101 | D94: 4290 | E94: silver rose | F94: 010 | G94: 122/128 | H94: 6.95 | I94: http://aedjfwfgap.cloudimg.io/v7/media.camano.de/images/000003101_4290_p_c1.jpg?w=80 | J94: 191,192,201,202,211,212,221,222,231,232 | K94: 5 | L94: 0 | M94: Children ca-soft organic cotton Tights 1p | N94: 8.9
A95: =t_articles[[#This Row],[Artikelnummer]]&t_articles[[#This Row],[Farbcode]]&t_articles[[#This Row],[Größe]] -> 0000031014290134/146 | B95: 4052171225696 | C95: 000003101 | D95: 4290 | E95: silver rose | F95: 010 | G95: 134/146 | H95: 6.95 | I95: http://aedjfwfgap.cloudimg.io/v7/media.camano.de/images/000003101_4290_p_c1.jpg?w=80 | J95: 191,192,201,202,211,212,221,222,231,232 | K95: 5 | L95: 0 | M95: Children ca-soft organic cotton Tights 1p | N95: 8.9
A96: =t_articles[[#This Row],[Artikelnummer]]&t_articles[[#This Row],[Farbcode]]&t_articles[[#This Row],[Größe]] -> 0000031014290152/164 | B96: 4052171225702 | C96: 000003101 | D96: 4290 | E96: silver rose | F96: 010 | G96: 152/164 | H96: 6.95 | I96: http://aedjfwfgap.cloudimg.io/v7/media.camano.de/images/000003101_4290_p_c1.jpg?w=80 | J96: 191,192,201,202,211,212,221,222,231,232 | K96: 5 | L96: 0 | M96: Children ca-soft organic cotton Tights 1p | N96: 8.9
A97: =t_articles[[#This Row],[Artikelnummer]]&t_articles[[#This Row],[Farbcode]]&t_articles[[#This Row],[Größe]] -> 000003101429086/92 | B97: 4052171225658 | C97: 000003101 | D97: 4290 | E97: silver rose | F97: 010 | G97: 86/92 | H97: 6.95 | I97: http://aedjfwfgap.cloudimg.io/v7/media.camano.de/images/000003101_4290_p_c1.jpg?w=80 | J97: 191,192,201,202,211,212,221,222,231,232 | K97: 5 | L97: 0 | M97: Children ca-soft organic cotton Tights 1p | N97: 8.9
A98: =t_articles[[#This Row],[Artikelnummer]]&t_articles[[#This Row],[Farbcode]]&t_articles[[#This Row],[Größe]] -> 000003101429098/104 | B98: 4052171225665 | C98: 000003101 | D98: 4290 | E98: silver rose | F98: 010 | G98: 98/104 | H98: 6.95 | I98: http://aedjfwfgap.cloudimg.io/v7/media.camano.de/images/000003101_4290_p_c1.jpg?w=80 | J98: 191,192,201,202,211,212,221,222,231,232 | K98: 5 | L98: 0 | M98: Children ca-soft organic cotton Tights 1p | N98: 8.9
A99: =t_articles[[#This Row],[Artikelnummer]]&t_articles[[#This Row],[Farbcode]]&t_articles[[#This Row],[Größe]] -> 000003105000150/56 | B99: 4052171176813 | C99: 000003105 | D99: 0001 | E99: white | F99: 010 | G99: 50/56 | H99: 6.95 | I99: http://aedjfwfgap.cloudimg.io/v7/media.camano.de/images/000003105_0001_p_c1.jpg?w=80 | J99: 191,192,201,202,211,212,221,222,231,232 | K99: 3 | L99: 0 | M99: Baby ca-soft organic cotton Tights 1p | N99: 8.9
A100: =t_articles[[#This Row],[Artikelnummer]]&t_articles[[#This Row],[Farbcode]]&t_articles[[#This Row],[Größe]] -> 000003105000162/68 | B100: 4052171176806 | C100: 000003105 | D100: 0001 | E100: white | F100: 010 | G100: 62/68 | H100: 6.95 | I100: http://aedjfwfgap.cloudimg.io/v7/media.camano.de/images/000003105_0001_p_c1.jpg?w=80 | J100: 191,192,201,202,211,212,221,222,231,232 | K100: 3 | L100: 0 | M100: Baby ca-soft organic cotton Tights 1p | N100: 8.9
A101: =t_articles[[#This Row],[Artikelnummer]]&t_articles[[#This Row],[Farbcode]]&t_articles[[#This Row],[Größe]] -> 000003105000174/80 | B101: 4052171176790 | C101: 000003105 | D101: 0001 | E101: white | F101: 010 | G101: 74/80 | H101: 6.95 | I101: http://aedjfwfgap.cloudimg.io/v7/media.camano.de/images/000003105_0001_p_c1.jpg?w=80 | J101: 191,192,201,202,211,212,221,222,231,232 | K101: 3 | L101: 0 | M101: Baby ca-soft organic cotton Tights 1p | N101: 8.9
A102: =t_articles[[#This Row],[Artikelnummer]]&t_articles[[#This Row],[Farbcode]]&t_articles[[#This Row],[Größe]] -> 000003105000450/56 | B102: 4052171176783 | C102: 000003105 | D102: 0004 | E102: navy | F102: 010 | G102: 50/56 | H102: 6.95 | I102: http://aedjfwfgap.cloudimg.io/v7/media.camano.de/images/000003105_0004_p_c1.jpg?w=80 | J102: 191,192,201,202,211,212,221,222,231,232 | K102: 3 | L102: 0 | M102: Baby ca-soft organic cotton Tights 1p | N102: 8.9
A103: =t_articles[[#This Row],[Artikelnummer]]&t_articles[[#This Row],[Farbcode]]&t_articles[[#This Row],[Größe]] -> 000003105000462/68 | B103: 4052171176776 | C103: 000003105 | D103: 0004 | E103: navy | F103: 010 | G103: 62/68 | H103: 6.95 | I103: http://aedjfwfgap.cloudimg.io/v7/media.camano.de/images/000003105_0004_p_c1.jpg?w=80 | J103: 191,192,201,202,211,212,221,222,231,232 | K103: 3 | L103: 0 | M103: Baby ca-soft organic cotton Tights 1p | N103: 8.9
A104: =t_articles[[#This Row],[Artikelnummer]]&t_articles[[#This Row],[Farbcode]]&t_articles[[#This Row],[Größe]] -> 000003105000474/80 | B104: 4052171176769 | C104: 000003105 | D104: 0004 | E104: navy | F104: 010 | G104: 74/80 | H104: 6.95 | I104: http://aedjfwfgap.cloudimg.io/v7/media.camano.de/images/000003105_0004_p_c1.jpg?w=80 | J104: 191,192,201,202,211,212,221,222,231,232 | K104: 3 | L104: 0 | M104: Baby ca-soft organic cotton Tights 1p | N104: 8.9
A105: =t_articles[[#This Row],[Artikelnummer]]&t_articles[[#This Row],[Farbcode]]&t_articles[[#This Row],[Größe]] -> 000003105001250/56 | B105: 4052171176752 | C105: 000003105 | D105: 0012 | E105: rosé | F105: 010 | G105: 50/56 | H105: 6.95 | I105: http://aedjfwfgap.cloudimg.io/v7/media.camano.de/images/000003105_0012_p_c1.jpg?w=80 | J105: 191,192,201,202,211,212,221,222,231,232 | K105: 3 | L105: 0 | M105: Baby ca-soft organic cotton Tights 1p | N105: 8.9
A106: =t_articles[[#This Row],[Artikelnummer]]&t_articles[[#This Row],[Farbcode]]&t_articles[[#This Row],[Größe]] -> 000003105001262/68 | B106: 4052171176745 | C106: 000003105 | D106: 0012 | E106: rosé | F106: 010 | G106: 62/68 | H106: 6.95 | I106: http://aedjfwfgap.cloudimg.io/v7/media.camano.de/images/000003105_0012_p_c1.jpg?w=80 | J106: 191,192,201,202,211,212,221,222,231,232 | K106: 3 | L106: 0 | M106: Baby ca-soft organic cotton Tights 1p | N106: 8.9
A107: =t_articles[[#This Row],[Artikelnummer]]&t_articles[[#This Row],[Farbcode]]&t_articles[[#This Row],[Größe]] -> 000003105001274/80 | B107: 4052171176738 | C107: 000003105 | D107: 0012 | E107: rosé | F107: 010 | G107: 74/80 | H107: 6.95 | I107: http://aedjfwfgap.cloudimg.io/v7/media.camano.de/images/000003105_0012_p_c1.jpg?w=80 | J107: 191,192,201,202,211,212,221,222,231,232 | K107: 3 | L107: 0 | M107: Baby ca-soft organic cotton Tights 1p | N107: 8.9
A108: =t_articles[[#This Row],[Artikelnummer]]&t_articles[[#This Row],[Farbcode]]&t_articles[[#This Row],[Größe]] -> 000003105001650/56 | B108: 4052171176721 | C108: 000003105 | D108: 0016 | E108: light blue | F108: 010 | G108: 50/56 | H108: 6.95 | I108: http://aedjfwfgap.cloudimg.io/v7/media.camano.de/images/000003105_0016_p_c1.jpg?w=80 | J108: 192,201,202,211,212,221,222,231,232 | K108: 3 | L108: 0 | M108: Baby ca-soft organic cotton Tights 1p | N108: 8.9
A109: =t_articles[[#This Row],[Artikelnummer]]&t_articles[[#This Row],[Farbcode]]&t_articles[[#This Row],[Größe]] -> 000003105001662/68 | B109: 4052171176714 | C109: 000003105 | D109: 0016 | E109: light blue | F109: 010 | G109: 62/68 | H109: 6.95 | I109: http://aedjfwfgap.cloudimg.io/v7/media.camano.de/images/000003105_0016_p_c1.jpg?w=80 | J109: 192,201,202,211,212,221,222,231,232 | K109: 3 | L109: 0 | M109: Baby ca-soft organic cotton Tights 1p | N109: 8.9
A110: =t_articles[[#This Row],[Artikelnummer]]&t_articles[[#This Row],[Farbcode]]&t_articles[[#This Row],[Größe]] -> 000003105001674/80 | B110: 4052171176707 | C110: 000003105 | D110: 0016 | E110: light blue | F110: 010 | G110: 74/80 | H110: 6.95 | I110: http://aedjfwfgap.cloudimg.io/v7/media.camano.de/images/000003105_0016_p_c1.jpg?w=80 | J110: 192,201,202,211,212,221,222,231,232 | K110: 3 | L110: 0 | M110: Baby ca-soft organic cotton Tights 1p | N110: 8.9
A111: =t_articles[[#This Row],[Artikelnummer]]&t_articles[[#This Row],[Farbcode]]&t_articles[[#This Row],[Größe]] -> 0000031190001110/116 | B111: 4036329520130 | C111: 000003119 | D111: 0001 | E111: white | F111: 010 | G111: 110/116 | H111: 6.95 | I111: http://aedjfwfgap.cloudimg.io/v7/media.camano.de/images/000003119_0001_p_c1.jpg?w=80 | J111: 191,192,201,202,211,212,221,222,231,232 | K111: 7 | L111: 0 | M111: Children fine organic cotton Tights 1p | N111: 8.9
A112: =t_articles[[#This Row],[Artikelnummer]]&t_articles[[#This Row],[Farbcode]]&t_articles[[#This Row],[Größe]] -> 0000031190001122/128 | B112: 4036329520147 | C112: 000003119 | D112: 0001 | E112: white | F112: 010 | G112: 122/128 | H112: 6.95 | I112: http://aedjfwfgap.cloudimg.io/v7/media.camano.de/images/000003119_0001_p_c1.jpg?w=80 | J112: 191,192,201,202,211,212,221,222,231,232 | K112: 7 | L112: 0 | M112: Children fine organic cotton Tights 1p | N112: 8.9
A113: =t_articles[[#This Row],[Artikelnummer]]&t_articles[[#This Row],[Farbcode]]&t_articles[[#This Row],[Größe]] -> 0000031190001134/146 | B113: 4036329520154 | C113: 000003119 | D113: 0001 | E113: white | F113: 010 | G113: 134/146 | H113: 6.95 | I113: http://aedjfwfgap.cloudimg.io/v7/media.camano.de/images/000003119_0001_p_c1.jpg?w=80 | J113: 191,192,201,202,211,212,221,222,231,232 | K113: 7 | L113: 0 | M113: Children fine organic cotton Tights 1p | N113: 8.9
A114: =t_articles[[#This Row],[Artikelnummer]]&t_articles[[#This Row],[Farbcode]]&t_articles[[#This Row],[Größe]] -> 0000031190001152/164 | B114: 4036329520161 | C114: 000003119 | D114: 0001 | E114: white | F114: 010 | G114: 152/164 | H114: 6.95 | I114: http://aedjfwfgap.cloudimg.io/v7/media.camano.de/images/000003119_0001_p_c1.jpg?w=80 | J114: 191,192,201,202,211,212,221,222,231,232 | K114: 7 | L114: 0 | M114: Children fine organic cotton Tights 1p | N114: 8.9
A115: =t_articles[[#This Row],[Artikelnummer]]&t_articles[[#This Row],[Farbcode]]&t_articles[[#This Row],[Größe]] -> 000003119000186/92 | B115: 4036329520116 | C115: 000003119 | D115: 0001 | E115: white | F115: 010 | G115: 86/92 | H115: 6.95 | I115: http://aedjfwfgap.cloudimg.io/v7/media.camano.de/images/000003119_0001_p_c1.jpg?w=80 | J115: 191,192,201,202,211,212,221,222,231,232 | K115: 7 | L115: 1 | M115: Children fine organic cotton Tights 1p | N115: 8.9
A116: =t_articles[[#This Row],[Artikelnummer]]&t_articles[[#This Row],[Farbcode]]&t_articles[[#This Row],[Größe]] -> 000003119000198/104 | B116: 4036329520123 | C116: 000003119 | D116: 0001 | E116: white | F116: 010 | G116: 98/104 | H116: 6.95 | I116: http://aedjfwfgap.cloudimg.io/v7/media.camano.de/images/000003119_0001_p_c1.jpg?w=80 | J116: 191,192,201,202,211,212,221,222,231,232 | K116: 7 | L116: 0 | M116: Children fine organic cotton Tights 1p | N116: 8.9
A117: =t_articles[[#This Row],[Artikelnummer]]&t_articles[[#This Row],[Farbcode]]&t_articles[[#This Row],[Größe]] -> 0000031190004110/116 | B117: 4036329520437 | C117: 000003119 | D117: 0004 | E117: navy | F117: 010 | G117: 110/116 | H117: 6.95 | I117: http://aedjfwfgap.cloudimg.io/v7/media.camano.de/images/000003119_0004_p_c1.jpg?w=80 | J117: 191,192,201,202,211,212,221,222,231,232 | K117: 7 | L117: 0 | M117: Children fine organic cotton Tights 1p | N117: 8.9
A118: =t_articles[[#This Row],[Artikelnummer]]&t_articles[[#This Row],[Farbcode]]&t_articles[[#This Row],[Größe]] -> 0000031190004122/128 | B118: 4036329520444 | C118: 000003119 | D118: 0004 | E118: navy | F118: 010 | G118: 122/128 | H118: 6.95 | I118: http://aedjfwfgap.cloudimg.io/v7/media.camano.de/images/000003119_0004_p_c1.jpg?w=80 | J118: 191,192,201,202,211,212,221,222,231,232 | K118: 7 | L118: 0 | M118: Children fine organic cotton Tights 1p | N118: 8.9
A119: =t_articles[[#This Row],[Artikelnummer]]&t_articles[[#This Row],[Farbcode]]&t_articles[[#This Row],[Größe]] -> 0000031190004134/146 | B119: 4036329520451 | C119: 000003119 | D119: 0004 | E119: navy | F119: 010 | G119: 134/146 | H119: 6.95 | I119: http://aedjfwfgap.cloudimg.io/v7/media.camano.de/images/000003119_0004_p_c1.jpg?w=80 | J119: 191,192,201,202,211,212,221,222,231,232 | K119: 7 | L119: 0 | M119: Children fine organic cotton Tights 1p | N119: 8.9
A120: =t_articles[[#This Row],[Artikelnummer]]&t_articles[[#This Row],[Farbcode]]&t_articles[[#This Row],[Größe]] -> 0000031190004152/164 | B120: 4036329520468 | C120: 000003119 | D120: 0004 | E120: navy | F120: 010 | G120: 152/164 | H120: 6.95 | I120: http://aedjfwfgap.cloudimg.io/v7/media.camano.de/images/000003119_0004_p_c1.jpg?w=80 | J120: 191,192,201,202,211,212,221,222,231,232 | K120: 7 | L120: 0 | M120: Children fine organic cotton Tights 1p | N120: 8.9
A121: =t_articles[[#This Row],[Artikelnummer]]&t_articles[[#This Row],[Farbcode]]&t_articles[[#This Row],[Größe]] -> 000003119000486/92 | B121: 4036329520413 | C121: 000003119 | D121: 0004 | E121: navy | F121: 010 | G121: 86/92 | H121: 6.95 | I121: http://aedjfwfgap.cloudimg.io/v7/media.camano.de/images/000003119_0004_p_c1.jpg?w=80 | J121: 191,192,201,202,211,212,221,222,231,232 | K121: 7 | L121: 1 | M121: Children fine organic cotton Tights 1p | N121: 8.9
A122: =t_articles[[#This Row],[Artikelnummer]]&t_articles[[#This Row],[Farbcode]]&t_articles[[#This Row],[Größe]] -> 000003119000498/104 | B122: 4036329520420 | C122: 000003119 | D122: 0004 | E122: navy | F122: 010 | G122: 98/104 | H122: 6.95 | I122: http://aedjfwfgap.cloudimg.io/v7/media.camano.de/images/000003119_0004_p_c1.jpg?w=80 | J122: 191,192,201,202,211,212,221,222,231,232 | K122: 7 | L122: 0 | M122: Children fine organic cotton Tights 1p | N122: 8.9
A123: =t_articles[[#This Row],[Artikelnummer]]&t_articles[[#This Row],[Farbcode]]&t_articles[[#This Row],[Größe]] -> 0000031190042110/116 | B123: 4052171039040 | C123: 000003119 | D123: 0042 | E123: fuchsia | F123: 010 | G123: 110/116 | H123: 6.95 | I123: http://aedjfwfgap.cloudimg.io/v7/media.camano.de/images/000003119_0042_p_c1.jpg?w=80 | J123: 191,192,201,202,211,212,221,222,231,232 | K123: 7 | L123: 0 | M123: Children fine organic cotton Tights 1p | N123: 8.9
A124: =t_articles[[#This Row],[Artikelnummer]]&t_articles[[#This Row],[Farbcode]]&t_articles[[#This Row],[Größe]] -> 0000031190042122/128 | B124: 4052171039057 | C124: 000003119 | D124: 0042 | E124: fuchsia | F124: 010 | G124: 122/128 | H124: 6.95 | I124: http://aedjfwfgap.cloudimg.io/v7/media.camano.de/images/000003119_0042_p_c1.jpg?w=80 | J124: 191,192,201,202,211,212,221,222,231,232 | K124: 7 | L124: 0 | M124: Children fine organic cotton Tights 1p | N124: 8.9
A125: =t_articles[[#This Row],[Artikelnummer]]&t_articles[[#This Row],[Farbcode]]&t_articles[[#This Row],[Größe]] -> 0000031190042134/146 | B125: 4052171039064 | C125: 000003119 | D125: 0042 | E125: fuchsia | F125: 010 | G125: 134/146 | H125: 6.95 | I125: http://aedjfwfgap.cloudimg.io/v7/media.camano.de/images/000003119_0042_p_c1.jpg?w=80 | J125: 191,192,201,202,211,212,221,222,231,232 | K125: 7 | L125: 0 | M125: Children fine organic cotton Tights 1p | N125: 8.9
A126: =t_articles[[#This Row],[Artikelnummer]]&t_articles[[#This Row],[Farbcode]]&t_articles[[#This Row],[Größe]] -> 0000031190042152/164 | B126: 4052171039071 | C126: 000003119 | D126: 0042 | E126: fuchsia | F126: 010 | G126: 152/164 | H126: 6.95 | I126: http://aedjfwfgap.cloudimg.io/v7/media.camano.de/images/000003119_0042_p_c1.jpg?w=80 | J126: 191,192,201,202,211,212,221,222,231,232 | K126: 7 | L126: 0 | M126: Children fine organic cotton Tights 1p | N126: 8.9
A127: =t_articles[[#This Row],[Artikelnummer]]&t_articles[[#This Row],[Farbcode]]&t_articles[[#This Row],[Größe]] -> 000003119004298/104 | B127: 4052171039095 | C127: 000003119 | D127: 0042 | E127: fuchsia | F127: 010 | G127: 98/104 | H127: 6.95 | I127: http://aedjfwfgap.cloudimg.io/v7/media.camano.de/images/000003119_0042_p_c1.jpg?w=80 | J127: 191,192,201,202,211,212,221,222,231,232 | K127: 7 | L127: 0 | M127: Children fine organic cotton Tights 1p | N127: 8.9
A128: =t_articles[[#This Row],[Artikelnummer]]&t_articles[[#This Row],[Farbcode]]&t_articles[[#This Row],[Größe]] -> 0000031250000122/140 | B128: 4052171102416 | C128: 000003125 | D128: 0000 | E128: white | F128: 020 | G128: 122/140 | H128: 7.95 | I128: http://aedjfwfgap.cloudimg.io/v7/media.camano.de/images/000003125_0000_p_c1.jpg?w=80 | J128: 191,192,201,202,211,212,221,222,231,232 | K128: 8 | L128: 0 | M128: Children fine Tights 40 DEN 2p | N128: 9.9
A129: =t_articles[[#This Row],[Artikelnummer]]&t_articles[[#This Row],[Farbcode]]&t_articles[[#This Row],[Größe]] -> 0000031250000146/164 | B129: 4052171102423 | C129: 000003125 | D129: 0000 | E129: white | F129: 020 | G129: 146/164 | H129: 7.95 | I129: http://aedjfwfgap.cloudimg.io/v7/media.camano.de/images/000003125_0000_p_c1.jpg?w=80 | J129: 191,192,201,202,211,212,221,222,231,232 | K129: 8 | L129: 0 | M129: Children fine Tights 40 DEN 2p | N129: 9.9
A130: =t_articles[[#This Row],[Artikelnummer]]&t_articles[[#This Row],[Farbcode]]&t_articles[[#This Row],[Größe]] -> 000003125000098/116 | B130: 4052171102430 | C130: 000003125 | D130: 0000 | E130: white | F130: 020 | G130: 98/116 | H130: 7.95 | I130: http://aedjfwfgap.cloudimg.io/v7/media.camano.de/images/000003125_0000_p_c1.jpg?w=80 | J130: 191,192,201,202,211,212,221,222,231,232 | K130: 8 | L130: 0 | M130: Children fine Tights 40 DEN 2p | N130: 9.9
A131: =t_articles[[#This Row],[Artikelnummer]]&t_articles[[#This Row],[Farbcode]]&t_articles[[#This Row],[Größe]] -> 0000031250001122/140 | B131: 4052171102447 | C131: 000003125 | D131: 0001 | E131: alabaster | F131: 020 | G131: 122/140 | H131: 7.95 | I131: http://aedjfwfgap.cloudimg.io/v7/media.camano.de/images/000003125_0001_p_c1.jpg?w=80 | J131: 191,192,201,202,211,212,221,222,231,232 | K131: 8 | L131: 0 | M131: Children fine Tights 40 DEN 2p | N131: 9.9
A132: =t_articles[[#This Row],[Artikelnummer]]&t_articles[[#This Row],[Farbcode]]&t_articles[[#This Row],[Größe]] -> 0000031250001146/164 | B132: 4052171102454 | C132: 000003125 | D132: 0001 | E132: alabaster | F132: 020 | G132: 146/164 | H132: 7.95 | I132: http://aedjfwfgap.cloudimg.io/v7/media.camano.de/images/000003125_0001_p_c1.jpg?w=80 | J132: 191,192,201,202,211,212,221,222,231,232 | K132: 8 | L132: 0 | M132: Children fine Tights 40 DEN 2p | N132: 9.9
A133: =t_articles[[#This Row],[Artikelnummer]]&t_articles[[#This Row],[Farbcode]]&t_articles[[#This Row],[Größe]] -> 000003125000198/116 | B133: 4052171102461 | C133: 000003125 | D133: 0001 | E133: alabaster | F133: 020 | G133: 98/116 | H133: 7.95 | I133: http://aedjfwfgap.cloudimg.io/v7/media.camano.de/images/000003125_0001_p_c1.jpg?w=80 | J133: 191,192,201,202,211,212,221,222,231,232 | K133: 8 | L133: 0 | M133: Children fine Tights 40 DEN 2p | N133: 9.9
A134: =t_articles[[#This Row],[Artikelnummer]]&t_articles[[#This Row],[Farbcode]]&t_articles[[#This Row],[Größe]] -> 0000031250002122/140 | B134: 4052171123626 | C134: 000003125 | D134: 0002 | E134: offwhite | F134: 020 | G134: 122/140 | H134: 7.95 | I134: http://aedjfwfgap.cloudimg.io/v7/media.camano.de/images/000003125_0002_p_c1.jpg?w=80 | J134: 191,192,201,202,211,212,221,222,231,232 | K134: 8 | L134: 0 | M134: Children fine Tights 40 DEN 2p | N134: 9.9
A135: =t_articles[[#This Row],[Artikelnummer]]&t_articles[[#This Row],[Farbcode]]&t_articles[[#This Row],[Größe]] -> 0000031250002146/164 | B135: 4052171123633 | C135: 000003125 | D135: 0002 | E135: offwhite | F135: 020 | G135: 146/164 | H135: 7.95 | I135: http://aedjfwfgap.cloudimg.io/v7/media.camano.de/images/000003125_0002_p_c1.jpg?w=80 | J135: 191,192,201,202,211,212,221,222,231,232 | K135: 8 | L135: 0 | M135: Children fine Tights 40 DEN 2p | N135: 9.9
A136: =t_articles[[#This Row],[Artikelnummer]]&t_articles[[#This Row],[Farbcode]]&t_articles[[#This Row],[Größe]] -> 000003125000298/116 | B136: 4052171123640 | C136: 000003125 | D136: 0002 | E136: offwhite | F136: 020 | G136: 98/116 | H136: 7.95 | I136: http://aedjfwfgap.cloudimg.io/v7/media.camano.de/images/000003125_0002_p_c1.jpg?w=80 | J136: 191,192,201,202,211,212,221,222,231,232 | K136: 8 | L136: 0 | M136: Children fine Tights 40 DEN 2p | N136: 9.9
A137: =t_articles[[#This Row],[Artikelnummer]]&t_articles[[#This Row],[Farbcode]]&t_articles[[#This Row],[Größe]] -> 0000031250005122/140 | B137: 4052171144843 | C137: 000003125 | D137: 0005 | E137: black | F137: 020 | G137: 122/140 | H137: 7.95 | I137: http://aedjfwfgap.cloudimg.io/v7/media.camano.de/images/000003125_0005_p_c1.jpg?w=80 | J137: 221,222,231 | K137: 8 | L137: 0 | M137: Children fine Tights 40 DEN 2p | N137: 9.9
A138: =t_articles[[#This Row],[Artikelnummer]]&t_articles[[#This Row],[Farbcode]]&t_articles[[#This Row],[Größe]] -> 0000031250005146/164 | B138: 4052171144850 | C138: 000003125 | D138: 0005 | E138: black | F138: 020 | G138: 146/164 | H138: 7.95 | I138: http://aedjfwfgap.cloudimg.io/v7/media.camano.de/images/000003125_0005_p_c1.jpg?w=80 | J138: 221,222,231 | K138: 8 | L138: 0 | M138: Children fine Tights 40 DEN 2p | N138: 9.9
A139: =t_articles[[#This Row],[Artikelnummer]]&t_articles[[#This Row],[Farbcode]]&t_articles[[#This Row],[Größe]] -> 000003125000598/116 | B139: 4052171144867 | C139: 000003125 | D139: 0005 | E139: black | F139: 020 | G139: 98/116 | H139: 7.95 | I139: http://aedjfwfgap.cloudimg.io/v7/media.camano.de/images/000003125_0005_p_c1.jpg?w=80 | J139: 221,222,231 | K139: 8 | L139: 0 | M139: Children fine Tights 40 DEN 2p | N139: 9.9
A140: =t_articles[[#This Row],[Artikelnummer]]&t_articles[[#This Row],[Farbcode]]&t_articles[[#This Row],[Größe]] -> 000003128000127/30 | B140: 4052171162014 | C140: 000003128 | D140: 0001 | E140: white | F140: 040 | G140: 27/30 | H140: 6.95 | I140: http://aedjfwfgap.cloudimg.io/v7/media.camano.de/images/000003128_0001_p_c1.jpg?w=80 | J140: 191,192,201,202,211,212,221,222,231 | K140: 6 | L140: 0 | M140: Children comfort organic cotton Footies 2p | N140: 8.9
A141: =t_articles[[#This Row],[Artikelnummer]]&t_articles[[#This Row],[Farbcode]]&t_articles[[#This Row],[Größe]] -> 000003128000131/34 | B141: 4052171162007 | C141: 000003128 | D141: 0001 | E141: white | F141: 040 | G141: 31/34 | H141: 6.95 | I141: http://aedjfwfgap.cloudimg.io/v7/media.camano.de/images/000003128_0001_p_c1.jpg?w=80 | J141: 191,192,201,202,211,212,221,222,231 | K141: 6 | L141: 0 | M141: Children comfort organic cotton Footies 2p | N141: 8.9
A142: =t_articles[[#This Row],[Artikelnummer]]&t_articles[[#This Row],[Farbcode]]&t_articles[[#This Row],[Größe]] -> 000003128000135/38 | B142: 4052171161994 | C142: 000003128 | D142: 0001 | E142: white | F142: 040 | G142: 35/38 | H142: 6.95 | I142: http://aedjfwfgap.cloudimg.io/v7/media.camano.de/images/000003128_0001_p_c1.jpg?w=80 | J142: 191,192,201,202,211,212,221,222,231 | K142: 6 | L142: 0 | M142: Children comfort organic cotton Footies 2p | N142: 8.9
A143: =t_articles[[#This Row],[Artikelnummer]]&t_articles[[#This Row],[Farbcode]]&t_articles[[#This Row],[Größe]] -> 000003128000427/30 | B143: 4052171217219 | C143: 000003128 | D143: 0004 | E143: navy | F143: 040 | G143: 27/30 | H143: 6.95 | I143: http://aedjfwfgap.cloudimg.io/v7/media.camano.de/images/000003128_0004_p_c1.jpg?w=80 | J143: 191,192,201,202,211,212,221,222,231 | K143: 6 | L143: 0 | M143: Children comfort organic cotton Footies 2p | N143: 8.9
A144: =t_articles[[#This Row],[Artikelnummer]]&t_articles[[#This Row],[Farbcode]]&t_articles[[#This Row],[Größe]] -> 000003128000431/34 | B144: 4052171217202 | C144: 000003128 | D144: 0004 | E144: navy | F144: 040 | G144: 31/34 | H144: 6.95 | I144: http://aedjfwfgap.cloudimg.io/v7/media.camano.de/images/000003128_0004_p_c1.jpg?w=80 | J144: 191,192,201,202,211,212,221,222,231 | K144: 6 | L144: 0 | M144: Children comfort organic cotton Footies 2p | N144: 8.9
A145: =t_articles[[#This Row],[Artikelnummer]]&t_articles[[#This Row],[Farbcode]]&t_articles[[#This Row],[Größe]] -> 000003128000435/38 | B145: 4052171217196 | C145: 000003128 | D145: 0004 | E145: navy | F145: 040 | G145: 35/38 | H145: 6.95 | I145: http://aedjfwfgap.cloudimg.io/v7/media.camano.de/images/000003128_0004_p_c1.jpg?w=80 | J145: 191,192,201,202,211,212,221,222,231 | K145: 6 | L145: 0 | M145: Children comfort organic cotton Footies 2p | N145: 8.9
A146: =t_articles[[#This Row],[Artikelnummer]]&t_articles[[#This Row],[Farbcode]]&t_articles[[#This Row],[Größe]] -> 000003170000127/30 | B146: 4052171210920 | C146: 000003170 | D146: 0001 | E146: white | F146: 040 | G146: 27/30 | H146: 6.95 | I146: http://aedjfwfgap.cloudimg.io/v7/media.camano.de/images/000003170_0001_p_c1.jpg?w=80 | J146: 191,192,201,202,211,212,221,222,231,232 | K146: 3 | L146: 0 | M146: Children ca-soft organic cotton Sneaker 3p | N146: 8.9
A147: =t_articles[[#This Row],[Artikelnummer]]&t_articles[[#This Row],[Farbcode]]&t_articles[[#This Row],[Größe]] -> 000003170000131/34 | B147: 4052171210937 | C147: 000003170 | D147: 0001 | E147: white | F147: 040 | G147: 31/34 | H147: 6.95 | I147: http://aedjfwfgap.cloudimg.io/v7/media.camano.de/images/000003170_0001_p_c1.jpg?w=80 | J147: 191,192,201,202,211,212,221,222,231,232 | K147: 3 | L147: 0 | M147: Children ca-soft organic cotton Sneaker 3p | N147: 8.9
A148: =t_articles[[#This Row],[Artikelnummer]]&t_articles[[#This Row],[Farbcode]]&t_articles[[#This Row],[Größe]] -> 000003170000135/38 | B148: 4052171210944 | C148: 000003170 | D148: 0001 | E148: white | F148: 040 | G148: 35/38 | H148: 6.95 | I148: http://aedjfwfgap.cloudimg.io/v7/media.camano.de/images/000003170_0001_p_c1.jpg?w=80 | J148: 191,192,201,202,211,212,221,222,231,232 | K148: 3 | L148: 0 | M148: Children ca-soft organic cotton Sneaker 3p | N148: 8.9
A149: =t_articles[[#This Row],[Artikelnummer]]&t_articles[[#This Row],[Farbcode]]&t_articles[[#This Row],[Größe]] -> 000003170000139/42 | B149: 4052171210951 | C149: 000003170 | D149: 0001 | E149: white | F149: 040 | G149: 39/42 | H149: 6.95 | I149: http://aedjfwfgap.cloudimg.io/v7/media.camano.de/images/000003170_0001_p_c1.jpg?w=80 | J149: 191,192,201,202,211,212,221,222,231,232 | K149: 3 | L149: 0 | M149: Children ca-soft organic cotton Sneaker 3p | N149: 8.9
A150: =t_articles[[#This Row],[Artikelnummer]]&t_articles[[#This Row],[Farbcode]]&t_articles[[#This Row],[Größe]] -> 000003170009927/30 | B150: 4052171198082 | C150: 000003170 | D150: 0099 | E150: stone melange | F150: 040 | G150: 27/30 | H150: 6.95 | I150: http://aedjfwfgap.cloudimg.io/v7/media.camano.de/images/000003170_0099_p_c1.jpg?w=80 | J150: 191,201,202,211,212,221,222,231,232 | K150: 3 | L150: 0 | M150: Children ca-soft organic cotton Sneaker 3p | N150: 8.9
A151: =t_articles[[#This Row],[Artikelnummer]]&t_articles[[#This Row],[Farbcode]]&t_articles[[#This Row],[Größe]] -> 000003170009931/34 | B151: 4052171198099 | C151: 000003170 | D151: 0099 | E151: stone melange | F151: 040 | G151: 31/34 | H151: 6.95 | I151: http://aedjfwfgap.cloudimg.io/v7/media.camano.de/images/000003170_0099_p_c1.jpg?w=80 | J151: 191,201,202,211,212,221,222,231,232 | K151: 3 | L151: 0 | M151: Children ca-soft organic cotton Sneaker 3p | N151: 8.9
A152: =t_articles[[#This Row],[Artikelnummer]]&t_articles[[#This Row],[Farbcode]]&t_articles[[#This Row],[Größe]] -> 000003170009935/38 | B152: 4052171198105 | C152: 000003170 | D152: 0099 | E152: stone melange | F152: 040 | G152: 35/38 | H152: 6.95 | I152: http://aedjfwfgap.cloudimg.io/v7/media.camano.de/images/000003170_0099_p_c1.jpg?w=80 | J152: 191,201,202,211,212,221,222,231,232 | K152: 3 | L152: 0 | M152: Children ca-soft organic cotton Sneaker 3p | N152: 8.9
A153: =t_articles[[#This Row],[Artikelnummer]]&t_articles[[#This Row],[Farbcode]]&t_articles[[#This Row],[Größe]] -> 000003170009939/42 | B153: 4052171198112 | C153: 000003170 | D153: 0099 | E153: stone melange | F153: 040 | G153: 39/42 | H153: 6.95 | I153: http://aedjfwfgap.cloudimg.io/v7/media.camano.de/images/000003170_0099_p_c1.jpg?w=80 | J153: 191,201,202,211,212,221,222,231,232 | K153: 3 | L153: 0 | M153: Children ca-soft organic cotton Sneaker 3p | N153: 8.9
A154: =t_articles[[#This Row],[Artikelnummer]]&t_articles[[#This Row],[Farbcode]]&t_articles[[#This Row],[Größe]] -> 000003170417027/30 | B154: 4052171519061 | C154: 000003170 | D154: 4170 | E154: orchid smoke | F154: 040 | G154: 27/30 | H154: 6.95 | I154: http://aedjfwfgap.cloudimg.io/v7/media.camano.de/images/000003170_4170_p_c1.jpg?w=80 | J154: 231 | K154: 3 | L154: 0 | M154: Children ca-soft organic cotton Sneaker 3p | N154: 8.9
A155: =t_articles[[#This Row],[Artikelnummer]]&t_articles[[#This Row],[Farbcode]]&t_articles[[#This Row],[Größe]] -> 000003170417031/34 | B155: 4052171519078 | C155: 000003170 | D155: 4170 | E155: orchid smoke | F155: 040 | G155: 31/34 | H155: 6.95 | I155: http://aedjfwfgap.cloudimg.io/v7/media.camano.de/images/000003170_4170_p_c1.jpg?w=80 | J155: 231 | K155: 3 | L155: 0 | M155: Children ca-soft organic cotton Sneaker 3p | N155: 8.9
A156: =t_articles[[#This Row],[Artikelnummer]]&t_articles[[#This Row],[Farbcode]]&t_articles[[#This Row],[Größe]] -> 000003170417035/38 | B156: 4052171519085 | C156: 000003170 | D156: 4170 | E156: orchid smoke | F156: 040 | G156: 35/38 | H156: 6.95 | I156: http://aedjfwfgap.cloudimg.io/v7/media.camano.de/images/000003170_4170_p_c1.jpg?w=80 | J156: 231 | K156: 3 | L156: 0 | M156: Children ca-soft organic cotton Sneaker 3p | N156: 8.9
A157: =t_articles[[#This Row],[Artikelnummer]]&t_articles[[#This Row],[Farbcode]]&t_articles[[#This Row],[Größe]] -> 000003170417039/42 | B157: 4052171519092 | C157: 000003170 | D157: 4170 | E157: orchid smoke | F157: 040 | G157: 39/42 | H157: 6.95 | I157: http://aedjfwfgap.cloudimg.io/v7/media.camano.de/images/000003170_4170_p_c1.jpg?w=80 | J157: 231 | K157: 3 | L157: 0 | M157: Children ca-soft organic cotton Sneaker 3p | N157: 8.9
A158: =t_articles[[#This Row],[Artikelnummer]]&t_articles[[#This Row],[Farbcode]]&t_articles[[#This Row],[Größe]] -> 000003170430027/30 | B158: 4052171316646 | C158: 000003170 | D158: 4300 | E158: chalk pink melange | F158: 040 | G158: 27/30 | H158: 6.95 | I158: http://aedjfwfgap.cloudimg.io/v7/media.camano.de/images/000003170_4300_p_c1.jpg?w=80 | J158: 201,202,211,212,221,222,231,232 | K158: 3 | L158: 0 | M158: Children ca-soft organic cotton Sneaker 3p | N158: 8.9
A159: =t_articles[[#This Row],[Artikelnummer]]&t_articles[[#This Row],[Farbcode]]&t_articles[[#This Row],[Größe]] -> 000003170430031/34 | B159: 4052171316653 | C159: 000003170 | D159: 4300 | E159: chalk pink melange | F159: 040 | G159: 31/34 | H159: 6.95 | I159: http://aedjfwfgap.cloudimg.io/v7/media.camano.de/images/000003170_4300_p_c1.jpg?w=80 | J159: 201,202,211,212,221,222,231,232 | K159: 3 | L159: 0 | M159: Children ca-soft organic cotton Sneaker 3p | N159: 8.9
A160: =t_articles[[#This Row],[Artikelnummer]]&t_articles[[#This Row],[Farbcode]]&t_articles[[#This Row],[Größe]] -> 000003170430035/38 | B160: 4052171316660 | C160: 000003170 | D160: 4300 | E160: chalk pink melange | F160: 040 | G160: 35/38 | H160: 6.95 | I160: http://aedjfwfgap.cloudimg.io/v7/media.camano.de/images/000003170_4300_p_c1.jpg?w=80 | J160: 201,202,211,212,221,222,231,232 | K160: 3 | L160: 0 | M160: Children ca-soft organic cotton Sneaker 3p | N160: 8.9
A161: =t_articles[[#This Row],[Artikelnummer]]&t_articles[[#This Row],[Farbcode]]&t_articles[[#This Row],[Größe]] -> 000003170430039/42 | B161: 4052171316677 | C161: 000003170 | D161: 4300 | E161: chalk pink melange | F161: 040 | G161: 39/42 | H161: 6.95 | I161: http://aedjfwfgap.cloudimg.io/v7/media.camano.de/images/000003170_4300_p_c1.jpg?w=80 | J161: 201,202,211,212,221,222,231,232 | K161: 3 | L161: 0 | M161: Children ca-soft organic cotton Sneaker 3p | N161: 8.9
A162: =t_articles[[#This Row],[Artikelnummer]]&t_articles[[#This Row],[Farbcode]]&t_articles[[#This Row],[Größe]] -> 000003170445427/30 | B162: 4052171519108 | C162: 000003170 | D162: 4454 | E162: phlox pink | F162: 040 | G162: 27/30 | H162: 6.95 | I162: http://aedjfwfgap.cloudimg.io/v7/media.camano.de/images/000003170_4454_p_c1.jpg?w=80 | J162: 231 | K162: 3 | L162: 0 | M162: Children ca-soft organic cotton Sneaker 3p | N162: 8.9
A163: =t_articles[[#This Row],[Artikelnummer]]&t_articles[[#This Row],[Farbcode]]&t_articles[[#This Row],[Größe]] -> 000003170445431/34 | B163: 4052171519115 | C163: 000003170 | D163: 4454 | E163: phlox pink | F163: 040 | G163: 31/34 | H163: 6.95 | I163: http://aedjfwfgap.cloudimg.io/v7/media.camano.de/images/000003170_4454_p_c1.jpg?w=80 | J163: 231 | K163: 3 | L163: 0 | M163: Children ca-soft organic cotton Sneaker 3p | N163: 8.9
A164: =t_articles[[#This Row],[Artikelnummer]]&t_articles[[#This Row],[Farbcode]]&t_articles[[#This Row],[Größe]] -> 000003170445435/38 | B164: 4052171519122 | C164: 000003170 | D164: 4454 | E164: phlox pink | F164: 040 | G164: 35/38 | H164: 6.95 | I164: http://aedjfwfgap.cloudimg.io/v7/media.camano.de/images/000003170_4454_p_c1.jpg?w=80 | J164: 231 | K164: 3 | L164: 0 | M164: Children ca-soft organic cotton Sneaker 3p | N164: 8.9
A165: =t_articles[[#This Row],[Artikelnummer]]&t_articles[[#This Row],[Farbcode]]&t_articles[[#This Row],[Größe]] -> 000003170445439/42 | B165: 4052171519139 | C165: 000003170 | D165: 4454 | E165: phlox pink | F165: 040 | G165: 39/42 | H165: 6.95 | I165: http://aedjfwfgap.cloudimg.io/v7/media.camano.de/images/000003170_4454_p_c1.jpg?w=80 | J165: 231 | K165: 3 | L165: 0 | M165: Children ca-soft organic cotton Sneaker 3p | N165: 8.9
A166: =t_articles[[#This Row],[Artikelnummer]]&t_articles[[#This Row],[Farbcode]]&t_articles[[#This Row],[Größe]] -> 000003170552727/30 | B166: 4052171519146 | C166: 000003170 | D166: 5527 | E166: daphne | F166: 040 | G166: 27/30 | H166: 6.95 | I166: http://aedjfwfgap.cloudimg.io/v7/media.camano.de/images/000003170_5527_p_c1.jpg?w=80 | J166: 231 | K166: 3 | L166: 0 | M166: Children ca-soft organic cotton Sneaker 3p | N166: 8.9
A167: =t_articles[[#This Row],[Artikelnummer]]&t_articles[[#This Row],[Farbcode]]&t_articles[[#This Row],[Größe]] -> 000003170552731/34 | B167: 4052171519153 | C167: 000003170 | D167: 5527 | E167: daphne | F167: 040 | G167: 31/34 | H167: 6.95 | I167: http://aedjfwfgap.cloudimg.io/v7/media.camano.de/images/000003170_5527_p_c1.jpg?w=80 | J167: 231 | K167: 3 | L167: 0 | M167: Children ca-soft organic cotton Sneaker 3p | N167: 8.9
A168: =t_articles[[#This Row],[Artikelnummer]]&t_articles[[#This Row],[Farbcode]]&t_articles[[#This Row],[Größe]] -> 000003170552735/38 | B168: 4052171519160 | C168: 000003170 | D168: 5527 | E168: daphne | F168: 040 | G168: 35/38 | H168: 6.95 | I168: http://aedjfwfgap.cloudimg.io/v7/media.camano.de/images/000003170_5527_p_c1.jpg?w=80 | J168: 231 | K168: 3 | L168: 0 | M168: Children ca-soft organic cotton Sneaker 3p | N168: 8.9
A169: =t_articles[[#This Row],[Artikelnummer]]&t_articles[[#This Row],[Farbcode]]&t_articles[[#This Row],[Größe]] -> 000003170552739/42 | B169: 4052171519177 | C169: 000003170 | D169: 5527 | E169: daphne | F169: 040 | G169: 39/42 | H169: 6.95 | I169: http://aedjfwfgap.cloudimg.io/v7/media.camano.de/images/000003170_5527_p_c1.jpg?w=80 | J169: 231 | K169: 3 | L169: 0 | M169: Children ca-soft organic cotton Sneaker 3p | N169: 8.9
A170: =t_articles[[#This Row],[Artikelnummer]]&t_articles[[#This Row],[Farbcode]]&t_articles[[#This Row],[Größe]] -> 000003170711527/30 | B170: 4052171519184 | C170: 000003170 | D170: 7115 | E170: katydid | F170: 040 | G170: 27/30 | H170: 6.95 | I170: http://aedjfwfgap.cloudimg.io/v7/media.camano.de/images/000003170_7115_p_c1.jpg?w=80 | J170: 231 | K170: 3 | L170: 0 | M170: Children ca-soft organic cotton Sneaker 3p | N170: 8.9
A171: =t_articles[[#This Row],[Artikelnummer]]&t_articles[[#This Row],[Farbcode]]&t_articles[[#This Row],[Größe]] -> 000003170711531/34 | B171: 4052171519191 | C171: 000003170 | D171: 7115 | E171: katydid | F171: 040 | G171: 31/34 | H171: 6.95 | I171: http://aedjfwfgap.cloudimg.io/v7/media.camano.de/images/000003170_7115_p_c1.jpg?w=80 | J171: 231 | K171: 3 | L171: 0 | M171: Children ca-soft organic cotton Sneaker 3p | N171: 8.9
A172: =t_articles[[#This Row],[Artikelnummer]]&t_articles[[#This Row],[Farbcode]]&t_articles[[#This Row],[Größe]] -> 000003170711535/38 | B172: 4052171519207 | C172: 000003170 | D172: 7115 | E172: katydid | F172: 040 | G172: 35/38 | H172: 6.95 | I172: http://aedjfwfgap.cloudimg.io/v7/media.camano.de/images/000003170_7115_p_c1.jpg?w=80 | J172: 231 | K172: 3 | L172: 0 | M172: Children ca-soft organic cotton Sneaker 3p | N172: 8.9
A173: =t_articles[[#This Row],[Artikelnummer]]&t_articles[[#This Row],[Farbcode]]&t_articles[[#This Row],[Größe]] -> 000003170711539/42 | B173: 4052171519214 | C173: 000003170 | D173: 7115 | E173: katydid | F173: 040 | G173: 39/42 | H173: 6.95 | I173: http://aedjfwfgap.cloudimg.io/v7/media.camano.de/images/000003170_7115_p_c1.jpg?w=80 | J173: 231 | K173: 3 | L173: 0 | M173: Children ca-soft organic cotton Sneaker 3p | N173: 8.9
A174: =t_articles[[#This Row],[Artikelnummer]]&t_articles[[#This Row],[Farbcode]]&t_articles[[#This Row],[Größe]] -> 000003170999927/30 | B174: 4052171519221 | C174: 000003170 | D174: 9999 | E174: black | F174: 040 | G174: 27/30 | H174: 6.95 | I174: http://aedjfwfgap.cloudimg.io/v7/media.camano.de/images/000003170_9999_p_c1.jpg?w=80 | J174: 231 | K174: 3 | L174: 0 | M174: Children ca-soft organic cotton Sneaker 3p | N174: 8.9
A175: =t_articles[[#This Row],[Artikelnummer]]&t_articles[[#This Row],[Farbcode]]&t_articles[[#This Row],[Größe]] -> 000003170999931/34 | B175: 4052171519238 | C175: 000003170 | D175: 9999 | E175: black | F175: 040 | G175: 31/34 | H175: 6.95 | I175: http://aedjfwfgap.cloudimg.io/v7/media.camano.de/images/000003170_9999_p_c1.jpg?w=80 | J175: 231 | K175: 3 | L175: 0 | M175: Children ca-soft organic cotton Sneaker 3p | N175: 8.9
A176: =t_articles[[#This Row],[Artikelnummer]]&t_articles[[#This Row],[Farbcode]]&t_articles[[#This Row],[Größe]] -> 000003170999935/38 | B176: 4052171519245 | C176: 000003170 | D176: 9999 | E176: black | F176: 040 | G176: 35/38 | H176: 6.95 | I176: http://aedjfwfgap.cloudimg.io/v7/media.camano.de/images/000003170_9999_p_c1.jpg?w=80 | J176: 231 | K176: 3 | L176: 0 | M176: Children ca-soft organic cotton Sneaker 3p | N176: 8.9
A177: =t_articles[[#This Row],[Artikelnummer]]&t_articles[[#This Row],[Farbcode]]&t_articles[[#This Row],[Größe]] -> 000003170999939/42 | B177: 4052171519252 | C177: 000003170 | D177: 9999 | E177: black | F177: 040 | G177: 39/42 | H177: 6.95 | I177: http://aedjfwfgap.cloudimg.io/v7/media.camano.de/images/000003170_9999_p_c1.jpg?w=80 | J177: 231 | K177: 3 | L177: 0 | M177: Children ca-soft organic cotton Sneaker 3p | N177: 8.9
A178: =t_articles[[#This Row],[Artikelnummer]]&t_articles[[#This Row],[Farbcode]]&t_articles[[#This Row],[Größe]] -> 000003242000335/38 | B178: 4036329242322 | C178: 000003242 | D178: 0003 | E178: light grey | F178: 060 | G178: 35/38 | H178: 9.95 | I178: http://aedjfwfgap.cloudimg.io/v7/media.camano.de/images/000003242_0003_p_c1.jpg?w=80 | J178: 191,192,201,202,211,212,221,222,231,232 | K178: 11 | L178: 0 | M178: Unisex ca-soft tex wool Socks 2p | N178: 11.9
A179: =t_articles[[#This Row],[Artikelnummer]]&t_articles[[#This Row],[Farbcode]]&t_articles[[#This Row],[Größe]] -> 000003242000339/42 | B179: 4036329242339 | C179: 000003242 | D179: 0003 | E179: light grey | F179: 060 | G179: 39/42 | H179: 9.95 | I179: http://aedjfwfgap.cloudimg.io/v7/media.camano.de/images/000003242_0003_p_c1.jpg?w=80 | J179: 191,192,201,202,211,212,221,222,231,232 | K179: 11 | L179: 0 | M179: Unisex ca-soft tex wool Socks 2p | N179: 11.9
A180: =t_articles[[#This Row],[Artikelnummer]]&t_articles[[#This Row],[Farbcode]]&t_articles[[#This Row],[Größe]] -> 000003242000343/46 | B180: 4036329242346 | C180: 000003242 | D180: 0003 | E180: light grey | F180: 060 | G180: 43/46 | H180: 9.95 | I180: http://aedjfwfgap.cloudimg.io/v7/media.camano.de/images/000003242_0003_p_c1.jpg?w=80 | J180: 191,192,201,202,211,212,221,222,231,232 | K180: 11 | L180: 0 | M180: Unisex ca-soft tex wool Socks 2p | N180: 11.9
A181: =t_articles[[#This Row],[Artikelnummer]]&t_articles[[#This Row],[Farbcode]]&t_articles[[#This Row],[Größe]] -> 000003242000435/38 | B181: 4036329242421 | C181: 000003242 | D181: 0004 | E181: navy | F181: 060 | G181: 35/38 | H181: 9.95 | I181: http://aedjfwfgap.cloudimg.io/v7/media.camano.de/images/000003242_0004_p_c1.jpg?w=80 | J181: 191,192,201,202,211,212,221,222,231,232 | K181: 11 | L181: 0 | M181: Unisex ca-soft tex wool Socks 2p | N181: 11.9
A182: =t_articles[[#This Row],[Artikelnummer]]&t_articles[[#This Row],[Farbcode]]&t_articles[[#This Row],[Größe]] -> 000003242000439/42 | B182: 4036329242438 | C182: 000003242 | D182: 0004 | E182: navy | F182: 060 | G182: 39/42 | H182: 9.95 | I182: http://aedjfwfgap.cloudimg.io/v7/media.camano.de/images/000003242_0004_p_c1.jpg?w=80 | J182: 191,192,201,202,211,212,221,222,231,232 | K182: 11 | L182: 0 | M182: Unisex ca-soft tex wool Socks 2p | N182: 11.9
A183: =t_articles[[#This Row],[Artikelnummer]]&t_articles[[#This Row],[Farbcode]]&t_articles[[#This Row],[Größe]] -> 000003242000443/46 | B183: 4036329242445 | C183: 000003242 | D183: 0004 | E183: navy | F183: 060 | G183: 43/46 | H183: 9.95 | I183: http://aedjfwfgap.cloudimg.io/v7/media.camano.de/images/000003242_0004_p_c1.jpg?w=80 | J183: 191,192,201,202,211,212,221,222,231,232 | K183: 11 | L183: 0 | M183: Unisex ca-soft tex wool Socks 2p | N183: 11.9
A184: =t_articles[[#This Row],[Artikelnummer]]&t_articles[[#This Row],[Farbcode]]&t_articles[[#This Row],[Größe]] -> 000003242000535/38 | B184: 4036329242520 | C184: 000003242 | D184: 0005 | E184: black | F184: 060 | G184: 35/38 | H184: 9.95 | I184: http://aedjfwfgap.cloudimg.io/v7/media.camano.de/images/000003242_0005_p_c1.jpg?w=80 | J184: 191,192,201,202,211,212,221,222,231,232 | K184: 11 | L184: 0 | M184: Unisex ca-soft tex wool Socks 2p | N184: 11.9
A185: =t_articles[[#This Row],[Artikelnummer]]&t_articles[[#This Row],[Farbcode]]&t_articles[[#This Row],[Größe]] -> 000003242000539/42 | B185: 4036329242537 | C185: 000003242 | D185: 0005 | E185: black | F185: 060 | G185: 39/42 | H185: 9.95 | I185: http://aedjfwfgap.cloudimg.io/v7/media.camano.de/images/000003242_0005_p_c1.jpg?w=80 | J185: 191,192,201,202,211,212,221,222,231,232 | K185: 11 | L185: 0 | M185: Unisex ca-soft tex wool Socks 2p | N185: 11.9
A186: =t_articles[[#This Row],[Artikelnummer]]&t_articles[[#This Row],[Farbcode]]&t_articles[[#This Row],[Größe]] -> 000003242000543/46 | B186: 4036329242544 | C186: 000003242 | D186: 0005 | E186: black | F186: 060 | G186: 43/46 | H186: 9.95 | I186: http://aedjfwfgap.cloudimg.io/v7/media.camano.de/images/000003242_0005_p_c1.jpg?w=80 | J186: 191,192,201,202,211,212,221,222,231,232 | K186: 11 | L186: 0 | M186: Unisex ca-soft tex wool Socks 2p | N186: 11.9
A187: =t_articles[[#This Row],[Artikelnummer]]&t_articles[[#This Row],[Farbcode]]&t_articles[[#This Row],[Größe]] -> 000003242001735/38 | B187: 4036329241721 | C187: 000003242 | D187: 0017 | E187: dark brown | F187: 060 | G187: 35/38 | H187: 9.95 | I187: http://aedjfwfgap.cloudimg.io/v7/media.camano.de/images/000003242_0017_p_c1.jpg?w=80 | J187: 191,192,201,202,211,212,221,222,231 | K187: 11 | L187: 0 | M187: Unisex ca-soft tex wool Socks 2p | N187: 11.9
A188: =t_articles[[#This Row],[Artikelnummer]]&t_articles[[#This Row],[Farbcode]]&t_articles[[#This Row],[Größe]] -> 000003242001739/42 | B188: 4036329241738 | C188: 000003242 | D188: 0017 | E188: dark brown | F188: 060 | G188: 39/42 | H188: 9.95 | I188: http://aedjfwfgap.cloudimg.io/v7/media.camano.de/images/000003242_0017_p_c1.jpg?w=80 | J188: 191,192,201,202,211,212,221,222,231 | K188: 11 | L188: 0 | M188: Unisex ca-soft tex wool Socks 2p | N188: 11.9
A189: =t_articles[[#This Row],[Artikelnummer]]&t_articles[[#This Row],[Farbcode]]&t_articles[[#This Row],[Größe]] -> 000003242001743/46 | B189: 4036329241745 | C189: 000003242 | D189: 0017 | E189: dark brown | F189: 060 | G189: 43/46 | H189: 9.95 | I189: http://aedjfwfgap.cloudimg.io/v7/media.camano.de/images/000003242_0017_p_c1.jpg?w=80 | J189: 191,192,201,202,211,212,221,222,231 | K189: 11 | L189: 0 | M189: Unisex ca-soft tex wool Socks 2p | N189: 11.9
A190: =t_articles[[#This Row],[Artikelnummer]]&t_articles[[#This Row],[Farbcode]]&t_articles[[#This Row],[Größe]] -> 000003318000135/38 | B190: 4036329015452 | C190: 000003318 | D190: 0001 | E190: white | F190: 060 | G190: 35/38 | H190: 6.95 | I190: http://aedjfwfgap.cloudimg.io/v7/media.camano.de/images/000003318_0001_p_c1.jpg?w=80 | J190: 191,192,201,202,211,212,221,222,231,232 | K190: 2 | L190: 0 | M190: Women silky feeling Sneaker 2p | N190: 8.9
A191: =t_articles[[#This Row],[Artikelnummer]]&t_articles[[#This Row],[Farbcode]]&t_articles[[#This Row],[Größe]] -> 000003318000139/42 | B191: 4036329015469 | C191: 000003318 | D191: 0001 | E191: white | F191: 060 | G191: 39/42 | H191: 6.95 | I191: http://aedjfwfgap.cloudimg.io/v7/media.camano.de/images/000003318_0001_p_c1.jpg?w=80 | J191: 191,192,201,202,211,212,221,222,231,232 | K191: 2 | L191: 0 | M191: Women silky feeling Sneaker 2p | N191: 8.9
A192: =t_articles[[#This Row],[Artikelnummer]]&t_articles[[#This Row],[Farbcode]]&t_articles[[#This Row],[Größe]] -> 000003318000335/38 | B192: 4052171125118 | C192: 000003318 | D192: 0003 | E192: light grey melange | F192: 060 | G192: 35/38 | H192: 6.95 | I192: http://aedjfwfgap.cloudimg.io/v7/media.camano.de/images/000003318_0003_p_c1.jpg?w=80 | J192: 191,192,201,202,211,212,221,222,231,232 | K192: 2 | L192: 0 | M192: Women silky feeling Sneaker 2p | N192: 8.9
A193: =t_articles[[#This Row],[Artikelnummer]]&t_articles[[#This Row],[Farbcode]]&t_articles[[#This Row],[Größe]] -> 000003318000339/42 | B193: 4052171125125 | C193: 000003318 | D193: 0003 | E193: light grey melange | F193: 060 | G193: 39/42 | H193: 6.95 | I193: http://aedjfwfgap.cloudimg.io/v7/media.camano.de/images/000003318_0003_p_c1.jpg?w=80 | J193: 191,192,201,202,211,212,221,222,231,232 | K193: 2 | L193: 0 | M193: Women silky feeling Sneaker 2p | N193: 8.9
A194: =t_articles[[#This Row],[Artikelnummer]]&t_articles[[#This Row],[Farbcode]]&t_articles[[#This Row],[Größe]] -> 000003318000435/38 | B194: 4036329015476 | C194: 000003318 | D194: 0004 | E194: navy | F194: 060 | G194: 35/38 | H194: 6.95 | I194: http://aedjfwfgap.cloudimg.io/v7/media.camano.de/images/000003318_0004_p_c1.jpg?w=80 | J194: 191,192,201,202,211,212,221,222,231,232 | K194: 2 | L194: 0 | M194: Women silky feeling Sneaker 2p | N194: 8.9
A195: =t_articles[[#This Row],[Artikelnummer]]&t_articles[[#This Row],[Farbcode]]&t_articles[[#This Row],[Größe]] -> 000003318000439/42 | B195: 4036329015483 | C195: 000003318 | D195: 0004 | E195: navy | F195: 060 | G195: 39/42 | H195: 6.95 | I195: http://aedjfwfgap.cloudimg.io/v7/media.camano.de/images/000003318_0004_p_c1.jpg?w=80 | J195: 191,192,201,202,211,212,221,222,231,232 | K195: 2 | L195: 0 | M195: Women silky feeling Sneaker 2p | N195: 8.9
A196: =t_articles[[#This Row],[Artikelnummer]]&t_articles[[#This Row],[Farbcode]]&t_articles[[#This Row],[Größe]] -> 000003318000535/38 | B196: 4036329015490 | C196: 000003318 | D196: 0005 | E196: black | F196: 060 | G196: 35/38 | H196: 6.95 | I196: http://aedjfwfgap.cloudimg.io/v7/media.camano.de/images/000003318_0005_p_c1.jpg?w=80 | J196: 191,192,201,202,211,212,221,222,231,232 | K196: 2 | L196: 0 | M196: Women silky feeling Sneaker 2p | N196: 8.9
A197: =t_articles[[#This Row],[Artikelnummer]]&t_articles[[#This Row],[Farbcode]]&t_articles[[#This Row],[Größe]] -> 000003318000539/42 | B197: 4036329015506 | C197: 000003318 | D197: 0005 | E197: black | F197: 060 | G197: 39/42 | H197: 6.95 | I197: http://aedjfwfgap.cloudimg.io/v7/media.camano.de/images/000003318_0005_p_c1.jpg?w=80 | J197: 191,192,201,202,211,212,221,222,231,232 | K197: 2 | L197: 0 | M197: Women silky feeling Sneaker 2p | N197: 8.9
A198: =t_articles[[#This Row],[Artikelnummer]]&t_articles[[#This Row],[Farbcode]]&t_articles[[#This Row],[Größe]] -> 000003318001135/38 | B198: 4052171125132 | C198: 000003318 | D198: 0011 | E198: natural melange | F198: 060 | G198: 35/38 | H198: 6.95 | I198: http://aedjfwfgap.cloudimg.io/v7/media.camano.de/images/000003318_0011_p_c1.jpg?w=80 | J198: 191,192,201,202,211,212,221,222,231,232 | K198: 2 | L198: 0 | M198: Women silky feeling Sneaker 2p | N198: 8.9
A199: =t_articles[[#This Row],[Artikelnummer]]&t_articles[[#This Row],[Farbcode]]&t_articles[[#This Row],[Größe]] -> 000003318001139/42 | B199: 4052171125149 | C199: 000003318 | D199: 0011 | E199: natural melange | F199: 060 | G199: 39/42 | H199: 6.95 | I199: http://aedjfwfgap.cloudimg.io/v7/media.camano.de/images/000003318_0011_p_c1.jpg?w=80 | J199: 191,192,201,202,211,212,221,222,231,232 | K199: 2 | L199: 0 | M199: Women silky feeling Sneaker 2p | N199: 8.9
A200: =t_articles[[#This Row],[Artikelnummer]]&t_articles[[#This Row],[Farbcode]]&t_articles[[#This Row],[Größe]] -> 000003318007335/38 | B200: 4052171125170 | C200: 000003318 | D200: 0073 | E200: silver rose mel. | F200: 060 | G200: 35/38 | H200: 6.95 | I200: http://aedjfwfgap.cloudimg.io/v7/media.camano.de/images/000003318_0073_p_c1.jpg?w=80 | J200: 191,192,201,202,211,212,221,222,231,232 | K200: 2 | L200: 0 | M200: Women silky feeling Sneaker 2p | N200: 8.9
... 4300 more rows

Sheet Farben_All (hidden)
A1: 0001 | B1: white
A2: 0001 | B2: white
A3: 0005 | B3: black
A4: 0008 | B4: anthracite
A5: 0000 | B5: -
A6: 0007 | B6: beige mel.
A7: 0003 | B7: grey mel.
A8: 0030 | B8: blue
A9: 0065 | B9: desert mel.
A10: 0011 | B10: natural
A11: 0002 | B11: offwhite
A12: 0004 | B12: navy
A13: 0010 | B13: light grey
A14: 0033 | B14: denim
A15: 4290 | B15: silver rose
A16: 0012 | B16: rosé
A17: 0016 | B17: light blue
A18: 0042 | B18: fuchsia
A19: 0099 | B19: stone melange
A20: 4170 | B20: orchid smoke
A21: 4300 | B21: chalk pink melange
A22: 4454 | B22: phlox pink
A23: 5527 | B23: daphne
A24: 7115 | B24: katydid
A25: 9999 | B25: black
A26: 0017 | B26: dark brown
A27: 0073 | B27: silver rose mel.
A28: 4015 | B28: silver peony
A29: 7088 | B29: celadon
A30: 0006 | B30: jeans
A31: 3800 | B31: bordeaux melange
A32: 5490 | B32: bijou blue
A33: 5500 | B33: denim melange
A34: 7379 | B34: dill
A35: 8468 | B35: tiger's eye
A36: 8700 | B36: caramel melange
A37: 8999 | B37: dark brown
A38: 9703 | B38: dark grey mix
A39: 8200 | B39: nature melange
A40: 8500 | B40: beige melange
A41: 0009 | B41: olive mel.
A42: 0039 | B42: caramel mel.
A43: 0041 | B43: true red
A44: 5996 | B44: navy melange
A45: 7325 | B45: zephyr green
A46: 8300 | B46: sand melange
A47: 8997 | B47: dark brown melange
A48: 5700 | B48: jeans melange
A49: 0018 | B49: sand
A50: 5300 | B50: stone melange
A51: 0032 | B51: turquoise
A52: 0080 | B52: green flash
A53: 5444 | B53: captain's blue
A54: 9700 | B54: dark grey melange
A55: 5310 | B55: infinity
A56: 9801 | B56: anthracite
A57: 0049 | B57: fog
A58: 5999 | B58: navy
A59: 9800 | B59: anthracite melange
A60: 4710 | B60: raspberry
A61: 7500 | B61: lime
A62: 9300 | B62: light grey melange
A63: 0013 | B63: pink mel.
A64: 0515 | B64: rainbow
A65: 4400 | B65: pink melange
A66: 1000 | B66: white
A67: 1001 | B67: white mix
A68: 2400 | B68: ember glow
A69: 4303 | B69: chalk pink mix
A70: 5560 | B70: classic blue
A71: 5703 | B71: jeans mix
A72: 6500 | B72: turquoise
A73: 0024 | B73: jeans mix
A74: 0800 | B74: black white
A75: 5997 | B75: navy + fuchsia
A76: 3500 | B76: true red
A77: 1100 | B77: birch melange
A78: 9303 | B78: light grey mix
A79: 1577 | B79: spruce yellow
A80: 2104 | B80: yarrow
A81: 2160 | B81: corn
A82: 3600 | B82: rio red
A83: 3877 | B83: syrah
A84: 3880 | B84: winetasting
A85: 4129 | B85: pink frosting
A86: 4204 | B86: mary's rose
A87: 4569 | B87: red bud
A88: 5220 | B88: placid blue
A89: 5722 | B89: navy peony
A90: 5959 | B90: night sky
A91: 7221 | B91: sharp green
A92: 7440 | B92: parrot green
A93: 7901 | B93: dark olive
A94: 8560 | B94: foxtrot
A95: 4225 | B95: bridal rose
A96: 6810 | B96: dragonfly
A97: 5801 | B97: blue
A98: 5803 | B98: blue mix
A99: 9200 | B99: fog melange
A100: 4253 | B100: blush mix
A101: 7202 | B101: mint mix
A102: 8203 | B102: nature mix
A103: 9203 | B103: fog mix
A104: 2050 | B104: light lemonade
A105: 4130 | B105: prism pink
A106: 4201 | B106: rosé
A107: 5100 | B107: light blue
A108: 0810 | B108: mum & mum
A109: 0811 | B109: dad & dad
A110: 0812 | B110: mum & dad
A111: 4700 | B111: berry
A112: 0109 | B112: make up
A113: 0112 | B113: sand
A114: 8400 | B114: desert melange
A115: 4600 | B115: fuchsia
A116: 1201 | B116: offwhite
A117: 4212 | B117: mauve
A118: 5988 | B118: total eclipse
A119: 7201 | B119: mint
A120: 5580 | B120: navy blazer
A121: 9997 | B121: black mix
A122: 0801 | B122: black grey white
A123: 5091 | B123: blue fog mix
A124: 7721 | B124: tea mix
A125: 0806 | B125: blue black green
A126: 7910 | B126: sycamore green
A127: 4408 | B127: deco rose
A128: 8181 | B128: soft beige
A129: 0107 | B129: powder
A130: 3200 | B130: 250 flame red
A131: 4910 | B131: 302 prune purple
A132: 5250 | B132: 354 dutch blue
A133: 5588 | B133: 352 nautical blue
A134: 5693 | B134: 355 atlantic blue
A135: 6351 | B135: 351 blue curacao
A136: 7610 | B136: 403 tan green
A137: 9400 | B137: 080 frost grey
A138: 6660 | B138: 353 pagoda blue
A139: 2510 | B139: 150 real orange
A140: 1392 | B140: 102 topaz
A141: 4340 | B141: 514 dragon fruit mix
A142: 4790 | B142: 513 passion flower mix
A143: 2610 | B143: 518 blood orange mix
A144: 0050 | B144: multicolor
A145: 9600 | B145: grey melange
A146: 3400 | B146: tomato
A147: 4018 | B147: chrystal pink
A148: 4515 | B148: azalea pink
A149: 5350 | B149: french blue
A150: 7400 | B150: green flash
A151: 3350 | B151: aurora red
A152: 4520 | B152: lipstick
A153: 2310 | B153: peach echo
A154: 5145 | B154: light aqua
A155: 1470 | B155: ceylon yellow
A156: 2011 | B156: sun burst
A157: 2131 | B157: daffodil
A158: 2335 | B158: golden poppy
A159: 2420 | B159: bright marigold
A160: 2550 | B160: hot coral
A161: 2580 | B161: mandarin
A162: 3118 | B162: mars red
A163: 3214 | B163: hibiskus
A164: 3520 | B164: jester red
A165: 4420 | B165: lilac petal
A166: 5358 | B166: provence
A167: 5450 | B167: skydiver
A168: 5470 | B168: prussian blue
A169: 5609 | B169: mazarine blue
A170: 5652 | B170: deep cobalt
A171: 5670 | B171: river
A172: 6259 | B172: barrier reef
A173: 6590 | B173: lake
A174: 6600 | B174: caribic green
A175: 7301 | B175: hemlock
A176: 7550 | B176: jelly bean
A177: 7750 | B177: cactus
A178: 8901 | B178: sandstone
A179: 2180 | B179: mineral yellow
A180: 7663 | B180: green mix
A181: 0990 | B181: confetti
A182: 2019 | B182: blossom
A183: 2333 | B183: cantaloupe
A184: 5081 | B184: angel falls
A185: 6000 | B185: plume
A186: 6122 | B186: porcelain
A187: 2210 | B187: blazing orange
A188: 2214 | B188: radiant yellow
A189: 3100 | B189: lantana
A190: 3121 | B190: high risk red
A191: 3123 | B191: racing red
A192: 5370 | B192: brilliant blue
A193: 5410 | B193: baleine plue
A194: 5480 | B194: true blue
A195: 7632 | B195: hunter green
A196: 7640 | B196: bosphorus
A197: 5230 | B197: baltic sea
A198: 5514 | B198: campanula
A199: 6610 | B199: spring bud
A200: 7602 | B200: rolling hills
... 113 more rows
